Workbook

Sheet about
B2: This is the "spreadsheet tool 1" used for the paper "On the economics of electrical storage for variable renewable energy sources", developed by Alexander Zerrahn and Wolf-Peter Schill.
B5: Authors | C5: Alexander Zerrahn and Wolf-Peter Schill
B6: Version | C6: 1.0
B7: Date of this version | C7: February 8, 2018
B8: doi
B9: License | C9: This spreadsheet is licensed under an MIT license.
C10: Copyright (c) 2018 Alexander Zerrahn <azerrahn@diw.de>, Wolf-Peter Schill <wschill@diw.de>
C11: SPDX-License-Identifier: MIT
C12: Permission is hereby granted, free of charge, to any person obtaining a copy of this software and associated documentation files (the "Software"), to deal in the Software without restriction, including without limitation the rights to use, copy, modify, merge, publish, distribute, sublicense, and/or sell copies of the Software, and to permit persons to whom the Software is furnished to do so, subject to the following conditions:
C16: The above copyright notice and this permission notice shall be included in all copies or substantial portions of the Software.
C18: THE SOFTWARE IS PROVIDED "AS IS", WITHOUT WARRANTY OF ANY KIND, EXPRESS OR IMPLIED, INCLUDING BUT NOT LIMITED TO THE WARRANTIES OF MERCHANTABILITY, FITNESS FOR A PARTICULAR PURPOSE AND NONINFRINGEMENT. IN NO EVENT SHALL THE AUTHORS OR COPYRIGHT HOLDERS BE LIABLE FOR ANY CLAIM, DAMAGES OR OTHER LIABILITY, WHETHER IN AN ACTION OF CONTRACT, TORT OR OTHERWISE, ARISING FROM, OUT OF OR IN CONNECTION WITH THE SOFTWARE OR THE USE OR OTHER DEALINGS IN THE SOFTWARE.

Sheet manual
B3: Objective | C3: The tool minimzes storage energy requirements (Cell L2) using the Excel Solver. Make sure that the solver is activated.
B5: Variables | C5: Capacity of installed renewables (Cell C2), the curtailment threshold (C3), and the initial storage level (K18)
B7: Constraints | C7: Minimum renewables share (C5), maximum curtailed renewable energy (C6), equality of storage level in first and last period (K18, K8777). Constraints are only active when using the macro.
B10: Manual use | C10: Choose a base year to supply the time series on the hourly renewable capacity factor and hourly demand (C10)
C11: Enter a renewables capacity (C2), a curtailment threshold (C3), and the storage level in the first period (K18)
C12: The formulae in the cells automatically calculate the results. No solver is activated
C13: Results are the time series of residual demand (M18-M8777), storage use (I18-K8777), backup capacity use (L18-L8777), renewable curtailment (C6), renewables in net demand (I3), and all further indicators in the sheet's head
B15: Automatic use | C15: Choose a base year to supply the time series on the hourly renewable capacity factor and hourly demand (C10)
C16: Open and run the macro. The macro iterates through minimum renewables shares and maximum curtailment shares
C17: For cases with high minimum renewables shares and low curtailment shares, the Excel Solver may have numerical difficulties. If the Solver does not deliver a plausible solution, use other starting values in the macro.
C18: Results are displayed in columns P to BA

Sheet tool
A1: 1 | B1: 2 | C1: 3 | D1: 4 | E1: 5 | F1: 6 | G1: 7 | H1: 8 | I1: 9 | J1: 10 | K1: 11 | L1: 12 | M1: 13 | N1: 14 | O1: 15 | P1: 16 | Q1: 17 | R1: 18 | S1: 19 | T1: 20 | U1: 21 | V1: 22 | W1: 23 | X1: 24 | Y1: 25 | Z1: 26 | AA1: 27 | AB1: 28 | AC1: 29 | AD1: 30 | AE1: 31 | AF1: 32 | AG1: 33 | AH1: 34 | AI1: 35 | AJ1: 36 | AK1: 37 | AL1: 38 | AM1: 39 | AN1: 40 | AO1: 41 | AP1: 42 | AQ1: 43 | AR1: 44 | AS1: 45 | AT1: 46 | AU1: 47 | AV1: 48 | AW1: 49 | AX1: 50 | AY1: 51 | AZ1: 52 | BA1: 53
B2: Renewable capacity | C2: 200 | D2: GW | E2: Efficiency loading | F2: 0.81 | G2: % | H2: Net demand | I2: =SUM(B18:B8777)/1000 -> 504.164285 | J2: TWh | K2: Storage energy | L2: =MAX(K18:K8777) -> 1140.65589 | M2: GWh | P2: Storage energy in GWh | Q2: Renewable curtailment in per mille or percent
B3: Curtailment threshold | C3: 10 | D3: GW | E3: Efficiency discharging | F3: 0.926 | G3: % | H3: renewables in net demand | I3: =((SUM(F18:F8777)+SUM(J18:J8777))/1000/I2)*100 -> 46.46341649 | J3: % | K3: Storage power | L3: =MAX(I18:J8777) -> 49.13527908 | M3: GW | Q3: =10*Q4+$C$8*100 -> 0 | R3: =10*R4+$C$8*100 -> 5 | S3: 10 | T3: 15 | U3: 20 | V3: 25 | W3: 30 | X3: 35 | Y3: 40 | Z3: 45 | AA3: 50 | AB3: 55 | AC3: 60 | AD3: 65 | AE3: 70 | AF3: 75 | AG3: 80 | AH3: 85 | AI3: 90 | AJ3: 95 | AK3: 100 | AL3: 110 | AM3: 120 | AN3: 130 | AO3: 140 | AP3: 150 | AQ3: 160 | AR3: 170 | AS3: 180 | AT3: 190 | AU3: 200 | AV3: 250 | AW3: 300 | AX3: 350 | AY3: 400 | AZ3: 450 | BA3: 500
P4: vRES | Q4: 0 | R4: 0.5 | S4: 1 | T4: 1.5 | U4: 2 | V4: 2.5 | W4: 3 | X4: 3.5 | Y4: 4 | Z4: 4.5 | AA4: 5 | AB4: 5.5 | AC4: 6 | AD4: 6.5 | AE4: 7 | AF4: 7.5 | AG4: 8 | AH4: 8.5 | AI4: 9 | AJ4: 9.5 | AK4: 10 | AL4: 11 | AM4: 12 | AN4: 13 | AO4: 14 | AP4: 15 | AQ4: 16 | AR4: 17 | AS4: 18 | AT4: 19 | AU4: 20 | AV4: 25 | AW4: 30 | AX4: 35 | AY4: 40 | AZ4: 45 | BA4: 50
B5: Renewable share | C5: =I3 -> 46.46341649 | D5: % | H5: Renewables available | I5: =SUM(D18:D8777)/1000 -> 238.2138979 | J5: TWh | K5: Storage E/P | L5: =L2/L3 -> 23.21460083 | M5: h | O5: 1 | P5: 20 | BB5: 1
B6: Renewable curtailment | C6: =10*I8 -> 15.40917962 | D6: per mille | E6: Renewable surplus | F6: =I7 -> 3.804155236 | G6: % | H6: Renewables used directly | I6: =SUM(F18:F8777)/1000/I5*100 -> 96.19584476 | J6: % | K6: Storage full-load hours | L6: =SUM(J18:J8777)/L3 -> 103.7967063 | M6: h | O6: 2 | P6: 25 | BB6: 2
H7: Renewable surplus | I7: =SUM(E18:E8777)/1000/I5*100 -> 3.804155236 | J7: % | O7: 3 | P7: 30 | BB7: 3
H8: Renewables curtailed | I8: =SUM(H18:H8777)/1000/I5*100 -> 1.540917962 | J8: % | K8: Conventional capacity | L8: =MAX(L18:L8777) -> 76.2627794 | M8: GW | O8: 4 | P8: 35 | BB8: 4
H9: Renewables stored | I9: =SUM(I18:I8777)/1000/I5*100 -> 2.263237274 | J9: % | O9: 5 | P9: 40 | BB9: 5
B10: Select base year | C10: 2014 | O10: 6 | P10: 45 | BB10: 6
H11: Renewables lost in storage | I11: =((SUM(I18:I8777)-SUM(J18:J8777))/SUM(D18:D8777))*100 -> 0.1222706144 | J11: % | O11: 7 | P11: 50 | BB11: 7
C12: Input data required | O12: 8 | P12: 55 | BB12: 8
C13: Cells changed by macro | H13: Renewables lost overall | I13: =I11+I8 -> 1.663188577 | J13: % | O13: 9 | P13: 60 | BB13: 9
C14: Results from automatic calculation | H14: Renewables used ("efficiency") | I14: =100-I13 -> 98.33681142 | J14: % | O14: 10 | P14: 65 | BB14: 10
O15: 11 | P15: 70 | BB15: 11
O16: 12 | P16: 75 | BB16: 12
A17: hour | B17: demand | C17: renewable availability factor | D17: renewable availability | E17: renewable surplus | F17: renewable generation | G17: residual demand | H17: curtailment | I17: storage loading | J17: storage discharging | K17: storage energy level | L17: conventional generation | M17: residual demand (for RLDCs) | O17: 13 | P17: 80 | BB17: 13
A18: h1 | B18: =IF($C$10=2012,profiles!C5,IF($C$10=2013,profiles!E5,IF($C$10=2014,profiles!G5,IF($C$10=2015,profiles!I5,IF($C$10=2016,profiles!K5))))) -> 45.486 | C18: =IF($C$10=2012,profiles!D5,IF($C$10=2013,profiles!F5,IF($C$10=2014,profiles!H5,IF($C$10=2015,profiles!J5,IF($C$10=2016,profiles!L5))))) -> 0.1253759509 | D18: =C18*$C$2 -> 25.07519019 | E18: =D18-F18 -> 0 | F18: =MIN(D18,B18) -> 25.07519019 | G18: =B18-F18 -> 20.41080981 | H18: =-MIN(-E18+$C$3,0) -> 0 | I18: =E18-H18 -> 0 | K18: 1140.65589 | L18: =MAX(G18-J18,0) -> 20.41080981 | M18: =B18-D18 -> 20.41080981 | O18: 14 | P18: 85 | BB18: 14
A19: h2 | B19: =IF($C$10=2012,profiles!C6,IF($C$10=2013,profiles!E6,IF($C$10=2014,profiles!G6,IF($C$10=2015,profiles!I6,IF($C$10=2016,profiles!K6))))) -> 43.588 | C19: =IF($C$10=2012,profiles!D6,IF($C$10=2013,profiles!F6,IF($C$10=2014,profiles!H6,IF($C$10=2015,profiles!J6,IF($C$10=2016,profiles!L6))))) -> 0.1192133042 | D19: =C19*$C$2 -> 23.84266085 | E19: =D19-F19 -> 0 | F19: =MIN(D19,B19) -> 23.84266085 | G19: =B19-F19 -> 19.74533915 | H19: =-MIN(-E19+$C$3,0) -> 0 | I19: =E19-H19 -> 0 | J19: =MIN(G19,K18*$F$3) -> 19.74533915 | K19: =K18+I19*$F$2-J19/$F$3 -> 1119.33263 | L19: =MAX(G19-J19,0) -> 0 | M19: =B19-D19 -> 19.74533915 | O19: 15 | P19: 90 | BB19: 15
A20: h3 | B20: =IF($C$10=2012,profiles!C7,IF($C$10=2013,profiles!E7,IF($C$10=2014,profiles!G7,IF($C$10=2015,profiles!I7,IF($C$10=2016,profiles!K7))))) -> 41.811 | C20: =IF($C$10=2012,profiles!D7,IF($C$10=2013,profiles!F7,IF($C$10=2014,profiles!H7,IF($C$10=2015,profiles!J7,IF($C$10=2016,profiles!L7))))) -> 0.1297841599 | D20: =C20*$C$2 -> 25.95683199 | E20: 0 | F20: 25.95683199 | G20: 15.85416801 | H20: 0 | I20: =E20-H20 -> 0 | J20: =MIN(G20,K19*$F$3) -> 15.85416801 | K20: =K19+I20*$F$2-J20/$F$3 -> 1102.211498 | L20: 0 | M20: 15.85416801 | O20: 16 | P20: 95 | BB20: 16
A21: h4 | B21: =IF($C$10=2012,profiles!C8,IF($C$10=2013,profiles!E8,IF($C$10=2014,profiles!G8,IF($C$10=2015,profiles!I8,IF($C$10=2016,profiles!K8))))) -> 40.757 | C21: =IF($C$10=2012,profiles!D8,IF($C$10=2013,profiles!F8,IF($C$10=2014,profiles!H8,IF($C$10=2015,profiles!J8,IF($C$10=2016,profiles!L8))))) -> 0.13224627 | D21: 26.449254 | E21: 0 | F21: 26.449254 | G21: 14.307746 | H21: 0 | I21: =E21-H21 -> 0 | J21: 14.307746 | K21: =K20+I21*$F$2-J21/$F$3 -> 1086.760369 | L21: 0 | M21: 14.307746 | Q21: 1 | R21: 2 | S21: 3 | T21: 4 | U21: 5 | V21: 6 | W21: 7 | X21: 8 | Y21: 9 | Z21: 10 | AA21: 11 | AB21: 12 | AC21: 13 | AD21: 14 | AE21: 15 | AF21: 16 | AG21: 17 | AH21: 18 | AI21: 19 | AJ21: 20 | AK21: 21 | AL21: 22 | AM21: 23 | AN21: 24 | AO21: 25 | AP21: 26 | AQ21: 27 | AR21: 28 | AS21: 29 | AT21: 30 | AU21: 31 | AV21: 32 | AW21: 33 | AX21: 34 | AY21: 35 | AZ21: 36 | BA21: 37
A22: h5 | B22: =IF($C$10=2012,profiles!C9,IF($C$10=2013,profiles!E9,IF($C$10=2014,profiles!G9,IF($C$10=2015,profiles!I9,IF($C$10=2016,profiles!K9))))) -> 39.988 | C22: =IF($C$10=2012,profiles!D9,IF($C$10=2013,profiles!F9,IF($C$10=2014,profiles!H9,IF($C$10=2015,profiles!J9,IF($C$10=2016,profiles!L9))))) -> 0.12546441 | D22: 25.092882 | E22: 0 | F22: 25.092882 | G22: 14.895118 | H22: 0 | I22: 0 | J22: 14.895118 | K22: =K21+I22*$F$2-J22/$F$3 -> 1070.674928 | L22: 0 | M22: 14.895118 | AZ22: 0 | BA22: 0
A23: h6 | B23: =IF($C$10=2012,profiles!C10,IF($C$10=2013,profiles!E10,IF($C$10=2014,profiles!G10,IF($C$10=2015,profiles!I10,IF($C$10=2016,profiles!K10))))) -> 39.052 | C23: =IF($C$10=2012,profiles!D10,IF($C$10=2013,profiles!F10,IF($C$10=2014,profiles!H10,IF($C$10=2015,profiles!J10,IF($C$10=2016,profiles!L10))))) -> 0.1232529339 | D23: 24.65058678 | E23: 0 | F23: 24.65058678 | G23: 14.40141322 | H23: 0 | I23: 0 | J23: 14.40141322 | K23: 1055.122646 | L23: 0 | M23: 14.40141322
A24: h7 | B24: =IF($C$10=2012,profiles!C11,IF($C$10=2013,profiles!E11,IF($C$10=2014,profiles!G11,IF($C$10=2015,profiles!I11,IF($C$10=2016,profiles!K11))))) -> 37.302 | C24: =IF($C$10=2012,profiles!D11,IF($C$10=2013,profiles!F11,IF($C$10=2014,profiles!H11,IF($C$10=2015,profiles!J11,IF($C$10=2016,profiles!L11))))) -> 0.1186383205 | D24: 23.72766409 | E24: 0 | F24: 23.72766409 | G24: 13.57433591 | H24: =-MIN(-E24+$C$3,0) -> 0 | I24: 0 | J24: 13.57433591 | K24: 1040.463536 | L24: 0 | M24: 13.57433591 | P24: Implicit storage power in GW | Q24: Renewable curtailment in per mille or percent
A25: h8 | B25: =IF($C$10=2012,profiles!C12,IF($C$10=2013,profiles!E12,IF($C$10=2014,profiles!G12,IF($C$10=2015,profiles!I12,IF($C$10=2016,profiles!K12))))) -> 37.586 | C25: =IF($C$10=2012,profiles!D12,IF($C$10=2013,profiles!F12,IF($C$10=2014,profiles!H12,IF($C$10=2015,profiles!J12,IF($C$10=2016,profiles!L12))))) -> 0.1213805508 | D25: 24.27611016 | E25: 0 | F25: 24.27611016 | G25: 13.30988984 | H25: 0 | I25: 0 | J25: =MIN(MAX(0,G25),K24*$F$3) -> 13.30988984 | K25: 1026.090005 | L25: 0 | M25: 13.30988984 | Q25: =10*Q26+$C$8*100 -> 0 | R25: =10*R26+$C$8*100 -> 5 | S25: 10 | T25: 15 | U25: 20 | V25: 25 | W25: 30 | X25: 35 | Y25: 40 | Z25: 45 | AA25: 50 | AB25: 55 | AC25: 60 | AD25: 65 | AE25: 70 | AF25: 75 | AG25: 80 | AH25: 85 | AI25: 90 | AJ25: 95 | AK25: 100 | AL25: 110 | AM25: 120 | AN25: 130 | AO25: 140 | AP25: 150 | AQ25: 160 | AR25: 170 | AS25: 180 | AT25: 190 | AU25: 200 | AV25: 250 | AW25: 300 | AX25: 350 | AY25: 400 | AZ25: 450 | BA25: 500
A26: h9 | B26: =IF($C$10=2012,profiles!C13,IF($C$10=2013,profiles!E13,IF($C$10=2014,profiles!G13,IF($C$10=2015,profiles!I13,IF($C$10=2016,profiles!K13))))) -> 38.24 | C26: =IF($C$10=2012,profiles!D13,IF($C$10=2013,profiles!F13,IF($C$10=2014,profiles!H13,IF($C$10=2015,profiles!J13,IF($C$10=2016,profiles!L13))))) -> 0.1260688801 | D26: 25.21377602 | E26: 0 | F26: 25.21377602 | G26: 13.02622398 | H26: 0 | I26: 0 | J26: 13.02622398 | K26: 1012.022808 | L26: 0 | M26: 13.02622398 | P26: vRES | Q26: 0 | R26: 0.5 | S26: 1 | T26: 1.5 | U26: 2 | V26: 2.5 | W26: 3 | X26: 3.5 | Y26: 4 | Z26: 4.5 | AA26: 5 | AB26: 5.5 | AC26: 6 | AD26: 6.5 | AE26: 7 | AF26: 7.5 | AG26: 8 | AH26: 8.5 | AI26: 9 | AJ26: 9.5 | AK26: 10 | AL26: 11 | AM26: 12 | AN26: 13 | AO26: 14 | AP26: 15 | AQ26: 16 | AR26: 17 | AS26: 18 | AT26: 19 | AU26: 20 | AV26: 25 | AW26: 30 | AX26: 35 | AY26: 40 | AZ26: 45 | BA26: 50
A27: h10 | B27: =IF($C$10=2012,profiles!C14,IF($C$10=2013,profiles!E14,IF($C$10=2014,profiles!G14,IF($C$10=2015,profiles!I14,IF($C$10=2016,profiles!K14))))) -> 40.649 | C27: =IF($C$10=2012,profiles!D14,IF($C$10=2013,profiles!F14,IF($C$10=2014,profiles!H14,IF($C$10=2015,profiles!J14,IF($C$10=2016,profiles!L14))))) -> 0.1388217255 | D27: 27.76434511 | E27: 0 | F27: 27.76434511 | G27: 12.88465489 | H27: 0 | I27: 0 | J27: 12.88465489 | K27: 998.1084941 | L27: 0 | M27: 12.88465489 | O27: 1 | P27: 20 | BB27: 1
A28: h11 | B28: =IF($C$10=2012,profiles!C15,IF($C$10=2013,profiles!E15,IF($C$10=2014,profiles!G15,IF($C$10=2015,profiles!I15,IF($C$10=2016,profiles!K15))))) -> 42.894 | C28: =IF($C$10=2012,profiles!D15,IF($C$10=2013,profiles!F15,IF($C$10=2014,profiles!H15,IF($C$10=2015,profiles!J15,IF($C$10=2016,profiles!L15))))) -> 0.1534322109 | D28: 30.68644218 | E28: 0 | F28: 30.68644218 | G28: 12.20755782 | H28: 0 | I28: 0 | J28: 12.20755782 | K28: 984.9253863 | L28: 0 | M28: 12.20755782 | O28: 2 | P28: 25 | BB28: 2
A29: h12 | B29: =IF($C$10=2012,profiles!C16,IF($C$10=2013,profiles!E16,IF($C$10=2014,profiles!G16,IF($C$10=2015,profiles!I16,IF($C$10=2016,profiles!K16))))) -> 45.335 | C29: =IF($C$10=2012,profiles!D16,IF($C$10=2013,profiles!F16,IF($C$10=2014,profiles!H16,IF($C$10=2015,profiles!J16,IF($C$10=2016,profiles!L16))))) -> 0.1751194197 | D29: 35.02388394 | E29: 0 | F29: 35.02388394 | G29: 10.31111606 | H29: 0 | I29: 0 | J29: 10.31111606 | K29: 973.7902718 | L29: 0 | M29: 10.31111606 | O29: 3 | P29: 30 | BB29: 3
A30: h13 | B30: =IF($C$10=2012,profiles!C17,IF($C$10=2013,profiles!E17,IF($C$10=2014,profiles!G17,IF($C$10=2015,profiles!I17,IF($C$10=2016,profiles!K17))))) -> 46.286 | C30: =IF($C$10=2012,profiles!D17,IF($C$10=2013,profiles!F17,IF($C$10=2014,profiles!H17,IF($C$10=2015,profiles!J17,IF($C$10=2016,profiles!L17))))) -> 0.1841422421 | D30: 36.82844843 | E30: 0 | F30: 36.82844843 | G30: 9.457551572 | H30: 0 | I30: 0 | J30: 9.457551572 | K30: 963.5769332 | L30: 0 | M30: =B30-D30 -> 9.457551572 | O30: 4 | P30: 35 | BB30: 4
A31: h14 | B31: =IF($C$10=2012,profiles!C18,IF($C$10=2013,profiles!E18,IF($C$10=2014,profiles!G18,IF($C$10=2015,profiles!I18,IF($C$10=2016,profiles!K18))))) -> 45.686 | C31: =IF($C$10=2012,profiles!D18,IF($C$10=2013,profiles!F18,IF($C$10=2014,profiles!H18,IF($C$10=2015,profiles!J18,IF($C$10=2016,profiles!L18))))) -> 0.1782302294 | D31: 35.64604588 | E31: 0 | F31: 35.64604588 | G31: 10.03995412 | H31: 0 | I31: 0 | J31: 10.03995412 | K31: 952.7346501 | L31: 0 | M31: 10.03995412 | O31: 5 | P31: 40 | BB31: 5
A32: h15 | B32: =IF($C$10=2012,profiles!C19,IF($C$10=2013,profiles!E19,IF($C$10=2014,profiles!G19,IF($C$10=2015,profiles!I19,IF($C$10=2016,profiles!K19))))) -> 45.312 | C32: =IF($C$10=2012,profiles!D19,IF($C$10=2013,profiles!F19,IF($C$10=2014,profiles!H19,IF($C$10=2015,profiles!J19,IF($C$10=2016,profiles!L19))))) -> 0.1501592263 | D32: 30.03184526 | E32: 0 | F32: 30.03184526 | G32: 15.28015474 | H32: 0 | I32: 0 | J32: 15.28015474 | K32: 936.2334031 | L32: 0 | M32: 15.28015474 | O32: 6 | P32: 45 | BB32: 6
A33: h16 | B33: =IF($C$10=2012,profiles!C20,IF($C$10=2013,profiles!E20,IF($C$10=2014,profiles!G20,IF($C$10=2015,profiles!I20,IF($C$10=2016,profiles!K20))))) -> 45.866 | C33: =IF($C$10=2012,profiles!D20,IF($C$10=2013,profiles!F20,IF($C$10=2014,profiles!H20,IF($C$10=2015,profiles!J20,IF($C$10=2016,profiles!L20))))) -> 0.1178127027 | D33: 23.56254054 | E33: 0 | F33: 23.56254054 | G33: 22.30345946 | H33: 0 | I33: 0 | J33: 22.30345946 | K33: 912.1475937 | L33: 0 | M33: 22.30345946 | O33: 7 | P33: 50 | BB33: 7
A34: h17 | B34: =IF($C$10=2012,profiles!C21,IF($C$10=2013,profiles!E21,IF($C$10=2014,profiles!G21,IF($C$10=2015,profiles!I21,IF($C$10=2016,profiles!K21))))) -> 48.899 | C34: =IF($C$10=2012,profiles!D21,IF($C$10=2013,profiles!F21,IF($C$10=2014,profiles!H21,IF($C$10=2015,profiles!J21,IF($C$10=2016,profiles!L21))))) -> 0.1216606711 | D34: 24.33213422 | E34: 0 | F34: 24.33213422 | G34: 24.56686578 | H34: 0 | I34: 0 | J34: 24.56686578 | K34: 885.6175011 | L34: 0 | M34: 24.56686578 | O34: 8 | P34: 55 | BB34: 8
A35: h18 | B35: =IF($C$10=2012,profiles!C22,IF($C$10=2013,profiles!E22,IF($C$10=2014,profiles!G22,IF($C$10=2015,profiles!I22,IF($C$10=2016,profiles!K22))))) -> 53.773 | C35: =IF($C$10=2012,profiles!D22,IF($C$10=2013,profiles!F22,IF($C$10=2014,profiles!H22,IF($C$10=2015,profiles!J22,IF($C$10=2016,profiles!L22))))) -> 0.1448221973 | D35: 28.96443946 | E35: 0 | F35: 28.96443946 | G35: 24.80856054 | H35: 0 | I35: 0 | J35: 24.80856054 | K35: 858.826399 | L35: 0 | M35: 24.80856054 | O35: 9 | P35: 60 | BB35: 9
A36: h19 | B36: =IF($C$10=2012,profiles!C23,IF($C$10=2013,profiles!E23,IF($C$10=2014,profiles!G23,IF($C$10=2015,profiles!I23,IF($C$10=2016,profiles!K23))))) -> 54.668 | C36: =IF($C$10=2012,profiles!D23,IF($C$10=2013,profiles!F23,IF($C$10=2014,profiles!H23,IF($C$10=2015,profiles!J23,IF($C$10=2016,profiles!L23))))) -> 0.1627056673 | D36: 32.54113346 | E36: 0 | F36: 32.54113346 | G36: 22.12686654 | H36: 0 | I36: 0 | J36: 22.12686654 | K36: 834.9312947 | L36: 0 | M36: 22.12686654 | O36: 10 | P36: 65 | BB36: 10
A37: h20 | B37: =IF($C$10=2012,profiles!C24,IF($C$10=2013,profiles!E24,IF($C$10=2014,profiles!G24,IF($C$10=2015,profiles!I24,IF($C$10=2016,profiles!K24))))) -> 53.75 | C37: =IF($C$10=2012,profiles!D24,IF($C$10=2013,profiles!F24,IF($C$10=2014,profiles!H24,IF($C$10=2015,profiles!J24,IF($C$10=2016,profiles!L24))))) -> 0.1821814 | D37: 36.43628 | E37: 0 | F37: 36.43628 | G37: 17.31372 | H37: 0 | I37: 0 | J37: 17.31372 | K37: 816.2339729 | L37: 0 | M37: 17.31372 | O37: 11 | P37: 70 | BB37: 11
A38: h21 | B38: =IF($C$10=2012,profiles!C25,IF($C$10=2013,profiles!E25,IF($C$10=2014,profiles!G25,IF($C$10=2015,profiles!I25,IF($C$10=2016,profiles!K25))))) -> 51.276 | C38: =IF($C$10=2012,profiles!D25,IF($C$10=2013,profiles!F25,IF($C$10=2014,profiles!H25,IF($C$10=2015,profiles!J25,IF($C$10=2016,profiles!L25))))) -> 0.1894202984 | D38: 37.88405968 | E38: 0 | F38: 37.88405968 | G38: 13.39194032 | H38: 0 | I38: 0 | J38: 13.39194032 | K38: 801.7718343 | L38: 0 | M38: 13.39194032 | O38: 12 | P38: 75 | BB38: 12
A39: h22 | B39: =IF($C$10=2012,profiles!C26,IF($C$10=2013,profiles!E26,IF($C$10=2014,profiles!G26,IF($C$10=2015,profiles!I26,IF($C$10=2016,profiles!K26))))) -> 49.765 | C39: =IF($C$10=2012,profiles!D26,IF($C$10=2013,profiles!F26,IF($C$10=2014,profiles!H26,IF($C$10=2015,profiles!J26,IF($C$10=2016,profiles!L26))))) -> 0.1913663974 | D39: 38.27327947 | E39: 0 | F39: 38.27327947 | G39: 11.49172053 | H39: 0 | I39: 0 | J39: 11.49172053 | K39: 789.361769 | L39: 0 | M39: 11.49172053 | O39: 13 | P39: 80 | BB39: 13
A40: h23 | B40: =IF($C$10=2012,profiles!C27,IF($C$10=2013,profiles!E27,IF($C$10=2014,profiles!G27,IF($C$10=2015,profiles!I27,IF($C$10=2016,profiles!K27))))) -> 49.157 | C40: =IF($C$10=2012,profiles!D27,IF($C$10=2013,profiles!F27,IF($C$10=2014,profiles!H27,IF($C$10=2015,profiles!J27,IF($C$10=2016,profiles!L27))))) -> 0.1990033614 | D40: 39.80067229 | E40: 0 | F40: 39.80067229 | G40: 9.356327711 | H40: 0 | I40: 0 | J40: 9.356327711 | K40: 779.2577434 | L40: 0 | M40: 9.356327711 | O40: 14 | P40: 85 | BB40: 14
A41: h24 | B41: =IF($C$10=2012,profiles!C28,IF($C$10=2013,profiles!E28,IF($C$10=2014,profiles!G28,IF($C$10=2015,profiles!I28,IF($C$10=2016,profiles!K28))))) -> 45.914 | C41: =IF($C$10=2012,profiles!D28,IF($C$10=2013,profiles!F28,IF($C$10=2014,profiles!H28,IF($C$10=2015,profiles!J28,IF($C$10=2016,profiles!L28))))) -> 0.2062717462 | D41: 41.25434924 | E41: 0 | F41: 41.25434924 | G41: 4.659650764 | H41: 0 | I41: 0 | J41: 4.659650764 | K41: 774.2257231 | L41: 0 | M41: 4.659650764 | O41: 15 | P41: 90 | BB41: 15
A42: h25 | B42: =IF($C$10=2012,profiles!C29,IF($C$10=2013,profiles!E29,IF($C$10=2014,profiles!G29,IF($C$10=2015,profiles!I29,IF($C$10=2016,profiles!K29))))) -> 42.526 | C42: =IF($C$10=2012,profiles!D29,IF($C$10=2013,profiles!F29,IF($C$10=2014,profiles!H29,IF($C$10=2015,profiles!J29,IF($C$10=2016,profiles!L29))))) -> 0.203098741 | D42: 40.61974821 | E42: 0 | F42: 40.61974821 | G42: 1.906251791 | H42: 0 | I42: 0 | J42: 1.906251791 | K42: 772.1671359 | L42: 0 | M42: 1.906251791 | O42: 16 | P42: 95 | BB42: 16
A43: h26 | B43: =IF($C$10=2012,profiles!C30,IF($C$10=2013,profiles!E30,IF($C$10=2014,profiles!G30,IF($C$10=2015,profiles!I30,IF($C$10=2016,profiles!K30))))) -> 40.282 | C43: =IF($C$10=2012,profiles!D30,IF($C$10=2013,profiles!F30,IF($C$10=2014,profiles!H30,IF($C$10=2015,profiles!J30,IF($C$10=2016,profiles!L30))))) -> 0.2038210927 | D43: 40.76421853 | E43: 0.4822185335 | F43: 40.282 | G43: 0 | H43: 0 | I43: 0.4822185335 | J43: 0 | K43: 772.5577329 | L43: 0 | M43: -0.4822185335 | Q43: 1 | R43: 2 | S43: 3 | T43: 4 | U43: 5 | V43: 6 | W43: 7 | X43: 8 | Y43: 9 | Z43: 10 | AA43: 11 | AB43: 12 | AC43: 13 | AD43: 14 | AE43: 15 | AF43: 16 | AG43: 17 | AH43: 18 | AI43: 19 | AJ43: 20 | AK43: 21 | AL43: 22 | AM43: 23 | AN43: 24 | AO43: 25 | AP43: 26 | AQ43: 27 | AR43: 28 | AS43: 29 | AT43: 30 | AU43: 31 | AV43: 32 | AW43: 33 | AX43: 34 | AY43: 35 | AZ43: 36 | BA43: 37
A44: h27 | B44: =IF($C$10=2012,profiles!C31,IF($C$10=2013,profiles!E31,IF($C$10=2014,profiles!G31,IF($C$10=2015,profiles!I31,IF($C$10=2016,profiles!K31))))) -> 39.623 | C44: =IF($C$10=2012,profiles!D31,IF($C$10=2013,profiles!F31,IF($C$10=2014,profiles!H31,IF($C$10=2015,profiles!J31,IF($C$10=2016,profiles!L31))))) -> 0.2078308813 | D44: 41.56617625 | E44: 1.943176254 | F44: 39.623 | G44: 0 | H44: 0 | I44: 1.943176254 | J44: 0 | K44: 774.1317056 | L44: 0 | M44: -1.943176254
A45: h28 | B45: =IF($C$10=2012,profiles!C32,IF($C$10=2013,profiles!E32,IF($C$10=2014,profiles!G32,IF($C$10=2015,profiles!I32,IF($C$10=2016,profiles!K32))))) -> 39.811 | C45: =IF($C$10=2012,profiles!D32,IF($C$10=2013,profiles!F32,IF($C$10=2014,profiles!H32,IF($C$10=2015,profiles!J32,IF($C$10=2016,profiles!L32))))) -> 0.2179732877 | D45: 43.59465755 | E45: 3.783657546 | F45: 39.811 | G45: 0 | H45: 0 | I45: 3.783657546 | J45: 0 | K45: 777.1964683 | L45: 0 | M45: -3.783657546
A46: h29 | B46: =IF($C$10=2012,profiles!C33,IF($C$10=2013,profiles!E33,IF($C$10=2014,profiles!G33,IF($C$10=2015,profiles!I33,IF($C$10=2016,profiles!K33))))) -> 41.111 | C46: =IF($C$10=2012,profiles!D33,IF($C$10=2013,profiles!F33,IF($C$10=2014,profiles!H33,IF($C$10=2015,profiles!J33,IF($C$10=2016,profiles!L33))))) -> 0.2210985641 | D46: 44.21971283 | E46: 3.108712828 | F46: 41.111 | G46: 0 | H46: 0 | I46: 3.108712828 | J46: 0 | K46: 779.7145256 | L46: 0 | M46: -3.108712828 | P46: Renewables installed in GW | Q46: Renewable curtailment in per mille or percent
A47: h30 | B47: =IF($C$10=2012,profiles!C34,IF($C$10=2013,profiles!E34,IF($C$10=2014,profiles!G34,IF($C$10=2015,profiles!I34,IF($C$10=2016,profiles!K34))))) -> 43.647 | C47: =IF($C$10=2012,profiles!D34,IF($C$10=2013,profiles!F34,IF($C$10=2014,profiles!H34,IF($C$10=2015,profiles!J34,IF($C$10=2016,profiles!L34))))) -> 0.2230002654 | D47: 44.60005307 | E47: 0.9530530707 | F47: 43.647 | G47: 0 | H47: 0 | I47: 0.9530530707 | J47: 0 | K47: 780.4864986 | L47: 0 | M47: -0.9530530707 | Q47: =10*Q48+$C$8*100 -> 0 | R47: =10*R48+$C$8*100 -> 5 | S47: 10 | T47: 15 | U47: 20 | V47: 25 | W47: 30 | X47: 35 | Y47: 40 | Z47: 45 | AA47: 50 | AB47: 55 | AC47: 60 | AD47: 65 | AE47: 70 | AF47: 75 | AG47: 80 | AH47: 85 | AI47: 90 | AJ47: 95 | AK47: 100 | AL47: 110 | AM47: 120 | AN47: 130 | AO47: 140 | AP47: 150 | AQ47: 160 | AR47: 170 | AS47: 180 | AT47: 190 | AU47: 200 | AV47: 250 | AW47: 300 | AX47: 350 | AY47: 400 | AZ47: 450 | BA47: 500
A48: h31 | B48: =IF($C$10=2012,profiles!C35,IF($C$10=2013,profiles!E35,IF($C$10=2014,profiles!G35,IF($C$10=2015,profiles!I35,IF($C$10=2016,profiles!K35))))) -> 48.77 | C48: =IF($C$10=2012,profiles!D35,IF($C$10=2013,profiles!F35,IF($C$10=2014,profiles!H35,IF($C$10=2015,profiles!J35,IF($C$10=2016,profiles!L35))))) -> 0.2315210661 | D48: 46.30421323 | E48: 0 | F48: 46.30421323 | G48: 2.465786774 | H48: 0 | I48: 0 | J48: 2.465786774 | K48: 777.8236619 | L48: 0 | M48: 2.465786774 | P48: vRES | Q48: 0 | R48: 0.5 | S48: 1 | T48: 1.5 | U48: 2 | V48: 2.5 | W48: 3 | X48: 3.5 | Y48: 4 | Z48: 4.5 | AA48: 5 | AB48: 5.5 | AC48: 6 | AD48: 6.5 | AE48: 7 | AF48: 7.5 | AG48: 8 | AH48: 8.5 | AI48: 9 | AJ48: 9.5 | AK48: 10 | AL48: 11 | AM48: 12 | AN48: 13 | AO48: 14 | AP48: 15 | AQ48: 16 | AR48: 17 | AS48: 18 | AT48: 19 | AU48: 20 | AV48: 25 | AW48: 30 | AX48: 35 | AY48: 40 | AZ48: 45 | BA48: 50
A49: h32 | B49: =IF($C$10=2012,profiles!C36,IF($C$10=2013,profiles!E36,IF($C$10=2014,profiles!G36,IF($C$10=2015,profiles!I36,IF($C$10=2016,profiles!K36))))) -> 54.751 | C49: =IF($C$10=2012,profiles!D36,IF($C$10=2013,profiles!F36,IF($C$10=2014,profiles!H36,IF($C$10=2015,profiles!J36,IF($C$10=2016,profiles!L36))))) -> 0.2338650234 | D49: 46.77300469 | E49: 0 | F49: 46.77300469 | G49: 7.977995312 | H49: 0 | I49: 0 | J49: 7.977995312 | K49: 769.2081162 | L49: 0 | M49: 7.977995312 | O49: 1 | P49: 20 | BB49: 1
A50: h33 | B50: =IF($C$10=2012,profiles!C37,IF($C$10=2013,profiles!E37,IF($C$10=2014,profiles!G37,IF($C$10=2015,profiles!I37,IF($C$10=2016,profiles!K37))))) -> 58.714 | C50: =IF($C$10=2012,profiles!D37,IF($C$10=2013,profiles!F37,IF($C$10=2014,profiles!H37,IF($C$10=2015,profiles!J37,IF($C$10=2016,profiles!L37))))) -> 0.2269363446 | D50: 45.38726892 | E50: 0 | F50: 45.38726892 | G50: 13.32673108 | H50: 0 | I50: 0 | J50: 13.32673108 | K50: 754.816398 | L50: 0 | M50: 13.32673108 | O50: 2 | P50: 25 | BB50: 2
A51: h34 | B51: =IF($C$10=2012,profiles!C38,IF($C$10=2013,profiles!E38,IF($C$10=2014,profiles!G38,IF($C$10=2015,profiles!I38,IF($C$10=2016,profiles!K38))))) -> 61.17 | C51: =IF($C$10=2012,profiles!D38,IF($C$10=2013,profiles!F38,IF($C$10=2014,profiles!H38,IF($C$10=2015,profiles!J38,IF($C$10=2016,profiles!L38))))) -> 0.2251230946 | D51: 45.02461892 | E51: 0 | F51: 45.02461892 | G51: 16.14538108 | H51: 0 | I51: 0 | J51: 16.14538108 | K51: 737.3807813 | L51: 0 | M51: 16.14538108 | O51: 3 | P51: 30 | BB51: 3
A52: h35 | B52: =IF($C$10=2012,profiles!C39,IF($C$10=2013,profiles!E39,IF($C$10=2014,profiles!G39,IF($C$10=2015,profiles!I39,IF($C$10=2016,profiles!K39))))) -> 62.828 | C52: =IF($C$10=2012,profiles!D39,IF($C$10=2013,profiles!F39,IF($C$10=2014,profiles!H39,IF($C$10=2015,profiles!J39,IF($C$10=2016,profiles!L39))))) -> 0.2326561901 | D52: 46.53123802 | E52: 0 | F52: 46.53123802 | G52: 16.29676198 | H52: 0 | I52: 0 | J52: 16.29676198 | K52: 719.7816863 | L52: 0 | M52: 16.29676198 | O52: 4 | P52: 35 | BB52: 4
A53: h36 | B53: =IF($C$10=2012,profiles!C40,IF($C$10=2013,profiles!E40,IF($C$10=2014,profiles!G40,IF($C$10=2015,profiles!I40,IF($C$10=2016,profiles!K40))))) -> 64.359 | C53: =IF($C$10=2012,profiles!D40,IF($C$10=2013,profiles!F40,IF($C$10=2014,profiles!H40,IF($C$10=2015,profiles!J40,IF($C$10=2016,profiles!L40))))) -> 0.2271427308 | D53: 45.42854616 | E53: 0 | F53: 45.42854616 | G53: 18.93045384 | H53: 0 | I53: 0 | J53: 18.93045384 | K53: 699.3384316 | L53: 0 | M53: 18.93045384 | O53: 5 | P53: 40 | BB53: 5
A54: h37 | B54: =IF($C$10=2012,profiles!C41,IF($C$10=2013,profiles!E41,IF($C$10=2014,profiles!G41,IF($C$10=2015,profiles!I41,IF($C$10=2016,profiles!K41))))) -> 64.611 | C54: =IF($C$10=2012,profiles!D41,IF($C$10=2013,profiles!F41,IF($C$10=2014,profiles!H41,IF($C$10=2015,profiles!J41,IF($C$10=2016,profiles!L41))))) -> 0.2251525784 | D54: 45.03051567 | E54: 0 | F54: 45.03051567 | G54: 19.58048433 | H54: 0 | I54: 0 | J54: 19.58048433 | K54: 678.1932002 | L54: 0 | M54: 19.58048433 | O54: 6 | P54: 45 | BB54: 6
A55: h38 | B55: =IF($C$10=2012,profiles!C42,IF($C$10=2013,profiles!E42,IF($C$10=2014,profiles!G42,IF($C$10=2015,profiles!I42,IF($C$10=2016,profiles!K42))))) -> 63.856 | C55: =IF($C$10=2012,profiles!D42,IF($C$10=2013,profiles!F42,IF($C$10=2014,profiles!H42,IF($C$10=2015,profiles!J42,IF($C$10=2016,profiles!L42))))) -> 0.224960934 | D55: 44.99218681 | E55: 0 | F55: 44.99218681 | G55: 18.86381319 | H55: 0 | I55: 0 | J55: 18.86381319 | K55: 657.8219116 | L55: 0 | M55: 18.86381319 | O55: 7 | P55: 50 | BB55: 7
A56: h39 | B56: =IF($C$10=2012,profiles!C43,IF($C$10=2013,profiles!E43,IF($C$10=2014,profiles!G43,IF($C$10=2015,profiles!I43,IF($C$10=2016,profiles!K43))))) -> 62.748 | C56: =IF($C$10=2012,profiles!D43,IF($C$10=2013,profiles!F43,IF($C$10=2014,profiles!H43,IF($C$10=2015,profiles!J43,IF($C$10=2016,profiles!L43))))) -> 0.2077129463 | D56: 41.54258926 | E56: 0 | F56: 41.54258926 | G56: 21.20541074 | H56: 0 | I56: 0 | J56: 21.20541074 | K56: 634.9219 | L56: 0 | M56: 21.20541074 | O56: 8 | P56: 55 | BB56: 8
A57: h40 | B57: =IF($C$10=2012,profiles!C44,IF($C$10=2013,profiles!E44,IF($C$10=2014,profiles!G44,IF($C$10=2015,profiles!I44,IF($C$10=2016,profiles!K44))))) -> 61.949 | C57: =IF($C$10=2012,profiles!D44,IF($C$10=2013,profiles!F44,IF($C$10=2014,profiles!H44,IF($C$10=2015,profiles!J44,IF($C$10=2016,profiles!L44))))) -> 0.1902585724 | D57: 38.05171448 | E57: 0 | F57: 38.05171448 | G57: 23.89728552 | H57: 0 | I57: 0 | J57: 23.89728552 | K57: 609.1148962 | L57: 0 | M57: 23.89728552 | O57: 9 | P57: 60 | BB57: 9
A58: h41 | B58: =IF($C$10=2012,profiles!C45,IF($C$10=2013,profiles!E45,IF($C$10=2014,profiles!G45,IF($C$10=2015,profiles!I45,IF($C$10=2016,profiles!K45))))) -> 63.371 | C58: =IF($C$10=2012,profiles!D45,IF($C$10=2013,profiles!F45,IF($C$10=2014,profiles!H45,IF($C$10=2015,profiles!J45,IF($C$10=2016,profiles!L45))))) -> 0.1765486334 | D58: 35.30972669 | E58: 0 | F58: 35.30972669 | G58: 28.06127331 | H58: 0 | I58: 0 | J58: 28.06127331 | K58: 578.8111453 | L58: 0 | M58: 28.06127331 | O58: 10 | P58: 65 | BB58: 10
A59: h42 | B59: =IF($C$10=2012,profiles!C46,IF($C$10=2013,profiles!E46,IF($C$10=2014,profiles!G46,IF($C$10=2015,profiles!I46,IF($C$10=2016,profiles!K46))))) -> 66.788 | C59: =IF($C$10=2012,profiles!D46,IF($C$10=2013,profiles!F46,IF($C$10=2014,profiles!H46,IF($C$10=2015,profiles!J46,IF($C$10=2016,profiles!L46))))) -> 0.1832561842 | D59: 36.65123684 | E59: 0 | F59: 36.65123684 | G59: 30.13676316 | H59: 0 | I59: 0 | J59: 30.13676316 | K59: 546.2660447 | L59: 0 | M59: 30.13676316 | O59: 11 | P59: 70 | BB59: 11
A60: h43 | B60: =IF($C$10=2012,profiles!C47,IF($C$10=2013,profiles!E47,IF($C$10=2014,profiles!G47,IF($C$10=2015,profiles!I47,IF($C$10=2016,profiles!K47))))) -> 66.641 | C60: =IF($C$10=2012,profiles!D47,IF($C$10=2013,profiles!F47,IF($C$10=2014,profiles!H47,IF($C$10=2015,profiles!J47,IF($C$10=2016,profiles!L47))))) -> 0.1765486334 | D60: 35.30972669 | E60: 0 | F60: 35.30972669 | G60: 31.33127331 | H60: 0 | I60: 0 | J60: 31.33127331 | K60: 512.4309764 | L60: 0 | M60: 31.33127331 | O60: 12 | P60: 75 | BB60: 12
A61: h44 | B61: =IF($C$10=2012,profiles!C48,IF($C$10=2013,profiles!E48,IF($C$10=2014,profiles!G48,IF($C$10=2015,profiles!I48,IF($C$10=2016,profiles!K48))))) -> 64.675 | C61: =IF($C$10=2012,profiles!D48,IF($C$10=2013,profiles!F48,IF($C$10=2014,profiles!H48,IF($C$10=2015,profiles!J48,IF($C$10=2016,profiles!L48))))) -> 0.1718607188 | D61: 34.37214376 | E61: 0 | F61: 34.37214376 | G61: 30.30285624 | H61: 0 | I61: 0 | J61: 30.30285624 | K61: 479.7065096 | L61: 0 | M61: 30.30285624 | O61: 13 | P61: 80 | BB61: 13
A62: h45 | B62: =IF($C$10=2012,profiles!C49,IF($C$10=2013,profiles!E49,IF($C$10=2014,profiles!G49,IF($C$10=2015,profiles!I49,IF($C$10=2016,profiles!K49))))) -> 60.728 | C62: =IF($C$10=2012,profiles!D49,IF($C$10=2013,profiles!F49,IF($C$10=2014,profiles!H49,IF($C$10=2015,profiles!J49,IF($C$10=2016,profiles!L49))))) -> 0.158357166 | D62: 31.6714332 | E62: 0 | F62: 31.6714332 | G62: 29.0565668 | H62: 0 | I62: 0 | J62: 29.0565668 | K62: 448.3279277 | L62: 0 | M62: 29.0565668 | O62: 14 | P62: 85 | BB62: 14
A63: h46 | B63: =IF($C$10=2012,profiles!C50,IF($C$10=2013,profiles!E50,IF($C$10=2014,profiles!G50,IF($C$10=2015,profiles!I50,IF($C$10=2016,profiles!K50))))) -> 57.857 | C63: =IF($C$10=2012,profiles!D50,IF($C$10=2013,profiles!F50,IF($C$10=2014,profiles!H50,IF($C$10=2015,profiles!J50,IF($C$10=2016,profiles!L50))))) -> 0.1442344547 | D63: 28.84689094 | E63: 0 | F63: 28.84689094 | G63: 29.01010906 | H63: 0 | I63: 0 | J63: 29.01010906 | K63: 416.9995162 | L63: 0 | M63: 29.01010906 | O63: 15 | P63: 90 | BB63: 15
A64: h47 | B64: =IF($C$10=2012,profiles!C51,IF($C$10=2013,profiles!E51,IF($C$10=2014,profiles!G51,IF($C$10=2015,profiles!I51,IF($C$10=2016,profiles!K51))))) -> 55.726 | C64: =IF($C$10=2012,profiles!D51,IF($C$10=2013,profiles!F51,IF($C$10=2014,profiles!H51,IF($C$10=2015,profiles!J51,IF($C$10=2016,profiles!L51))))) -> 0.1295662942 | D64: 25.91325884 | E64: 0 | F64: 25.91325884 | G64: 29.81274116 | H64: 0 | I64: 0 | J64: 29.81274116 | K64: 384.8043314 | L64: 0 | M64: 29.81274116 | O64: 16 | P64: 95 | BB64: 16
A65: h48 | B65: =IF($C$10=2012,profiles!C52,IF($C$10=2013,profiles!E52,IF($C$10=2014,profiles!G52,IF($C$10=2015,profiles!I52,IF($C$10=2016,profiles!K52))))) -> 51.517 | C65: =IF($C$10=2012,profiles!D52,IF($C$10=2013,profiles!F52,IF($C$10=2014,profiles!H52,IF($C$10=2015,profiles!J52,IF($C$10=2016,profiles!L52))))) -> 0.1295220686 | D65: 25.90441372 | E65: 0 | F65: 25.90441372 | G65: 25.61258628 | H65: 0 | I65: 0 | J65: 25.61258628 | K65: 357.1449509 | L65: 0 | M65: 25.61258628 | Q65: 1 | R65: 2 | S65: 3 | T65: 4 | U65: 5 | V65: 6 | W65: 7 | X65: 8 | Y65: 9 | Z65: 10 | AA65: 11 | AB65: 12 | AC65: 13 | AD65: 14 | AE65: 15 | AF65: 16 | AG65: 17 | AH65: 18 | AI65: 19 | AJ65: 20 | AK65: 21 | AL65: 22 | AM65: 23 | AN65: 24 | AO65: 25 | AP65: 26 | AQ65: 27 | AR65: 28 | AS65: 29 | AT65: 30 | AU65: 31 | AV65: 32 | AW65: 33 | AX65: 34 | AY65: 35 | AZ65: 36 | BA65: 37
A66: h49 | B66: =IF($C$10=2012,profiles!C53,IF($C$10=2013,profiles!E53,IF($C$10=2014,profiles!G53,IF($C$10=2015,profiles!I53,IF($C$10=2016,profiles!K53))))) -> 47.568 | C66: =IF($C$10=2012,profiles!D53,IF($C$10=2013,profiles!F53,IF($C$10=2014,profiles!H53,IF($C$10=2015,profiles!J53,IF($C$10=2016,profiles!L53))))) -> 0.1166932013 | D66: 23.33864025 | E66: 0 | F66: 23.33864025 | G66: 24.22935975 | H66: 0 | I66: 0 | J66: 24.22935975 | K66: 330.9793357 | L66: 0 | M66: 24.22935975
A67: h50 | B67: =IF($C$10=2012,profiles!C54,IF($C$10=2013,profiles!E54,IF($C$10=2014,profiles!G54,IF($C$10=2015,profiles!I54,IF($C$10=2016,profiles!K54))))) -> 45.16 | C67: =IF($C$10=2012,profiles!D54,IF($C$10=2013,profiles!F54,IF($C$10=2014,profiles!H54,IF($C$10=2015,profiles!J54,IF($C$10=2016,profiles!L54))))) -> 0.1162509582 | D67: 23.25019164 | E67: 0 | F67: 23.25019164 | G67: 21.90980836 | H67: 0 | I67: 0 | J67: 21.90980836 | K67: 307.3186355 | L67: 0 | M67: 21.90980836
A68: h51 | B68: =IF($C$10=2012,profiles!C55,IF($C$10=2013,profiles!E55,IF($C$10=2014,profiles!G55,IF($C$10=2015,profiles!I55,IF($C$10=2016,profiles!K55))))) -> 44.392 | C68: =IF($C$10=2012,profiles!D55,IF($C$10=2013,profiles!F55,IF($C$10=2014,profiles!H55,IF($C$10=2015,profiles!J55,IF($C$10=2016,profiles!L55))))) -> 0.1202901114 | D68: 24.05802229 | E68: 0 | F68: 24.05802229 | G68: 20.33397771 | H68: 0 | I68: 0 | J68: 20.33397771 | K68: 285.3596963 | L68: 0 | M68: 20.33397771 | P68: Curtailment threshold in GW | Q68: Renewable curtailment in per mille or percent
A69: h52 | B69: =IF($C$10=2012,profiles!C56,IF($C$10=2013,profiles!E56,IF($C$10=2014,profiles!G56,IF($C$10=2015,profiles!I56,IF($C$10=2016,profiles!K56))))) -> 44.79 | C69: =IF($C$10=2012,profiles!D56,IF($C$10=2013,profiles!F56,IF($C$10=2014,profiles!H56,IF($C$10=2015,profiles!J56,IF($C$10=2016,profiles!L56))))) -> 0.1351937025 | D69: 27.03874049 | E69: 0 | F69: 27.03874049 | G69: 17.75125951 | H69: 0 | I69: 0 | J69: 17.75125951 | K69: 266.1898696 | L69: 0 | M69: 17.75125951 | Q69: =10*Q70+$C$8*100 -> 0 | R69: =10*R70+$C$8*100 -> 5 | S69: 10 | T69: 15 | U69: 20 | V69: 25 | W69: 30 | X69: 35 | Y69: 40 | Z69: 45 | AA69: 50 | AB69: 55 | AC69: 60 | AD69: 65 | AE69: 70 | AF69: 75 | AG69: 80 | AH69: 85 | AI69: 90 | AJ69: 95 | AK69: 100 | AL69: 110 | AM69: 120 | AN69: 130 | AO69: 140 | AP69: 150 | AQ69: 160 | AR69: 170 | AS69: 180 | AT69: 190 | AU69: 200 | AV69: 250 | AW69: 300 | AX69: 350 | AY69: 400 | AZ69: 450 | BA69: 500
A70: h53 | B70: =IF($C$10=2012,profiles!C57,IF($C$10=2013,profiles!E57,IF($C$10=2014,profiles!G57,IF($C$10=2015,profiles!I57,IF($C$10=2016,profiles!K57))))) -> 45.856 | C70: =IF($C$10=2012,profiles!D57,IF($C$10=2013,profiles!F57,IF($C$10=2014,profiles!H57,IF($C$10=2015,profiles!J57,IF($C$10=2016,profiles!L57))))) -> 0.1485347013 | D70: 29.70694027 | E70: 0 | F70: 29.70694027 | G70: 16.14905973 | H70: 0 | I70: 0 | J70: 16.14905973 | K70: 248.7502802 | L70: 0 | M70: 16.14905973 | P70: vRES | Q70: 0 | R70: 0.5 | S70: 1 | T70: 1.5 | U70: 2 | V70: 2.5 | W70: 3 | X70: 3.5 | Y70: 4 | Z70: 4.5 | AA70: 5 | AB70: 5.5 | AC70: 6 | AD70: 6.5 | AE70: 7 | AF70: 7.5 | AG70: 8 | AH70: 8.5 | AI70: 9 | AJ70: 9.5 | AK70: 10 | AL70: 11 | AM70: 12 | AN70: 13 | AO70: 14 | AP70: 15 | AQ70: 16 | AR70: 17 | AS70: 18 | AT70: 19 | AU70: 20 | AV70: 25 | AW70: 30 | AX70: 35 | AY70: 40 | AZ70: 45 | BA70: 50
A71: h54 | B71: =IF($C$10=2012,profiles!C58,IF($C$10=2013,profiles!E58,IF($C$10=2014,profiles!G58,IF($C$10=2015,profiles!I58,IF($C$10=2016,profiles!K58))))) -> 48.075 | C71: =IF($C$10=2012,profiles!D58,IF($C$10=2013,profiles!F58,IF($C$10=2014,profiles!H58,IF($C$10=2015,profiles!J58,IF($C$10=2016,profiles!L58))))) -> 0.1629813079 | D71: 32.59626157 | E71: 0 | F71: 32.59626157 | G71: 15.47873843 | H71: 0 | I71: 0 | J71: 15.47873843 | K71: 232.03458 | L71: 0 | M71: 15.47873843 | O71: 1 | P71: 20 | BB71: 1
A72: h55 | B72: =IF($C$10=2012,profiles!C59,IF($C$10=2013,profiles!E59,IF($C$10=2014,profiles!G59,IF($C$10=2015,profiles!I59,IF($C$10=2016,profiles!K59))))) -> 52.214 | C72: =IF($C$10=2012,profiles!D59,IF($C$10=2013,profiles!F59,IF($C$10=2014,profiles!H59,IF($C$10=2015,profiles!J59,IF($C$10=2016,profiles!L59))))) -> 0.179344301 | D72: 35.86886019 | E72: 0 | F72: 35.86886019 | G72: 16.34513981 | H72: 0 | I72: 0 | J72: 16.34513981 | K72: 214.3832411 | L72: 0 | M72: 16.34513981 | O72: 2 | P72: 25 | BB72: 2
A73: h56 | B73: =IF($C$10=2012,profiles!C60,IF($C$10=2013,profiles!E60,IF($C$10=2014,profiles!G60,IF($C$10=2015,profiles!I60,IF($C$10=2016,profiles!K60))))) -> 57.632 | C73: =IF($C$10=2012,profiles!D60,IF($C$10=2013,profiles!F60,IF($C$10=2014,profiles!H60,IF($C$10=2015,profiles!J60,IF($C$10=2016,profiles!L60))))) -> 0.1920956424 | D73: 38.41912849 | E73: 0 | F73: 38.41912849 | G73: 19.21287151 | H73: 0 | I73: 0 | J73: 19.21287151 | K73: 193.6349997 | L73: 0 | M73: 19.21287151 | O73: 3 | P73: 30 | BB73: 3
A74: h57 | B74: =IF($C$10=2012,profiles!C61,IF($C$10=2013,profiles!E61,IF($C$10=2014,profiles!G61,IF($C$10=2015,profiles!I61,IF($C$10=2016,profiles!K61))))) -> 60.834 | C74: =IF($C$10=2012,profiles!D61,IF($C$10=2013,profiles!F61,IF($C$10=2014,profiles!H61,IF($C$10=2015,profiles!J61,IF($C$10=2016,profiles!L61))))) -> 0.2123061501 | D74: 42.46123003 | E74: 0 | F74: 42.46123003 | G74: 18.37276997 | H74: 0 | I74: 0 | J74: 18.37276997 | K74: 173.7939954 | L74: 0 | M74: 18.37276997 | O74: 4 | P74: 35 | BB74: 4
A75: h58 | B75: =IF($C$10=2012,profiles!C62,IF($C$10=2013,profiles!E62,IF($C$10=2014,profiles!G62,IF($C$10=2015,profiles!I62,IF($C$10=2016,profiles!K62))))) -> 62.5 | C75: =IF($C$10=2012,profiles!D62,IF($C$10=2013,profiles!F62,IF($C$10=2014,profiles!H62,IF($C$10=2015,profiles!J62,IF($C$10=2016,profiles!L62))))) -> 0.2446193761 | D75: 48.92387523 | E75: 0 | F75: 48.92387523 | G75: 13.57612477 | H75: 0 | I75: 0 | J75: 13.57612477 | K75: 159.1329536 | L75: 0 | M75: 13.57612477 | O75: 5 | P75: 40 | BB75: 5
A76: h59 | B76: =IF($C$10=2012,profiles!C63,IF($C$10=2013,profiles!E63,IF($C$10=2014,profiles!G63,IF($C$10=2015,profiles!I63,IF($C$10=2016,profiles!K63))))) -> 63.736 | C76: =IF($C$10=2012,profiles!D63,IF($C$10=2013,profiles!F63,IF($C$10=2014,profiles!H63,IF($C$10=2015,profiles!J63,IF($C$10=2016,profiles!L63))))) -> 0.2818120172 | D76: 56.36240344 | E76: 0 | F76: 56.36240344 | G76: 7.373596556 | H76: 0 | I76: 0 | J76: 7.373596556 | K76: 151.1701063 | L76: 0 | M76: 7.373596556 | O76: 6 | P76: 45 | BB76: 6
A77: h60 | B77: =IF($C$10=2012,profiles!C64,IF($C$10=2013,profiles!E64,IF($C$10=2014,profiles!G64,IF($C$10=2015,profiles!I64,IF($C$10=2016,profiles!K64))))) -> 65.227 | C77: =IF($C$10=2012,profiles!D64,IF($C$10=2013,profiles!F64,IF($C$10=2014,profiles!H64,IF($C$10=2015,profiles!J64,IF($C$10=2016,profiles!L64))))) -> 0.294607583 | D77: 58.9215166 | E77: 0 | F77: 58.9215166 | G77: 6.305483401 | H77: 0 | I77: 0 | J77: 6.305483401 | K77: 144.360729 | L77: 0 | M77: 6.305483401 | O77: 7 | P77: 50 | BB77: 7
A78: h61 | B78: =IF($C$10=2012,profiles!C65,IF($C$10=2013,profiles!E65,IF($C$10=2014,profiles!G65,IF($C$10=2015,profiles!I65,IF($C$10=2016,profiles!K65))))) -> 65.331 | C78: =IF($C$10=2012,profiles!D65,IF($C$10=2013,profiles!F65,IF($C$10=2014,profiles!H65,IF($C$10=2015,profiles!J65,IF($C$10=2016,profiles!L65))))) -> 0.282549089 | D78: 56.5098178 | E78: 0 | F78: 56.5098178 | G78: 8.821182204 | H78: 0 | I78: 0 | J78: 8.821182204 | K78: 134.8346143 | L78: 0 | M78: 8.821182204 | O78: 8 | P78: 55 | BB78: 8
A79: h62 | B79: =IF($C$10=2012,profiles!C66,IF($C$10=2013,profiles!E66,IF($C$10=2014,profiles!G66,IF($C$10=2015,profiles!I66,IF($C$10=2016,profiles!K66))))) -> 63.621 | C79: =IF($C$10=2012,profiles!D66,IF($C$10=2013,profiles!F66,IF($C$10=2014,profiles!H66,IF($C$10=2015,profiles!J66,IF($C$10=2016,profiles!L66))))) -> 0.2777286397 | D79: 55.54572793 | E79: 0 | F79: 55.54572793 | G79: 8.075272068 | H79: 0 | I79: 0 | J79: 8.075272068 | K79: 126.1140181 | L79: 0 | M79: 8.075272068 | O79: 9 | P79: 60 | BB79: 9
A80: h63 | B80: =IF($C$10=2012,profiles!C67,IF($C$10=2013,profiles!E67,IF($C$10=2014,profiles!G67,IF($C$10=2015,profiles!I67,IF($C$10=2016,profiles!K67))))) -> 62.233 | C80: =IF($C$10=2012,profiles!D67,IF($C$10=2013,profiles!F67,IF($C$10=2014,profiles!H67,IF($C$10=2015,profiles!J67,IF($C$10=2016,profiles!L67))))) -> 0.2644908308 | D80: 52.89816617 | E80: 0 | F80: 52.89816617 | G80: 9.334833835 | H80: 0 | I80: 0 | J80: 9.334833835 | K80: 116.033204 | L80: 0 | M80: 9.334833835 | O80: 10 | P80: 65 | BB80: 10
A81: h64 | B81: =IF($C$10=2012,profiles!C68,IF($C$10=2013,profiles!E68,IF($C$10=2014,profiles!G68,IF($C$10=2015,profiles!I68,IF($C$10=2016,profiles!K68))))) -> 61.768 | C81: =IF($C$10=2012,profiles!D68,IF($C$10=2013,profiles!F68,IF($C$10=2014,profiles!H68,IF($C$10=2015,profiles!J68,IF($C$10=2016,profiles!L68))))) -> 0.2435874757 | D81: 48.71749514 | E81: 0 | F81: 48.71749514 | G81: 13.05050486 | H81: 0 | I81: 0 | J81: 13.05050486 | K81: 101.9397863 | L81: 0 | M81: 13.05050486 | O81: 11 | P81: 70 | BB81: 11
A82: h65 | B82: =IF($C$10=2012,profiles!C69,IF($C$10=2013,profiles!E69,IF($C$10=2014,profiles!G69,IF($C$10=2015,profiles!I69,IF($C$10=2016,profiles!K69))))) -> 63.372 | C82: =IF($C$10=2012,profiles!D69,IF($C$10=2013,profiles!F69,IF($C$10=2014,profiles!H69,IF($C$10=2015,profiles!J69,IF($C$10=2016,profiles!L69))))) -> 0.2265316351 | D82: 45.30632702 | E82: =D82-F82 -> 0 | F82: =MIN(D82,B82) -> 45.30632702 | G82: =B82-F82 -> 18.06567298 | H82: =-MIN(-E82+$C$3,0) -> 0 | I82: =E82-H82 -> 0 | J82: 18.06567298 | K82: 82.4304202 | L82: 0 | M82: 18.06567298 | O82: 12 | P82: 75 | BB82: 12
A83: h66 | B83: =IF($C$10=2012,profiles!C70,IF($C$10=2013,profiles!E70,IF($C$10=2014,profiles!G70,IF($C$10=2015,profiles!I70,IF($C$10=2016,profiles!K70))))) -> 66.851 | C83: =IF($C$10=2012,profiles!D70,IF($C$10=2013,profiles!F70,IF($C$10=2014,profiles!H70,IF($C$10=2015,profiles!J70,IF($C$10=2016,profiles!L70))))) -> 0.217008668 | D83: =C83*$C$2 -> 43.40173359 | E83: 0 | F83: 43.40173359 | G83: 23.44926641 | H83: 0 | I83: 0 | J83: 23.44926641 | K83: 57.10723833 | L83: =MAX(G83-J83,0) -> 0 | M83: =B83-D83 -> 23.44926641 | O83: 13 | P83: 80 | BB83: 13
A84: h67 | B84: =IF($C$10=2012,profiles!C71,IF($C$10=2013,profiles!E71,IF($C$10=2014,profiles!G71,IF($C$10=2015,profiles!I71,IF($C$10=2016,profiles!K71))))) -> 66.745 | C84: =IF($C$10=2012,profiles!D71,IF($C$10=2013,profiles!F71,IF($C$10=2014,profiles!H71,IF($C$10=2015,profiles!J71,IF($C$10=2016,profiles!L71))))) -> 0.2352733062 | D84: 47.05466124 | E84: 0 | F84: 47.05466124 | G84: 19.69033876 | H84: 0 | I84: 0 | J84: 19.69033876 | K84: =K83+I84*$F$2-J84/$F$3 -> 35.84337358 | L84: 0 | M84: 19.69033876 | O84: 14 | P84: 85 | BB84: 14
A85: h68 | B85: =IF($C$10=2012,profiles!C72,IF($C$10=2013,profiles!E72,IF($C$10=2014,profiles!G72,IF($C$10=2015,profiles!I72,IF($C$10=2016,profiles!K72))))) -> 64.4 | C85: =IF($C$10=2012,profiles!D72,IF($C$10=2013,profiles!F72,IF($C$10=2014,profiles!H72,IF($C$10=2015,profiles!J72,IF($C$10=2016,profiles!L72))))) -> 0.2337844213 | D85: 46.75688425 | E85: 0 | F85: 46.75688425 | G85: 17.64311575 | H85: 0 | I85: 0 | J85: 17.64311575 | K85: 16.79033282 | L85: 0 | M85: 17.64311575 | O85: 15 | P85: 90 | BB85: 15
A86: h69 | B86: =IF($C$10=2012,profiles!C73,IF($C$10=2013,profiles!E73,IF($C$10=2014,profiles!G73,IF($C$10=2015,profiles!I73,IF($C$10=2016,profiles!K73))))) -> 60.535 | C86: =IF($C$10=2012,profiles!D73,IF($C$10=2013,profiles!F73,IF($C$10=2014,profiles!H73,IF($C$10=2015,profiles!J73,IF($C$10=2016,profiles!L73))))) -> 0.2373076243 | D86: 47.46152485 | E86: 0 | F86: 47.46152485 | G86: 13.07347515 | H86: 0 | I86: 0 | J86: 13.07347515 | K86: 2.672109115 | L86: 0 | M86: 13.07347515 | O86: 16 | P86: 95 | BB86: 16
A87: h70 | B87: =IF($C$10=2012,profiles!C74,IF($C$10=2013,profiles!E74,IF($C$10=2014,profiles!G74,IF($C$10=2015,profiles!I74,IF($C$10=2016,profiles!K74))))) -> 57.791 | C87: =IF($C$10=2012,profiles!D74,IF($C$10=2013,profiles!F74,IF($C$10=2014,profiles!H74,IF($C$10=2015,profiles!J74,IF($C$10=2016,profiles!L74))))) -> 0.2505012088 | D87: 50.10024176 | E87: 0 | F87: 50.10024176 | G87: 7.69075824 | H87: 0 | I87: 0 | J87: 2.474373041 | K87: 0 | L87: 5.2163852 | M87: 7.69075824 | Q87: 1 | R87: 2 | S87: 3 | T87: 4 | U87: 5 | V87: 6 | W87: 7 | X87: 8 | Y87: 9 | Z87: 10 | AA87: 11 | AB87: 12 | AC87: 13 | AD87: 14 | AE87: 15 | AF87: 16 | AG87: 17 | AH87: 18 | AI87: 19 | AJ87: 20 | AK87: 21 | AL87: 22 | AM87: 23 | AN87: 24 | AO87: 25 | AP87: 26 | AQ87: 27 | AR87: 28 | AS87: 29 | AT87: 30 | AU87: 31 | AV87: 32 | AW87: 33 | AX87: 34 | AY87: 35 | AZ87: 36 | BA87: 37
A88: h71 | B88: =IF($C$10=2012,profiles!C75,IF($C$10=2013,profiles!E75,IF($C$10=2014,profiles!G75,IF($C$10=2015,profiles!I75,IF($C$10=2016,profiles!K75))))) -> 56.15 | C88: =IF($C$10=2012,profiles!D75,IF($C$10=2013,profiles!F75,IF($C$10=2014,profiles!H75,IF($C$10=2015,profiles!J75,IF($C$10=2016,profiles!L75))))) -> 0.2634294475 | D88: 52.6858895 | E88: 0 | F88: 52.6858895 | G88: 3.464110502 | H88: 0 | I88: 0 | J88: 0 | K88: 0 | L88: 3.464110502 | M88: 3.464110502
A89: h72 | B89: =IF($C$10=2012,profiles!C76,IF($C$10=2013,profiles!E76,IF($C$10=2014,profiles!G76,IF($C$10=2015,profiles!I76,IF($C$10=2016,profiles!K76))))) -> 52.401 | C89: =IF($C$10=2012,profiles!D76,IF($C$10=2013,profiles!F76,IF($C$10=2014,profiles!H76,IF($C$10=2015,profiles!J76,IF($C$10=2016,profiles!L76))))) -> 0.2744707825 | D89: 54.8941565 | E89: 2.493156495 | F89: 52.401 | G89: 0 | H89: 0 | I89: 2.493156495 | J89: =MIN(MAX(0,G89),K88*$F$3) -> 0 | K89: 2.019456761 | L89: 0 | M89: -2.493156495
A90: h73 | B90: =IF($C$10=2012,profiles!C77,IF($C$10=2013,profiles!E77,IF($C$10=2014,profiles!G77,IF($C$10=2015,profiles!I77,IF($C$10=2016,profiles!K77))))) -> 48.162 | C90: =IF($C$10=2012,profiles!D77,IF($C$10=2013,profiles!F77,IF($C$10=2014,profiles!H77,IF($C$10=2015,profiles!J77,IF($C$10=2016,profiles!L77))))) -> 0.2733799163 | D90: 54.67598325 | E90: 6.513983254 | F90: 48.162 | G90: 0 | H90: 0 | I90: 6.513983254 | J90: 0 | K90: 7.295783197 | L90: 0 | M90: -6.513983254 | P90: Storage level first period | Q90: Renewable curtailment in per mille or percent
A91: h74 | B91: =IF($C$10=2012,profiles!C78,IF($C$10=2013,profiles!E78,IF($C$10=2014,profiles!G78,IF($C$10=2015,profiles!I78,IF($C$10=2016,profiles!K78))))) -> 45.86 | C91: =IF($C$10=2012,profiles!D78,IF($C$10=2013,profiles!F78,IF($C$10=2014,profiles!H78,IF($C$10=2015,profiles!J78,IF($C$10=2016,profiles!L78))))) -> 0.2626923757 | D91: 52.53847515 | E91: 6.678475146 | F91: 45.86 | G91: 0 | H91: 0 | I91: 6.678475146 | J91: 0 | K91: 12.70534806 | L91: 0 | M91: -6.678475146 | Q91: =10*Q92+$C$8*100 -> 0 | R91: =10*R92+$C$8*100 -> 5 | S91: 10 | T91: 15 | U91: 20 | V91: 25 | W91: 30 | X91: 35 | Y91: 40 | Z91: 45 | AA91: 50 | AB91: 55 | AC91: 60 | AD91: 65 | AE91: 70 | AF91: 75 | AG91: 80 | AH91: 85 | AI91: 90 | AJ91: 95 | AK91: 100 | AL91: 110 | AM91: 120 | AN91: 130 | AO91: 140 | AP91: 150 | AQ91: 160 | AR91: 170 | AS91: 180 | AT91: 190 | AU91: 200 | AV91: 250 | AW91: 300 | AX91: 350 | AY91: 400 | AZ91: 450 | BA91: 500
A92: h75 | B92: =IF($C$10=2012,profiles!C79,IF($C$10=2013,profiles!E79,IF($C$10=2014,profiles!G79,IF($C$10=2015,profiles!I79,IF($C$10=2016,profiles!K79))))) -> 44.57 | C92: =IF($C$10=2012,profiles!D79,IF($C$10=2013,profiles!F79,IF($C$10=2014,profiles!H79,IF($C$10=2015,profiles!J79,IF($C$10=2016,profiles!L79))))) -> 0.25308096 | D92: 50.61619199 | E92: 6.046191992 | F92: 44.57 | G92: 0 | H92: 0 | I92: 6.046191992 | J92: 0 | K92: 17.60276358 | L92: 0 | M92: -6.046191992 | P92: vRES | Q92: 0 | R92: 0.5 | S92: 1 | T92: 1.5 | U92: 2 | V92: 2.5 | W92: 3 | X92: 3.5 | Y92: 4 | Z92: 4.5 | AA92: 5 | AB92: 5.5 | AC92: 6 | AD92: 6.5 | AE92: 7 | AF92: 7.5 | AG92: 8 | AH92: 8.5 | AI92: 9 | AJ92: 9.5 | AK92: 10 | AL92: 11 | AM92: 12 | AN92: 13 | AO92: 14 | AP92: 15 | AQ92: 16 | AR92: 17 | AS92: 18 | AT92: 19 | AU92: 20 | AV92: 25 | AW92: 30 | AX92: 35 | AY92: 40 | AZ92: 45 | BA92: 50
A93: h76 | B93: =IF($C$10=2012,profiles!C80,IF($C$10=2013,profiles!E80,IF($C$10=2014,profiles!G80,IF($C$10=2015,profiles!I80,IF($C$10=2016,profiles!K80))))) -> 44.45 | C93: =IF($C$10=2012,profiles!D80,IF($C$10=2013,profiles!F80,IF($C$10=2014,profiles!H80,IF($C$10=2015,profiles!J80,IF($C$10=2016,profiles!L80))))) -> 0.2457249838 | D93: 49.14499676 | E93: 4.694996757 | F93: 44.45 | G93: 0 | H93: 0 | I93: 4.694996757 | J93: 0 | K93: 21.40571095 | L93: 0 | M93: -4.694996757 | O93: 1 | P93: 20 | BB93: 1
A94: h77 | B94: =IF($C$10=2012,profiles!C81,IF($C$10=2013,profiles!E81,IF($C$10=2014,profiles!G81,IF($C$10=2015,profiles!I81,IF($C$10=2016,profiles!K81))))) -> 44.816 | C94: =IF($C$10=2012,profiles!D81,IF($C$10=2013,profiles!F81,IF($C$10=2014,profiles!H81,IF($C$10=2015,profiles!J81,IF($C$10=2016,profiles!L81))))) -> 0.237602453 | D94: 47.52049059 | E94: 2.704490595 | F94: 44.816 | G94: 0 | H94: 0 | I94: 2.704490595 | J94: 0 | K94: 23.59634833 | L94: 0 | M94: -2.704490595 | O94: 2 | P94: 25 | BB94: 2
A95: h78 | B95: =IF($C$10=2012,profiles!C82,IF($C$10=2013,profiles!E82,IF($C$10=2014,profiles!G82,IF($C$10=2015,profiles!I82,IF($C$10=2016,profiles!K82))))) -> 44.81 | C95: =IF($C$10=2012,profiles!D82,IF($C$10=2013,profiles!F82,IF($C$10=2014,profiles!H82,IF($C$10=2015,profiles!J82,IF($C$10=2016,profiles!L82))))) -> 0.2196326434 | D95: 43.92652869 | E95: 0 | F95: 43.92652869 | G95: 0.8834713132 | H95: 0 | I95: 0 | J95: 0.8834713132 | K95: 22.64227564 | L95: 0 | M95: 0.8834713132 | O95: 3 | P95: 30 | BB95: 3
A96: h79 | B96: =IF($C$10=2012,profiles!C83,IF($C$10=2013,profiles!E83,IF($C$10=2014,profiles!G83,IF($C$10=2015,profiles!I83,IF($C$10=2016,profiles!K83))))) -> 45.266 | C96: =IF($C$10=2012,profiles!D83,IF($C$10=2013,profiles!F83,IF($C$10=2014,profiles!H83,IF($C$10=2015,profiles!J83,IF($C$10=2016,profiles!L83))))) -> 0.2108762309 | D96: 42.17524618 | E96: 0 | F96: 42.17524618 | G96: 3.090753818 | H96: 0 | I96: 0 | J96: 3.090753818 | K96: 19.30452854 | L96: 0 | M96: 3.090753818 | O96: 4 | P96: 35 | BB96: 4
A97: h80 | B97: =IF($C$10=2012,profiles!C84,IF($C$10=2013,profiles!E84,IF($C$10=2014,profiles!G84,IF($C$10=2015,profiles!I84,IF($C$10=2016,profiles!K84))))) -> 48.147 | C97: =IF($C$10=2012,profiles!D84,IF($C$10=2013,profiles!F84,IF($C$10=2014,profiles!H84,IF($C$10=2015,profiles!J84,IF($C$10=2016,profiles!L84))))) -> 0.1896043399 | D97: 37.92086798 | E97: 0 | F97: 37.92086798 | G97: 10.22613202 | H97: 0 | I97: 0 | J97: 10.22613202 | K97: 8.261189418 | L97: 0 | M97: 10.22613202 | O97: 5 | P97: 40 | BB97: 5
A98: h81 | B98: =IF($C$10=2012,profiles!C85,IF($C$10=2013,profiles!E85,IF($C$10=2014,profiles!G85,IF($C$10=2015,profiles!I85,IF($C$10=2016,profiles!K85))))) -> 51.522 | C98: =IF($C$10=2012,profiles!D85,IF($C$10=2013,profiles!F85,IF($C$10=2014,profiles!H85,IF($C$10=2015,profiles!J85,IF($C$10=2016,profiles!L85))))) -> 0.1767203255 | D98: 35.3440651 | E98: 0 | F98: 35.3440651 | G98: 16.1779349 | H98: 0 | I98: 0 | J98: 7.649861401 | K98: 0 | L98: 8.5280735 | M98: 16.1779349 | O98: 6 | P98: 45 | BB98: 6
A99: h82 | B99: =IF($C$10=2012,profiles!C86,IF($C$10=2013,profiles!E86,IF($C$10=2014,profiles!G86,IF($C$10=2015,profiles!I86,IF($C$10=2016,profiles!K86))))) -> 55.13 | C99: =IF($C$10=2012,profiles!D86,IF($C$10=2013,profiles!F86,IF($C$10=2014,profiles!H86,IF($C$10=2015,profiles!J86,IF($C$10=2016,profiles!L86))))) -> 0.1833981956 | D99: 36.67963913 | E99: 0 | F99: 36.67963913 | G99: 18.45036087 | H99: 0 | I99: 0 | J99: 0 | K99: 0 | L99: 18.45036087 | M99: 18.45036087 | O99: 7 | P99: 50 | BB99: 7
A100: h83 | B100: =IF($C$10=2012,profiles!C87,IF($C$10=2013,profiles!E87,IF($C$10=2014,profiles!G87,IF($C$10=2015,profiles!I87,IF($C$10=2016,profiles!K87))))) -> 57.453 | C100: =IF($C$10=2012,profiles!D87,IF($C$10=2013,profiles!F87,IF($C$10=2014,profiles!H87,IF($C$10=2015,profiles!J87,IF($C$10=2016,profiles!L87))))) -> 0.1907099475 | D100: 38.1419895 | E100: 0 | F100: 38.1419895 | G100: 19.3110105 | H100: 0 | I100: 0 | J100: 0 | K100: 0 | L100: 19.3110105 | M100: 19.3110105 | O100: 8 | P100: 55 | BB100: 8
A101: h84 | B101: =IF($C$10=2012,profiles!C88,IF($C$10=2013,profiles!E88,IF($C$10=2014,profiles!G88,IF($C$10=2015,profiles!I88,IF($C$10=2016,profiles!K88))))) -> 59.022 | C101: =IF($C$10=2012,profiles!D88,IF($C$10=2013,profiles!F88,IF($C$10=2014,profiles!H88,IF($C$10=2015,profiles!J88,IF($C$10=2016,profiles!L88))))) -> 0.1801698213 | D101: 36.03396427 | E101: 0 | F101: 36.03396427 | G101: 22.98803573 | H101: 0 | I101: 0 | J101: 0 | K101: 0 | L101: 22.98803573 | M101: 22.98803573 | O101: 9 | P101: 60 | BB101: 9
A102: h85 | B102: =IF($C$10=2012,profiles!C89,IF($C$10=2013,profiles!E89,IF($C$10=2014,profiles!G89,IF($C$10=2015,profiles!I89,IF($C$10=2016,profiles!K89))))) -> 58.857 | C102: =IF($C$10=2012,profiles!D89,IF($C$10=2013,profiles!F89,IF($C$10=2014,profiles!H89,IF($C$10=2015,profiles!J89,IF($C$10=2016,profiles!L89))))) -> 0.1589863789 | D102: 31.79727578 | E102: 0 | F102: 31.79727578 | G102: 27.05972422 | H102: 0 | I102: 0 | J102: 0 | K102: 0 | L102: 27.05972422 | M102: 27.05972422 | O102: 10 | P102: 65 | BB102: 10
A103: h86 | B103: =IF($C$10=2012,profiles!C90,IF($C$10=2013,profiles!E90,IF($C$10=2014,profiles!G90,IF($C$10=2015,profiles!I90,IF($C$10=2016,profiles!K90))))) -> 57.597 | C103: =IF($C$10=2012,profiles!D90,IF($C$10=2013,profiles!F90,IF($C$10=2014,profiles!H90,IF($C$10=2015,profiles!J90,IF($C$10=2016,profiles!L90))))) -> 0.142932956 | D103: 28.58659119 | E103: 0 | F103: 28.58659119 | G103: 29.01040881 | H103: 0 | I103: 0 | J103: 0 | K103: 0 | L103: 29.01040881 | M103: 29.01040881 | O103: 11 | P103: 70 | BB103: 11
A104: h87 | B104: =IF($C$10=2012,profiles!C91,IF($C$10=2013,profiles!E91,IF($C$10=2014,profiles!G91,IF($C$10=2015,profiles!I91,IF($C$10=2016,profiles!K91))))) -> 56.415 | C104: =IF($C$10=2012,profiles!D91,IF($C$10=2013,profiles!F91,IF($C$10=2014,profiles!H91,IF($C$10=2015,profiles!J91,IF($C$10=2016,profiles!L91))))) -> 0.1285600566 | D104: 25.71201132 | E104: 0 | F104: 25.71201132 | G104: 30.70298868 | H104: 0 | I104: 0 | J104: 0 | K104: 0 | L104: 30.70298868 | M104: 30.70298868 | O104: 12 | P104: 75 | BB104: 12
A105: h88 | B105: =IF($C$10=2012,profiles!C92,IF($C$10=2013,profiles!E92,IF($C$10=2014,profiles!G92,IF($C$10=2015,profiles!I92,IF($C$10=2016,profiles!K92))))) -> 56.43 | C105: =IF($C$10=2012,profiles!D92,IF($C$10=2013,profiles!F92,IF($C$10=2014,profiles!H92,IF($C$10=2015,profiles!J92,IF($C$10=2016,profiles!L92))))) -> 0.1297983372 | D105: 25.95966743 | E105: 0 | F105: 25.95966743 | G105: 30.47033257 | H105: 0 | I105: 0 | J105: 0 | K105: 0 | L105: 30.47033257 | M105: 30.47033257 | O105: 13 | P105: 80 | BB105: 13
A106: h89 | B106: =IF($C$10=2012,profiles!C93,IF($C$10=2013,profiles!E93,IF($C$10=2014,profiles!G93,IF($C$10=2015,profiles!I93,IF($C$10=2016,profiles!K93))))) -> 58.724 | C106: =IF($C$10=2012,profiles!D93,IF($C$10=2013,profiles!F93,IF($C$10=2014,profiles!H93,IF($C$10=2015,profiles!J93,IF($C$10=2016,profiles!L93))))) -> 0.1365646559 | D106: 27.31293119 | E106: 0 | F106: 27.31293119 | G106: 31.41106881 | H106: 0 | I106: 0 | J106: 0 | K106: 0 | L106: 31.41106881 | M106: 31.41106881 | O106: 14 | P106: 85 | BB106: 14
A107: h90 | B107: =IF($C$10=2012,profiles!C94,IF($C$10=2013,profiles!E94,IF($C$10=2014,profiles!G94,IF($C$10=2015,profiles!I94,IF($C$10=2016,profiles!K94))))) -> 62.204 | C107: =IF($C$10=2012,profiles!D94,IF($C$10=2013,profiles!F94,IF($C$10=2014,profiles!H94,IF($C$10=2015,profiles!J94,IF($C$10=2016,profiles!L94))))) -> 0.1522348016 | D107: 30.44696032 | E107: 0 | F107: 30.44696032 | G107: 31.75703968 | H107: 0 | I107: 0 | J107: 0 | K107: 0 | L107: 31.75703968 | M107: 31.75703968 | O107: 15 | P107: 90 | BB107: 15
A108: h91 | B108: =IF($C$10=2012,profiles!C95,IF($C$10=2013,profiles!E95,IF($C$10=2014,profiles!G95,IF($C$10=2015,profiles!I95,IF($C$10=2016,profiles!K95))))) -> 62.41 | C108: =IF($C$10=2012,profiles!D95,IF($C$10=2013,profiles!F95,IF($C$10=2014,profiles!H95,IF($C$10=2015,profiles!J95,IF($C$10=2016,profiles!L95))))) -> 0.1537236865 | D108: 30.74473731 | E108: 0 | F108: 30.74473731 | G108: 31.66526269 | H108: 0 | I108: 0 | J108: 0 | K108: 0 | L108: 31.66526269 | M108: 31.66526269 | O108: 16 | P108: 95 | BB108: 16
A109: h92 | B109: =IF($C$10=2012,profiles!C96,IF($C$10=2013,profiles!E96,IF($C$10=2014,profiles!G96,IF($C$10=2015,profiles!I96,IF($C$10=2016,profiles!K96))))) -> 60.109 | C109: =IF($C$10=2012,profiles!D96,IF($C$10=2013,profiles!F96,IF($C$10=2014,profiles!H96,IF($C$10=2015,profiles!J96,IF($C$10=2016,profiles!L96))))) -> 0.1484315113 | D109: 29.68630226 | E109: 0 | F109: 29.68630226 | G109: 30.42269774 | H109: 0 | I109: 0 | J109: 0 | K109: 0 | L109: 30.42269774 | M109: 30.42269774 | Q109: 1 | R109: 2 | S109: 3 | T109: 4 | U109: 5 | V109: 6 | W109: 7 | X109: 8 | Y109: 9 | Z109: 10 | AA109: 11 | AB109: 12 | AC109: 13 | AD109: 14 | AE109: 15 | AF109: 16 | AG109: 17 | AH109: 18 | AI109: 19 | AJ109: 20 | AK109: 21 | AL109: 22 | AM109: 23 | AN109: 24 | AO109: 25 | AP109: 26 | AQ109: 27 | AR109: 28 | AS109: 29 | AT109: 30 | AU109: 31 | AV109: 32 | AW109: 33 | AX109: 34 | AY109: 35 | AZ109: 36 | BA109: 37
A110: h93 | B110: =IF($C$10=2012,profiles!C97,IF($C$10=2013,profiles!E97,IF($C$10=2014,profiles!G97,IF($C$10=2015,profiles!I97,IF($C$10=2016,profiles!K97))))) -> 56.121 | C110: =IF($C$10=2012,profiles!D97,IF($C$10=2013,profiles!F97,IF($C$10=2014,profiles!H97,IF($C$10=2015,profiles!J97,IF($C$10=2016,profiles!L97))))) -> 0.1365056902 | D110: 27.30113804 | E110: 0 | F110: 27.30113804 | G110: 28.81986196 | H110: 0 | I110: 0 | J110: 0 | K110: 0 | L110: 28.81986196 | M110: 28.81986196
A111: h94 | B111: =IF($C$10=2012,profiles!C98,IF($C$10=2013,profiles!E98,IF($C$10=2014,profiles!G98,IF($C$10=2015,profiles!I98,IF($C$10=2016,profiles!K98))))) -> 53.635 | C111: =IF($C$10=2012,profiles!D98,IF($C$10=2013,profiles!F98,IF($C$10=2014,profiles!H98,IF($C$10=2015,profiles!J98,IF($C$10=2016,profiles!L98))))) -> 0.1256117696 | D111: 25.12235391 | E111: 0 | F111: 25.12235391 | G111: 28.51264609 | H111: 0 | I111: 0 | J111: 0 | K111: 0 | L111: 28.51264609 | M111: 28.51264609
A112: h95 | B112: =IF($C$10=2012,profiles!C99,IF($C$10=2013,profiles!E99,IF($C$10=2014,profiles!G99,IF($C$10=2015,profiles!I99,IF($C$10=2016,profiles!K99))))) -> 52.6 | C112: =IF($C$10=2012,profiles!D99,IF($C$10=2013,profiles!F99,IF($C$10=2014,profiles!H99,IF($C$10=2015,profiles!J99,IF($C$10=2016,profiles!L99))))) -> 0.1123887022 | D112: 22.47774043 | E112: 0 | F112: 22.47774043 | G112: 30.12225957 | H112: 0 | I112: 0 | J112: 0 | K112: 0 | L112: 30.12225957 | M112: 30.12225957 | P112: Renewables used in percent | Q112: Renewable curtailment in per mille or percent
A113: h96 | B113: =IF($C$10=2012,profiles!C100,IF($C$10=2013,profiles!E100,IF($C$10=2014,profiles!G100,IF($C$10=2015,profiles!I100,IF($C$10=2016,profiles!K100))))) -> 49.266 | C113: =IF($C$10=2012,profiles!D100,IF($C$10=2013,profiles!F100,IF($C$10=2014,profiles!H100,IF($C$10=2015,profiles!J100,IF($C$10=2016,profiles!L100))))) -> 0.1037502211 | D113: 20.75004422 | E113: 0 | F113: 20.75004422 | G113: 28.51595578 | H113: 0 | I113: 0 | J113: 0 | K113: 0 | L113: 28.51595578 | M113: 28.51595578 | Q113: =10*Q114 -> 0 | R113: 5 | S113: 10 | T113: 15 | U113: 20 | V113: 25 | W113: 30 | X113: 35 | Y113: 40 | Z113: 45 | AA113: 50 | AB113: 55 | AC113: 60 | AD113: 65 | AE113: 70 | AF113: 75 | AG113: 80 | AH113: 85 | AI113: 90 | AJ113: 95 | AK113: 100 | AL113: 110 | AM113: 120 | AN113: 130 | AO113: 140 | AP113: 150 | AQ113: 160 | AR113: 170 | AS113: 180 | AT113: 190 | AU113: 200 | AV113: 250 | AW113: 300 | AX113: 350 | AY113: 400 | AZ113: 450 | BA113: 500
A114: h97 | B114: =IF($C$10=2012,profiles!C101,IF($C$10=2013,profiles!E101,IF($C$10=2014,profiles!G101,IF($C$10=2015,profiles!I101,IF($C$10=2016,profiles!K101))))) -> 45.615 | C114: =IF($C$10=2012,profiles!D101,IF($C$10=2013,profiles!F101,IF($C$10=2014,profiles!H101,IF($C$10=2015,profiles!J101,IF($C$10=2016,profiles!L101))))) -> 0.08974585766 | D114: 17.94917153 | E114: 0 | F114: 17.94917153 | G114: 27.66582847 | H114: 0 | I114: 0 | J114: 0 | K114: 0 | L114: 27.66582847 | M114: 27.66582847 | P114: vRES | Q114: 0 | R114: 0.5 | S114: 1 | T114: 1.5 | U114: 2 | V114: 2.5 | W114: 3 | X114: 3.5 | Y114: 4 | Z114: 4.5 | AA114: 5 | AB114: 5.5 | AC114: 6 | AD114: 6.5 | AE114: 7 | AF114: 7.5 | AG114: 8 | AH114: 8.5 | AI114: 9 | AJ114: 9.5 | AK114: 10 | AL114: 11 | AM114: 12 | AN114: 13 | AO114: 14 | AP114: 15 | AQ114: 16 | AR114: 17 | AS114: 18 | AT114: 19 | AU114: 20 | AV114: 25 | AW114: 30 | AX114: 35 | AY114: 40 | AZ114: 45 | BA114: 50
A115: h98 | B115: =IF($C$10=2012,profiles!C102,IF($C$10=2013,profiles!E102,IF($C$10=2014,profiles!G102,IF($C$10=2015,profiles!I102,IF($C$10=2016,profiles!K102))))) -> 42.883 | C115: =IF($C$10=2012,profiles!D102,IF($C$10=2013,profiles!F102,IF($C$10=2014,profiles!H102,IF($C$10=2015,profiles!J102,IF($C$10=2016,profiles!L102))))) -> 0.08070935786 | D115: 16.14187157 | E115: 0 | F115: 16.14187157 | G115: 26.74112843 | H115: 0 | I115: 0 | J115: 0 | K115: 0 | L115: 26.74112843 | M115: 26.74112843 | O115: 1 | P115: 20 | BB115: 1
A116: h99 | B116: =IF($C$10=2012,profiles!C103,IF($C$10=2013,profiles!E103,IF($C$10=2014,profiles!G103,IF($C$10=2015,profiles!I103,IF($C$10=2016,profiles!K103))))) -> 41.518 | C116: =IF($C$10=2012,profiles!D103,IF($C$10=2013,profiles!F103,IF($C$10=2014,profiles!H103,IF($C$10=2015,profiles!J103,IF($C$10=2016,profiles!L103))))) -> 0.07786426086 | D116: 15.57285217 | E116: 0 | F116: 15.57285217 | G116: 25.94514783 | H116: 0 | I116: 0 | J116: 0 | K116: 0 | L116: 25.94514783 | M116: 25.94514783 | O116: 2 | P116: 25 | BB116: 2
A117: h100 | B117: =IF($C$10=2012,profiles!C104,IF($C$10=2013,profiles!E104,IF($C$10=2014,profiles!G104,IF($C$10=2015,profiles!I104,IF($C$10=2016,profiles!K104))))) -> 41.197 | C117: =IF($C$10=2012,profiles!D104,IF($C$10=2013,profiles!F104,IF($C$10=2014,profiles!H104,IF($C$10=2015,profiles!J104,IF($C$10=2016,profiles!L104))))) -> 0.07948581874 | D117: 15.89716375 | E117: 0 | F117: 15.89716375 | G117: 25.29983625 | H117: 0 | I117: 0 | J117: 0 | K117: 0 | L117: 25.29983625 | M117: 25.29983625 | O117: 3 | P117: 30 | BB117: 3
A118: h101 | B118: =IF($C$10=2012,profiles!C105,IF($C$10=2013,profiles!E105,IF($C$10=2014,profiles!G105,IF($C$10=2015,profiles!I105,IF($C$10=2016,profiles!K105))))) -> 41.429 | C118: =IF($C$10=2012,profiles!D105,IF($C$10=2013,profiles!F105,IF($C$10=2014,profiles!H105,IF($C$10=2015,profiles!J105,IF($C$10=2016,profiles!L105))))) -> 0.08435049236 | D118: 16.87009847 | E118: 0 | F118: 16.87009847 | G118: 24.55890153 | H118: 0 | I118: 0 | J118: 0 | K118: 0 | L118: 24.55890153 | M118: 24.55890153 | O118: 4 | P118: 35 | BB118: 4
A119: h102 | B119: =IF($C$10=2012,profiles!C106,IF($C$10=2013,profiles!E106,IF($C$10=2014,profiles!G106,IF($C$10=2015,profiles!I106,IF($C$10=2016,profiles!K106))))) -> 41.145 | C119: =IF($C$10=2012,profiles!D106,IF($C$10=2013,profiles!F106,IF($C$10=2014,profiles!H106,IF($C$10=2015,profiles!J106,IF($C$10=2016,profiles!L106))))) -> 0.08859602571 | D119: 17.71920514 | E119: 0 | F119: 17.71920514 | G119: 23.42579486 | H119: 0 | I119: 0 | J119: 0 | K119: 0 | L119: 23.42579486 | M119: 23.42579486 | O119: 5 | P119: 40 | BB119: 5
A120: h103 | B120: =IF($C$10=2012,profiles!C107,IF($C$10=2013,profiles!E107,IF($C$10=2014,profiles!G107,IF($C$10=2015,profiles!I107,IF($C$10=2016,profiles!K107))))) -> 40.357 | C120: =IF($C$10=2012,profiles!D107,IF($C$10=2013,profiles!F107,IF($C$10=2014,profiles!H107,IF($C$10=2015,profiles!J107,IF($C$10=2016,profiles!L107))))) -> 0.09735243823 | D120: 19.47048765 | E120: 0 | F120: 19.47048765 | G120: 20.88651235 | H120: 0 | I120: 0 | J120: 0 | K120: 0 | L120: 20.88651235 | M120: 20.88651235 | O120: 6 | P120: 45 | BB120: 6
A121: h104 | B121: =IF($C$10=2012,profiles!C108,IF($C$10=2013,profiles!E108,IF($C$10=2014,profiles!G108,IF($C$10=2015,profiles!I108,IF($C$10=2016,profiles!K108))))) -> 42.035 | C121: =IF($C$10=2012,profiles!D108,IF($C$10=2013,profiles!F108,IF($C$10=2014,profiles!H108,IF($C$10=2015,profiles!J108,IF($C$10=2016,profiles!L108))))) -> 0.0965858836 | D121: 19.31717672 | E121: 0 | F121: 19.31717672 | G121: 22.71782328 | H121: 0 | I121: 0 | J121: 0 | K121: 0 | L121: 22.71782328 | M121: 22.71782328 | O121: 7 | P121: 50 | BB121: 7
A122: h105 | B122: =IF($C$10=2012,profiles!C109,IF($C$10=2013,profiles!E109,IF($C$10=2014,profiles!G109,IF($C$10=2015,profiles!I109,IF($C$10=2016,profiles!K109))))) -> 44.757 | C122: =IF($C$10=2012,profiles!D109,IF($C$10=2013,profiles!F109,IF($C$10=2014,profiles!H109,IF($C$10=2015,profiles!J109,IF($C$10=2016,profiles!L109))))) -> 0.1081726517 | D122: 21.63453034 | E122: 0 | F122: 21.63453034 | G122: 23.12246966 | H122: 0 | I122: 0 | J122: 0 | K122: 0 | L122: 23.12246966 | M122: 23.12246966 | O122: 8 | P122: 55 | BB122: 8
A123: h106 | B123: =IF($C$10=2012,profiles!C110,IF($C$10=2013,profiles!E110,IF($C$10=2014,profiles!G110,IF($C$10=2015,profiles!I110,IF($C$10=2016,profiles!K110))))) -> 48.287 | C123: =IF($C$10=2012,profiles!D110,IF($C$10=2013,profiles!F110,IF($C$10=2014,profiles!H110,IF($C$10=2015,profiles!J110,IF($C$10=2016,profiles!L110))))) -> 0.1193761425 | D123: 23.87522849 | E123: 0 | F123: 23.87522849 | G123: 24.41177151 | H123: 0 | I123: 0 | J123: 0 | K123: 0 | L123: 24.41177151 | M123: 24.41177151 | O123: 9 | P123: 60 | BB123: 9
A124: h107 | B124: =IF($C$10=2012,profiles!C111,IF($C$10=2013,profiles!E111,IF($C$10=2014,profiles!G111,IF($C$10=2015,profiles!I111,IF($C$10=2016,profiles!K111))))) -> 51.415 | C124: =IF($C$10=2012,profiles!D111,IF($C$10=2013,profiles!F111,IF($C$10=2014,profiles!H111,IF($C$10=2015,profiles!J111,IF($C$10=2016,profiles!L111))))) -> 0.1317442066 | D124: 26.34884132 | E124: 0 | F124: 26.34884132 | G124: 25.06615868 | H124: 0 | I124: 0 | J124: 0 | K124: 0 | L124: 25.06615868 | M124: 25.06615868 | O124: 10 | P124: 65 | BB124: 10
A125: h108 | B125: =IF($C$10=2012,profiles!C112,IF($C$10=2013,profiles!E112,IF($C$10=2014,profiles!G112,IF($C$10=2015,profiles!I112,IF($C$10=2016,profiles!K112))))) -> 54.277 | C125: =IF($C$10=2012,profiles!D112,IF($C$10=2013,profiles!F112,IF($C$10=2014,profiles!H112,IF($C$10=2015,profiles!J112,IF($C$10=2016,profiles!L112))))) -> 0.143950115 | D125: 28.790023 | E125: 0 | F125: 28.790023 | G125: 25.486977 | H125: 0 | I125: 0 | J125: 0 | K125: 0 | L125: 25.486977 | M125: 25.486977 | O125: 11 | P125: 70 | BB125: 11
A126: h109 | B126: =IF($C$10=2012,profiles!C113,IF($C$10=2013,profiles!E113,IF($C$10=2014,profiles!G113,IF($C$10=2015,profiles!I113,IF($C$10=2016,profiles!K113))))) -> 54.325 | C126: =IF($C$10=2012,profiles!D113,IF($C$10=2013,profiles!F113,IF($C$10=2014,profiles!H113,IF($C$10=2015,profiles!J113,IF($C$10=2016,profiles!L113))))) -> 0.1627454449 | D126: 32.54908898 | E126: 0 | F126: 32.54908898 | G126: 21.77591102 | H126: 0 | I126: 0 | J126: 0 | K126: 0 | L126: 21.77591102 | M126: 21.77591102 | O126: 12 | P126: 75 | BB126: 12
A127: h110 | B127: =IF($C$10=2012,profiles!C114,IF($C$10=2013,profiles!E114,IF($C$10=2014,profiles!G114,IF($C$10=2015,profiles!I114,IF($C$10=2016,profiles!K114))))) -> 52.666 | C127: =IF($C$10=2012,profiles!D114,IF($C$10=2013,profiles!F114,IF($C$10=2014,profiles!H114,IF($C$10=2015,profiles!J114,IF($C$10=2016,profiles!L114))))) -> 0.1679049472 | D127: 33.58098945 | E127: 0 | F127: 33.58098945 | G127: 19.08501055 | H127: 0 | I127: 0 | J127: 0 | K127: 0 | L127: 19.08501055 | M127: 19.08501055 | O127: 13 | P127: 80 | BB127: 13
A128: h111 | B128: =IF($C$10=2012,profiles!C115,IF($C$10=2013,profiles!E115,IF($C$10=2014,profiles!G115,IF($C$10=2015,profiles!I115,IF($C$10=2016,profiles!K115))))) -> 51.048 | C128: =IF($C$10=2012,profiles!D115,IF($C$10=2013,profiles!F115,IF($C$10=2014,profiles!H115,IF($C$10=2015,profiles!J115,IF($C$10=2016,profiles!L115))))) -> 0.1483430627 | D128: 29.66861254 | E128: 0 | F128: 29.66861254 | G128: 21.37938746 | H128: 0 | I128: 0 | J128: 0 | K128: 0 | L128: 21.37938746 | M128: 21.37938746 | O128: 14 | P128: 85 | BB128: 14
A129: h112 | B129: =IF($C$10=2012,profiles!C116,IF($C$10=2013,profiles!E116,IF($C$10=2014,profiles!G116,IF($C$10=2015,profiles!I116,IF($C$10=2016,profiles!K116))))) -> 50.721 | C129: =IF($C$10=2012,profiles!D116,IF($C$10=2013,profiles!F116,IF($C$10=2014,profiles!H116,IF($C$10=2015,profiles!J116,IF($C$10=2016,profiles!L116))))) -> 0.1157202665 | D129: 23.14405331 | E129: 0 | F129: 23.14405331 | G129: 27.57694669 | H129: 0 | I129: 0 | J129: 0 | K129: 0 | L129: 27.57694669 | M129: 27.57694669 | O129: 15 | P129: 90 | BB129: 15
A130: h113 | B130: =IF($C$10=2012,profiles!C117,IF($C$10=2013,profiles!E117,IF($C$10=2014,profiles!G117,IF($C$10=2015,profiles!I117,IF($C$10=2016,profiles!K117))))) -> 52.782 | C130: =IF($C$10=2012,profiles!D117,IF($C$10=2013,profiles!F117,IF($C$10=2014,profiles!H117,IF($C$10=2015,profiles!J117,IF($C$10=2016,profiles!L117))))) -> 0.09574562179 | D130: 19.14912436 | E130: 0 | F130: 19.14912436 | G130: 33.63287564 | H130: 0 | I130: 0 | J130: 0 | K130: 0 | L130: 33.63287564 | M130: 33.63287564 | O130: 16 | P130: 95 | BB130: 16
A131: h114 | B131: =IF($C$10=2012,profiles!C118,IF($C$10=2013,profiles!E118,IF($C$10=2014,profiles!G118,IF($C$10=2015,profiles!I118,IF($C$10=2016,profiles!K118))))) -> 57.484 | C131: =IF($C$10=2012,profiles!D118,IF($C$10=2013,profiles!F118,IF($C$10=2014,profiles!H118,IF($C$10=2015,profiles!J118,IF($C$10=2016,profiles!L118))))) -> 0.1014063329 | D131: 20.28126658 | E131: 0 | F131: 20.28126658 | G131: 37.20273342 | H131: 0 | I131: 0 | J131: 0 | K131: 0 | L131: 37.20273342 | M131: 37.20273342 | Q131: 1 | R131: 2 | S131: 3 | T131: 4 | U131: 5 | V131: 6 | W131: 7 | X131: 8 | Y131: 9 | Z131: 10 | AA131: 11 | AB131: 12 | AC131: 13 | AD131: 14 | AE131: 15 | AF131: 16 | AG131: 17 | AH131: 18 | AI131: 19 | AJ131: 20 | AK131: 21 | AL131: 22 | AM131: 23 | AN131: 24 | AO131: 25 | AP131: 26 | AQ131: 27 | AR131: 28 | AS131: 29 | AT131: 30 | AU131: 31 | AV131: 32 | AW131: 33 | AX131: 34 | AY131: 35 | AZ131: 36 | BA131: 37
A132: h115 | B132: =IF($C$10=2012,profiles!C119,IF($C$10=2013,profiles!E119,IF($C$10=2014,profiles!G119,IF($C$10=2015,profiles!I119,IF($C$10=2016,profiles!K119))))) -> 58.97 | C132: =IF($C$10=2012,profiles!D119,IF($C$10=2013,profiles!F119,IF($C$10=2014,profiles!H119,IF($C$10=2015,profiles!J119,IF($C$10=2016,profiles!L119))))) -> 0.1141724158 | D132: 22.83448317 | E132: 0 | F132: 22.83448317 | G132: 36.13551683 | H132: 0 | I132: 0 | J132: 0 | K132: 0 | L132: 36.13551683 | M132: 36.13551683
A133: h116 | B133: =IF($C$10=2012,profiles!C120,IF($C$10=2013,profiles!E120,IF($C$10=2014,profiles!G120,IF($C$10=2015,profiles!I120,IF($C$10=2016,profiles!K120))))) -> 57.64 | C133: =IF($C$10=2012,profiles!D120,IF($C$10=2013,profiles!F120,IF($C$10=2014,profiles!H120,IF($C$10=2015,profiles!J120,IF($C$10=2016,profiles!L120))))) -> 0.1227224483 | D133: 24.54448965 | E133: 0 | F133: 24.54448965 | G133: 33.09551035 | H133: 0 | I133: 0 | J133: 0 | K133: 0 | L133: 33.09551035 | M133: 33.09551035
A134: h117 | B134: =IF($C$10=2012,profiles!C121,IF($C$10=2013,profiles!E121,IF($C$10=2014,profiles!G121,IF($C$10=2015,profiles!I121,IF($C$10=2016,profiles!K121))))) -> 54.888 | C134: =IF($C$10=2012,profiles!D121,IF($C$10=2013,profiles!F121,IF($C$10=2014,profiles!H121,IF($C$10=2015,profiles!J121,IF($C$10=2016,profiles!L121))))) -> 0.1273807418 | D134: 25.47614836 | E134: 0 | F134: 25.47614836 | G134: 29.41185164 | H134: 0 | I134: 0 | J134: 0 | K134: 0 | L134: 29.41185164 | M134: 29.41185164 | P134: Renewables consumed directly in percent | Q134: Renewable curtailment in per mille or percent
A135: h118 | B135: =IF($C$10=2012,profiles!C122,IF($C$10=2013,profiles!E122,IF($C$10=2014,profiles!G122,IF($C$10=2015,profiles!I122,IF($C$10=2016,profiles!K122))))) -> 53.247 | C135: =IF($C$10=2012,profiles!D122,IF($C$10=2013,profiles!F122,IF($C$10=2014,profiles!H122,IF($C$10=2015,profiles!J122,IF($C$10=2016,profiles!L122))))) -> 0.1396898402 | D135: 27.93796804 | E135: 0 | F135: 27.93796804 | G135: 25.30903196 | H135: 0 | I135: 0 | J135: 0 | K135: 0 | L135: 25.30903196 | M135: 25.30903196 | Q135: =10*Q136 -> 0 | R135: 5 | S135: 10 | T135: 15 | U135: 20 | V135: 25 | W135: 30 | X135: 35 | Y135: 40 | Z135: 45 | AA135: 50 | AB135: 55 | AC135: 60 | AD135: 65 | AE135: 70 | AF135: 75 | AG135: 80 | AH135: 85 | AI135: 90 | AJ135: 95 | AK135: 100 | AL135: 110 | AM135: 120 | AN135: 130 | AO135: 140 | AP135: 150 | AQ135: 160 | AR135: 170 | AS135: 180 | AT135: 190 | AU135: 200 | AV135: 250 | AW135: 300 | AX135: 350 | AY135: 400 | AZ135: 450 | BA135: 500
A136: h119 | B136: =IF($C$10=2012,profiles!C123,IF($C$10=2013,profiles!E123,IF($C$10=2014,profiles!G123,IF($C$10=2015,profiles!I123,IF($C$10=2016,profiles!K123))))) -> 53.082 | C136: =IF($C$10=2012,profiles!D123,IF($C$10=2013,profiles!F123,IF($C$10=2014,profiles!H123,IF($C$10=2015,profiles!J123,IF($C$10=2016,profiles!L123))))) -> 0.1419305384 | D136: 28.38610767 | E136: 0 | F136: 28.38610767 | G136: 24.69589233 | H136: 0 | I136: 0 | J136: 0 | K136: 0 | L136: 24.69589233 | M136: 24.69589233 | P136: vRES | Q136: 0 | R136: 0.5 | S136: 1 | T136: 1.5 | U136: 2 | V136: 2.5 | W136: 3 | X136: 3.5 | Y136: 4 | Z136: 4.5 | AA136: 5 | AB136: 5.5 | AC136: 6 | AD136: 6.5 | AE136: 7 | AF136: 7.5 | AG136: 8 | AH136: 8.5 | AI136: 9 | AJ136: 9.5 | AK136: 10 | AL136: 11 | AM136: 12 | AN136: 13 | AO136: 14 | AP136: 15 | AQ136: 16 | AR136: 17 | AS136: 18 | AT136: 19 | AU136: 20 | AV136: 25 | AW136: 30 | AX136: 35 | AY136: 40 | AZ136: 45 | BA136: 50
A137: h120 | B137: =IF($C$10=2012,profiles!C124,IF($C$10=2013,profiles!E124,IF($C$10=2014,profiles!G124,IF($C$10=2015,profiles!I124,IF($C$10=2016,profiles!K124))))) -> 49.625 | C137: =IF($C$10=2012,profiles!D124,IF($C$10=2013,profiles!F124,IF($C$10=2014,profiles!H124,IF($C$10=2015,profiles!J124,IF($C$10=2016,profiles!L124))))) -> 0.1507753995 | D137: 30.1550799 | E137: 0 | F137: 30.1550799 | G137: 19.4699201 | H137: 0 | I137: 0 | J137: 0 | K137: 0 | L137: 19.4699201 | M137: 19.4699201 | O137: 1 | P137: 20 | BB137: 1
A138: h121 | B138: =IF($C$10=2012,profiles!C125,IF($C$10=2013,profiles!E125,IF($C$10=2014,profiles!G125,IF($C$10=2015,profiles!I125,IF($C$10=2016,profiles!K125))))) -> 46.638 | C138: =IF($C$10=2012,profiles!D125,IF($C$10=2013,profiles!F125,IF($C$10=2014,profiles!H125,IF($C$10=2015,profiles!J125,IF($C$10=2016,profiles!L125))))) -> 0.1612969786 | D138: 32.25939573 | E138: 0 | F138: 32.25939573 | G138: 14.37860427 | H138: 0 | I138: 0 | J138: 0 | K138: 0 | L138: 14.37860427 | M138: 14.37860427 | O138: 2 | P138: 25 | BB138: 2
A139: h122 | B139: =IF($C$10=2012,profiles!C126,IF($C$10=2013,profiles!E126,IF($C$10=2014,profiles!G126,IF($C$10=2015,profiles!I126,IF($C$10=2016,profiles!K126))))) -> 44.887 | C139: =IF($C$10=2012,profiles!D126,IF($C$10=2013,profiles!F126,IF($C$10=2014,profiles!H126,IF($C$10=2015,profiles!J126,IF($C$10=2016,profiles!L126))))) -> 0.1737361828 | D139: 34.74723655 | E139: 0 | F139: 34.74723655 | G139: 10.13976345 | H139: 0 | I139: 0 | J139: 0 | K139: 0 | L139: 10.13976345 | M139: 10.13976345 | O139: 3 | P139: 30 | BB139: 3
A140: h123 | B140: =IF($C$10=2012,profiles!C127,IF($C$10=2013,profiles!E127,IF($C$10=2014,profiles!G127,IF($C$10=2015,profiles!I127,IF($C$10=2016,profiles!K127))))) -> 44.168 | C140: =IF($C$10=2012,profiles!D127,IF($C$10=2013,profiles!F127,IF($C$10=2014,profiles!H127,IF($C$10=2015,profiles!J127,IF($C$10=2016,profiles!L127))))) -> 0.1859395726 | D140: 37.18791452 | E140: 0 | F140: 37.18791452 | G140: 6.980085483 | H140: 0 | I140: 0 | J140: 0 | K140: 0 | L140: 6.980085483 | M140: 6.980085483 | O140: 4 | P140: 35 | BB140: 4
A141: h124 | B141: =IF($C$10=2012,profiles!C128,IF($C$10=2013,profiles!E128,IF($C$10=2014,profiles!G128,IF($C$10=2015,profiles!I128,IF($C$10=2016,profiles!K128))))) -> 44.44 | C141: =IF($C$10=2012,profiles!D128,IF($C$10=2013,profiles!F128,IF($C$10=2014,profiles!H128,IF($C$10=2015,profiles!J128,IF($C$10=2016,profiles!L128))))) -> 0.2030066323 | D141: 40.60132646 | E141: 0 | F141: 40.60132646 | G141: 3.838673545 | H141: 0 | I141: 0 | J141: 0 | K141: 0 | L141: 3.838673545 | M141: 3.838673545 | O141: 5 | P141: 40 | BB141: 5
A142: h125 | B142: =IF($C$10=2012,profiles!C129,IF($C$10=2013,profiles!E129,IF($C$10=2014,profiles!G129,IF($C$10=2015,profiles!I129,IF($C$10=2016,profiles!K129))))) -> 45.634 | C142: =IF($C$10=2012,profiles!D129,IF($C$10=2013,profiles!F129,IF($C$10=2014,profiles!H129,IF($C$10=2015,profiles!J129,IF($C$10=2016,profiles!L129))))) -> 0.2162711864 | D142: 43.25423729 | E142: 0 | F142: 43.25423729 | G142: 2.379762712 | H142: 0 | I142: 0 | J142: 0 | K142: 0 | L142: 2.379762712 | M142: 2.379762712 | O142: 6 | P142: 45 | BB142: 6
A143: h126 | B143: =IF($C$10=2012,profiles!C130,IF($C$10=2013,profiles!E130,IF($C$10=2014,profiles!G130,IF($C$10=2015,profiles!I130,IF($C$10=2016,profiles!K130))))) -> 48.087 | C143: =IF($C$10=2012,profiles!D130,IF($C$10=2013,profiles!F130,IF($C$10=2014,profiles!H130,IF($C$10=2015,profiles!J130,IF($C$10=2016,profiles!L130))))) -> 0.2318644068 | D143: 46.37288136 | E143: 0 | F143: 46.37288136 | G143: 1.714118644 | H143: 0 | I143: 0 | J143: 0 | K143: 0 | L143: 1.714118644 | M143: 1.714118644 | O143: 7 | P143: 50 | BB143: 7
A144: h127 | B144: =IF($C$10=2012,profiles!C131,IF($C$10=2013,profiles!E131,IF($C$10=2014,profiles!G131,IF($C$10=2015,profiles!I131,IF($C$10=2016,profiles!K131))))) -> 53.115 | C144: =IF($C$10=2012,profiles!D131,IF($C$10=2013,profiles!F131,IF($C$10=2014,profiles!H131,IF($C$10=2015,profiles!J131,IF($C$10=2016,profiles!L131))))) -> 0.2549889462 | D144: 50.99778924 | E144: 0 | F144: 50.99778924 | G144: 2.117210759 | H144: 0 | I144: 0 | J144: 0 | K144: 0 | L144: 2.117210759 | M144: 2.117210759 | O144: 8 | P144: 55 | BB144: 8
A145: h128 | B145: =IF($C$10=2012,profiles!C132,IF($C$10=2013,profiles!E132,IF($C$10=2014,profiles!G132,IF($C$10=2015,profiles!I132,IF($C$10=2016,profiles!K132))))) -> 58.809 | C145: =IF($C$10=2012,profiles!D132,IF($C$10=2013,profiles!F132,IF($C$10=2014,profiles!H132,IF($C$10=2015,profiles!J132,IF($C$10=2016,profiles!L132))))) -> 0.2633014001 | D145: 52.66028003 | E145: 0 | F145: 52.66028003 | G145: 6.148719971 | H145: 0 | I145: 0 | J145: 0 | K145: 0 | L145: 6.148719971 | M145: 6.148719971 | O145: 9 | P145: 60 | BB145: 9
A146: h129 | B146: =IF($C$10=2012,profiles!C133,IF($C$10=2013,profiles!E133,IF($C$10=2014,profiles!G133,IF($C$10=2015,profiles!I133,IF($C$10=2016,profiles!K133))))) -> 61.61 | C146: =IF($C$10=2012,profiles!D133,IF($C$10=2013,profiles!F133,IF($C$10=2014,profiles!H133,IF($C$10=2015,profiles!J133,IF($C$10=2016,profiles!L133))))) -> 0.281724392 | D146: 56.34487841 | E146: =D146-F146 -> 0 | F146: =MIN(D146,B146) -> 56.34487841 | G146: =B146-F146 -> 5.265121592 | H146: =-MIN(-E146+$C$3,0) -> 0 | I146: =E146-H146 -> 0 | J146: 0 | K146: 0 | L146: 5.265121592 | M146: 5.265121592 | O146: 10 | P146: 65 | BB146: 10
A147: h130 | B147: =IF($C$10=2012,profiles!C134,IF($C$10=2013,profiles!E134,IF($C$10=2014,profiles!G134,IF($C$10=2015,profiles!I134,IF($C$10=2016,profiles!K134))))) -> 62.994 | C147: =IF($C$10=2012,profiles!D134,IF($C$10=2013,profiles!F134,IF($C$10=2014,profiles!H134,IF($C$10=2015,profiles!J134,IF($C$10=2016,profiles!L134))))) -> 0.3075902727 | D147: =C147*$C$2 -> 61.51805453 | E147: 0 | F147: 61.51805453 | G147: 1.475945468 | H147: 0 | I147: 0 | J147: 0 | K147: 0 | L147: =MAX(G147-J147,0) -> 1.475945468 | M147: =B147-D147 -> 1.475945468 | O147: 11 | P147: 70 | BB147: 11
A148: h131 | B148: =IF($C$10=2012,profiles!C135,IF($C$10=2013,profiles!E135,IF($C$10=2014,profiles!G135,IF($C$10=2015,profiles!I135,IF($C$10=2016,profiles!K135))))) -> 64.752 | C148: =IF($C$10=2012,profiles!D135,IF($C$10=2013,profiles!F135,IF($C$10=2014,profiles!H135,IF($C$10=2015,profiles!J135,IF($C$10=2016,profiles!L135))))) -> 0.3370523213 | D148: 67.41046426 | E148: 2.658464259 | F148: 64.752 | G148: 0 | H148: 0 | I148: 2.658464259 | J148: 0 | K148: =K147+I148*$F$2-J148/$F$3 -> 2.15335605 | L148: 0 | M148: -2.658464259 | O148: 12 | P148: 75 | BB148: 12
A149: h132 | B149: =IF($C$10=2012,profiles!C136,IF($C$10=2013,profiles!E136,IF($C$10=2014,profiles!G136,IF($C$10=2015,profiles!I136,IF($C$10=2016,profiles!K136))))) -> 66.065 | C149: =IF($C$10=2012,profiles!D136,IF($C$10=2013,profiles!F136,IF($C$10=2014,profiles!H136,IF($C$10=2015,profiles!J136,IF($C$10=2016,profiles!L136))))) -> 0.3338098747 | D149: 66.76197494 | E149: 0.6969749447 | F149: 66.065 | G149: 0 | H149: 0 | I149: 0.6969749447 | J149: 0 | K149: 2.717905755 | L149: 0 | M149: -0.6969749447 | O149: 13 | P149: 80 | BB149: 13
A150: h133 | B150: =IF($C$10=2012,profiles!C137,IF($C$10=2013,profiles!E137,IF($C$10=2014,profiles!G137,IF($C$10=2015,profiles!I137,IF($C$10=2016,profiles!K137))))) -> 66.158 | C150: =IF($C$10=2012,profiles!D137,IF($C$10=2013,profiles!F137,IF($C$10=2014,profiles!H137,IF($C$10=2015,profiles!J137,IF($C$10=2016,profiles!L137))))) -> 0.3182903464 | D150: 63.65806927 | E150: 0 | F150: 63.65806927 | G150: 2.49993073 | H150: 0 | I150: 0 | J150: 2.49993073 | K150: 0.01819654417 | L150: 0 | M150: 2.49993073 | O150: 14 | P150: 85 | BB150: 14
A151: h134 | B151: =IF($C$10=2012,profiles!C138,IF($C$10=2013,profiles!E138,IF($C$10=2014,profiles!G138,IF($C$10=2015,profiles!I138,IF($C$10=2016,profiles!K138))))) -> 65.108 | C151: =IF($C$10=2012,profiles!D138,IF($C$10=2013,profiles!F138,IF($C$10=2014,profiles!H138,IF($C$10=2015,profiles!J138,IF($C$10=2016,profiles!L138))))) -> 0.2891525424 | D151: 57.83050847 | E151: 0 | F151: 57.83050847 | G151: 7.277491525 | H151: 0 | I151: 0 | J151: 0.0168499999 | K151: 0 | L151: 7.260641526 | M151: 7.277491525 | O151: 15 | P151: 90 | BB151: 15
A152: h135 | B152: =IF($C$10=2012,profiles!C139,IF($C$10=2013,profiles!E139,IF($C$10=2014,profiles!G139,IF($C$10=2015,profiles!I139,IF($C$10=2016,profiles!K139))))) -> 64.078 | C152: =IF($C$10=2012,profiles!D139,IF($C$10=2013,profiles!F139,IF($C$10=2014,profiles!H139,IF($C$10=2015,profiles!J139,IF($C$10=2016,profiles!L139))))) -> 0.2576713338 | D152: 51.53426676 | E152: 0 | F152: 51.53426676 | G152: 12.54373324 | H152: 0 | I152: 0 | J152: 0 | K152: 0 | L152: 12.54373324 | M152: 12.54373324 | O152: 16 | P152: 95 | BB152: 16
A153: h136 | B153: =IF($C$10=2012,profiles!C140,IF($C$10=2013,profiles!E140,IF($C$10=2014,profiles!G140,IF($C$10=2015,profiles!I140,IF($C$10=2016,profiles!K140))))) -> 63.531 | C153: =IF($C$10=2012,profiles!D140,IF($C$10=2013,profiles!F140,IF($C$10=2014,profiles!H140,IF($C$10=2015,profiles!J140,IF($C$10=2016,profiles!L140))))) -> 0.2147826087 | D153: 42.95652174 | E153: 0 | F153: 42.95652174 | G153: 20.57447826 | H153: 0 | I153: 0 | J153: =MIN(MAX(0,G153),K152*$F$3) -> 0 | K153: 0 | L153: 20.57447826 | M153: 20.57447826 | Q153: 1 | R153: 2 | S153: 3 | T153: 4 | U153: 5 | V153: 6 | W153: 7 | X153: 8 | Y153: 9 | Z153: 10 | AA153: 11 | AB153: 12 | AC153: 13 | AD153: 14 | AE153: 15 | AF153: 16 | AG153: 17 | AH153: 18 | AI153: 19 | AJ153: 20 | AK153: 21 | AL153: 22 | AM153: 23 | AN153: 24 | AO153: 25 | AP153: 26 | AQ153: 27 | AR153: 28 | AS153: 29 | AT153: 30 | AU153: 31 | AV153: 32 | AW153: 33 | AX153: 34 | AY153: 35 | AZ153: 36 | BA153: 37
A154: h137 | B154: =IF($C$10=2012,profiles!C141,IF($C$10=2013,profiles!E141,IF($C$10=2014,profiles!G141,IF($C$10=2015,profiles!I141,IF($C$10=2016,profiles!K141))))) -> 65.057 | C154: =IF($C$10=2012,profiles!D141,IF($C$10=2013,profiles!F141,IF($C$10=2014,profiles!H141,IF($C$10=2015,profiles!J141,IF($C$10=2016,profiles!L141))))) -> 0.1992483419 | D154: 39.84966839 | E154: 0 | F154: 39.84966839 | G154: 25.20733161 | H154: 0 | I154: 0 | J154: 0 | K154: 0 | L154: 25.20733161 | M154: 25.20733161
A155: h138 | B155: =IF($C$10=2012,profiles!C142,IF($C$10=2013,profiles!E142,IF($C$10=2014,profiles!G142,IF($C$10=2015,profiles!I142,IF($C$10=2016,profiles!K142))))) -> 68.861 | C155: =IF($C$10=2012,profiles!D142,IF($C$10=2013,profiles!F142,IF($C$10=2014,profiles!H142,IF($C$10=2015,profiles!J142,IF($C$10=2016,profiles!L142))))) -> 0.2113043478 | D155: 42.26086957 | E155: 0 | F155: 42.26086957 | G155: 26.60013043 | H155: 0 | I155: 0 | J155: 0 | K155: 0 | L155: 26.60013043 | M155: 26.60013043
A156: h139 | B156: =IF($C$10=2012,profiles!C143,IF($C$10=2013,profiles!E143,IF($C$10=2014,profiles!G143,IF($C$10=2015,profiles!I143,IF($C$10=2016,profiles!K143))))) -> 68.984 | C156: =IF($C$10=2012,profiles!D143,IF($C$10=2013,profiles!F143,IF($C$10=2014,profiles!H143,IF($C$10=2015,profiles!J143,IF($C$10=2016,profiles!L143))))) -> 0.2263522476 | D156: 45.27044952 | E156: 0 | F156: 45.27044952 | G156: 23.71355048 | H156: 0 | I156: 0 | J156: 0 | K156: 0 | L156: 23.71355048 | M156: 23.71355048 | P156: Conventional backup in GW | Q156: Renewable curtailment in per mille or percent
A157: h140 | B157: =IF($C$10=2012,profiles!C144,IF($C$10=2013,profiles!E144,IF($C$10=2014,profiles!G144,IF($C$10=2015,profiles!I144,IF($C$10=2016,profiles!K144))))) -> 67.189 | C157: =IF($C$10=2012,profiles!D144,IF($C$10=2013,profiles!F144,IF($C$10=2014,profiles!H144,IF($C$10=2015,profiles!J144,IF($C$10=2016,profiles!L144))))) -> 0.225055269 | D157: 45.0110538 | E157: 0 | F157: 45.0110538 | G157: 22.1779462 | H157: 0 | I157: 0 | J157: 0 | K157: 0 | L157: 22.1779462 | M157: 22.1779462 | Q157: =10*Q158 -> 0 | R157: 5 | S157: 10 | T157: 15 | U157: 20 | V157: 25 | W157: 30 | X157: 35 | Y157: 40 | Z157: 45 | AA157: 50 | AB157: 55 | AC157: 60 | AD157: 65 | AE157: 70 | AF157: 75 | AG157: 80 | AH157: 85 | AI157: 90 | AJ157: 95 | AK157: 100 | AL157: 110 | AM157: 120 | AN157: 130 | AO157: 140 | AP157: 150 | AQ157: 160 | AR157: 170 | AS157: 180 | AT157: 190 | AU157: 200 | AV157: 250 | AW157: 300 | AX157: 350 | AY157: 400 | AZ157: 450 | BA157: 500
A158: h141 | B158: =IF($C$10=2012,profiles!C145,IF($C$10=2013,profiles!E145,IF($C$10=2014,profiles!G145,IF($C$10=2015,profiles!I145,IF($C$10=2016,profiles!K145))))) -> 63.404 | C158: =IF($C$10=2012,profiles!D145,IF($C$10=2013,profiles!F145,IF($C$10=2014,profiles!H145,IF($C$10=2015,profiles!J145,IF($C$10=2016,profiles!L145))))) -> 0.2263080324 | D158: 45.26160648 | E158: 0 | F158: 45.26160648 | G158: 18.14239352 | H158: 0 | I158: 0 | J158: 0 | K158: 0 | L158: 18.14239352 | M158: 18.14239352 | P158: vRES | Q158: 0 | R158: 0.5 | S158: 1 | T158: 1.5 | U158: 2 | V158: 2.5 | W158: 3 | X158: 3.5 | Y158: 4 | Z158: 4.5 | AA158: 5 | AB158: 5.5 | AC158: 6 | AD158: 6.5 | AE158: 7 | AF158: 7.5 | AG158: 8 | AH158: 8.5 | AI158: 9 | AJ158: 9.5 | AK158: 10 | AL158: 11 | AM158: 12 | AN158: 13 | AO158: 14 | AP158: 15 | AQ158: 16 | AR158: 17 | AS158: 18 | AT158: 19 | AU158: 20 | AV158: 25 | AW158: 30 | AX158: 35 | AY158: 40 | AZ158: 45 | BA158: 50
A159: h142 | B159: =IF($C$10=2012,profiles!C146,IF($C$10=2013,profiles!E146,IF($C$10=2014,profiles!G146,IF($C$10=2015,profiles!I146,IF($C$10=2016,profiles!K146))))) -> 60.439 | C159: =IF($C$10=2012,profiles!D146,IF($C$10=2013,profiles!F146,IF($C$10=2014,profiles!H146,IF($C$10=2015,profiles!J146,IF($C$10=2016,profiles!L146))))) -> 0.2281945468 | D159: 45.63890936 | E159: 0 | F159: 45.63890936 | G159: 14.80009064 | H159: 0 | I159: 0 | J159: 0 | K159: 0 | L159: 14.80009064 | M159: 14.80009064 | O159: 1 | P159: 20 | BB159: 1
A160: h143 | B160: =IF($C$10=2012,profiles!C147,IF($C$10=2013,profiles!E147,IF($C$10=2014,profiles!G147,IF($C$10=2015,profiles!I147,IF($C$10=2016,profiles!K147))))) -> 57.997 | C160: =IF($C$10=2012,profiles!D147,IF($C$10=2013,profiles!F147,IF($C$10=2014,profiles!H147,IF($C$10=2015,profiles!J147,IF($C$10=2016,profiles!L147))))) -> 0.226440678 | D160: 45.28813559 | E160: 0 | F160: 45.28813559 | G160: 12.70886441 | H160: 0 | I160: 0 | J160: 0 | K160: 0 | L160: 12.70886441 | M160: 12.70886441 | O160: 2 | P160: 25 | BB160: 2
A161: h144 | B161: =IF($C$10=2012,profiles!C148,IF($C$10=2013,profiles!E148,IF($C$10=2014,profiles!G148,IF($C$10=2015,profiles!I148,IF($C$10=2016,profiles!K148))))) -> 53.333 | C161: =IF($C$10=2012,profiles!D148,IF($C$10=2013,profiles!F148,IF($C$10=2014,profiles!H148,IF($C$10=2015,profiles!J148,IF($C$10=2016,profiles!L148))))) -> 0.2217096536 | D161: 44.34193073 | E161: 0 | F161: 44.34193073 | G161: 8.99106927 | H161: 0 | I161: 0 | J161: 0 | K161: 0 | L161: 8.99106927 | M161: 8.99106927 | O161: 3 | P161: 30 | BB161: 3
A162: h145 | B162: =IF($C$10=2012,profiles!C149,IF($C$10=2013,profiles!E149,IF($C$10=2014,profiles!G149,IF($C$10=2015,profiles!I149,IF($C$10=2016,profiles!K149))))) -> 49.502 | C162: =IF($C$10=2012,profiles!D149,IF($C$10=2013,profiles!F149,IF($C$10=2014,profiles!H149,IF($C$10=2015,profiles!J149,IF($C$10=2016,profiles!L149))))) -> 0.2201556328 | D162: 44.03112657 | E162: 0 | F162: 44.03112657 | G162: 5.47087343 | H162: 0 | I162: 0 | J162: 0 | K162: 0 | L162: 5.47087343 | M162: 5.47087343 | O162: 4 | P162: 35 | BB162: 4
A163: h146 | B163: =IF($C$10=2012,profiles!C150,IF($C$10=2013,profiles!E150,IF($C$10=2014,profiles!G150,IF($C$10=2015,profiles!I150,IF($C$10=2016,profiles!K150))))) -> 47.506 | C163: =IF($C$10=2012,profiles!D150,IF($C$10=2013,profiles!F150,IF($C$10=2014,profiles!H150,IF($C$10=2015,profiles!J150,IF($C$10=2016,profiles!L150))))) -> 0.2321965454 | D163: 46.43930908 | E163: 0 | F163: 46.43930908 | G163: 1.066690916 | H163: 0 | I163: 0 | J163: 0 | K163: 0 | L163: 1.066690916 | M163: 1.066690916 | O163: 5 | P163: 40 | BB163: 5
A164: h147 | B164: =IF($C$10=2012,profiles!C151,IF($C$10=2013,profiles!E151,IF($C$10=2014,profiles!G151,IF($C$10=2015,profiles!I151,IF($C$10=2016,profiles!K151))))) -> 46.648 | C164: =IF($C$10=2012,profiles!D151,IF($C$10=2013,profiles!F151,IF($C$10=2014,profiles!H151,IF($C$10=2015,profiles!J151,IF($C$10=2016,profiles!L151))))) -> 0.2459912751 | D164: 49.19825503 | E164: 2.550255026 | F164: 46.648 | G164: 0 | H164: 0 | I164: 2.550255026 | J164: 0 | K164: 2.065706571 | L164: 0 | M164: -2.550255026 | O164: 6 | P164: 45 | BB164: 6
A165: h148 | B165: =IF($C$10=2012,profiles!C152,IF($C$10=2013,profiles!E152,IF($C$10=2014,profiles!G152,IF($C$10=2015,profiles!I152,IF($C$10=2016,profiles!K152))))) -> 47.16 | C165: =IF($C$10=2012,profiles!D152,IF($C$10=2013,profiles!F152,IF($C$10=2014,profiles!H152,IF($C$10=2015,profiles!J152,IF($C$10=2016,profiles!L152))))) -> 0.2598596946 | D165: 51.97193893 | E165: 4.811938926 | F165: 47.16 | G165: 0 | H165: 0 | I165: 4.811938926 | J165: 0 | K165: 5.963377101 | L165: 0 | M165: -4.811938926 | O165: 7 | P165: 50 | BB165: 7
A166: h149 | B166: =IF($C$10=2012,profiles!C153,IF($C$10=2013,profiles!E153,IF($C$10=2014,profiles!G153,IF($C$10=2015,profiles!I153,IF($C$10=2016,profiles!K153))))) -> 48.818 | C166: =IF($C$10=2012,profiles!D153,IF($C$10=2013,profiles!F153,IF($C$10=2014,profiles!H153,IF($C$10=2015,profiles!J153,IF($C$10=2016,profiles!L153))))) -> 0.259358604 | D166: 51.8717208 | E166: 3.053720804 | F166: 48.818 | G166: 0 | H166: 0 | I166: 3.053720804 | J166: 0 | K166: 8.436890952 | L166: 0 | M166: -3.053720804 | O166: 8 | P166: 55 | BB166: 8
A167: h150 | B167: =IF($C$10=2012,profiles!C154,IF($C$10=2013,profiles!E154,IF($C$10=2014,profiles!G154,IF($C$10=2015,profiles!I154,IF($C$10=2016,profiles!K154))))) -> 52.602 | C167: =IF($C$10=2012,profiles!D154,IF($C$10=2013,profiles!F154,IF($C$10=2014,profiles!H154,IF($C$10=2015,profiles!J154,IF($C$10=2016,profiles!L154))))) -> 0.2451512115 | D167: 49.03024229 | E167: 0 | F167: 49.03024229 | G167: 3.571757708 | H167: 0 | I167: 0 | J167: 3.571757708 | K167: 4.579701203 | L167: 0 | M167: 3.571757708 | O167: 9 | P167: 60 | BB167: 9
A168: h151 | B168: =IF($C$10=2012,profiles!C155,IF($C$10=2013,profiles!E155,IF($C$10=2014,profiles!G155,IF($C$10=2015,profiles!I155,IF($C$10=2016,profiles!K155))))) -> 60.868 | C168: =IF($C$10=2012,profiles!D155,IF($C$10=2013,profiles!F155,IF($C$10=2014,profiles!H155,IF($C$10=2015,profiles!J155,IF($C$10=2016,profiles!L155))))) -> 0.2556151624 | D168: 51.12303248 | E168: 0 | F168: 51.12303248 | G168: 9.744967518 | H168: 0 | I168: 0 | J168: 4.240803314 | K168: 0 | L168: 5.504164204 | M168: 9.744967518 | O168: 10 | P168: 65 | BB168: 10
A169: h152 | B169: =IF($C$10=2012,profiles!C156,IF($C$10=2013,profiles!E156,IF($C$10=2014,profiles!G156,IF($C$10=2015,profiles!I156,IF($C$10=2016,profiles!K156))))) -> 68.674 | C169: =IF($C$10=2012,profiles!D156,IF($C$10=2013,profiles!F156,IF($C$10=2014,profiles!H156,IF($C$10=2015,profiles!J156,IF($C$10=2016,profiles!L156))))) -> 0.2533013028 | D169: 50.66026057 | E169: 0 | F169: 50.66026057 | G169: 18.01373943 | H169: 0 | I169: 0 | J169: 0 | K169: 0 | L169: 18.01373943 | M169: 18.01373943 | O169: 11 | P169: 70 | BB169: 11
A170: h153 | B170: =IF($C$10=2012,profiles!C157,IF($C$10=2013,profiles!E157,IF($C$10=2014,profiles!G157,IF($C$10=2015,profiles!I157,IF($C$10=2016,profiles!K157))))) -> 71.033 | C170: =IF($C$10=2012,profiles!D157,IF($C$10=2013,profiles!F157,IF($C$10=2014,profiles!H157,IF($C$10=2015,profiles!J157,IF($C$10=2016,profiles!L157))))) -> 0.2501768555 | D170: 50.0353711 | E170: 0 | F170: 50.0353711 | G170: 20.9976289 | H170: 0 | I170: 0 | J170: 0 | K170: 0 | L170: 20.9976289 | M170: 20.9976289 | O170: 12 | P170: 75 | BB170: 12
A171: h154 | B171: =IF($C$10=2012,profiles!C158,IF($C$10=2013,profiles!E158,IF($C$10=2014,profiles!G158,IF($C$10=2015,profiles!I158,IF($C$10=2016,profiles!K158))))) -> 70.601 | C171: =IF($C$10=2012,profiles!D158,IF($C$10=2013,profiles!F158,IF($C$10=2014,profiles!H158,IF($C$10=2015,profiles!J158,IF($C$10=2016,profiles!L158))))) -> 0.2684077109 | D171: 53.68154218 | E171: 0 | F171: 53.68154218 | G171: 16.91945782 | H171: 0 | I171: 0 | J171: 0 | K171: 0 | L171: 16.91945782 | M171: 16.91945782 | O171: 13 | P171: 80 | BB171: 13
A172: h155 | B172: =IF($C$10=2012,profiles!C159,IF($C$10=2013,profiles!E159,IF($C$10=2014,profiles!G159,IF($C$10=2015,profiles!I159,IF($C$10=2016,profiles!K159))))) -> 71.044 | C172: =IF($C$10=2012,profiles!D159,IF($C$10=2013,profiles!F159,IF($C$10=2014,profiles!H159,IF($C$10=2015,profiles!J159,IF($C$10=2016,profiles!L159))))) -> 0.3168071685 | D172: 63.36143371 | E172: 0 | F172: 63.36143371 | G172: 7.682566291 | H172: 0 | I172: 0 | J172: 0 | K172: 0 | L172: 7.682566291 | M172: 7.682566291 | O172: 14 | P172: 85 | BB172: 14
A173: h156 | B173: =IF($C$10=2012,profiles!C160,IF($C$10=2013,profiles!E160,IF($C$10=2014,profiles!G160,IF($C$10=2015,profiles!I160,IF($C$10=2016,profiles!K160))))) -> 71.925 | C173: =IF($C$10=2012,profiles!D160,IF($C$10=2013,profiles!F160,IF($C$10=2014,profiles!H160,IF($C$10=2015,profiles!J160,IF($C$10=2016,profiles!L160))))) -> 0.3622885103 | D173: 72.45770206 | E173: 0.5327020574 | F173: 71.925 | G173: 0 | H173: 0 | I173: 0.5327020574 | J173: 0 | K173: 0.4314886665 | L173: 0 | M173: -0.5327020574 | O173: 15 | P173: 90 | BB173: 15
A174: h157 | B174: =IF($C$10=2012,profiles!C161,IF($C$10=2013,profiles!E161,IF($C$10=2014,profiles!G161,IF($C$10=2015,profiles!I161,IF($C$10=2016,profiles!K161))))) -> 71.439 | C174: =IF($C$10=2012,profiles!D161,IF($C$10=2013,profiles!F161,IF($C$10=2014,profiles!H161,IF($C$10=2015,profiles!J161,IF($C$10=2016,profiles!L161))))) -> 0.3740346637 | D174: 74.80693274 | E174: 3.367932736 | F174: 71.439 | G174: 0 | H174: 0 | I174: 3.367932736 | J174: 0 | K174: 3.159514183 | L174: 0 | M174: -3.367932736 | O174: 16 | P174: 95 | BB174: 16
A175: h158 | B175: =IF($C$10=2012,profiles!C162,IF($C$10=2013,profiles!E162,IF($C$10=2014,profiles!G162,IF($C$10=2015,profiles!I162,IF($C$10=2016,profiles!K162))))) -> 70.774 | C175: =IF($C$10=2012,profiles!D162,IF($C$10=2013,profiles!F162,IF($C$10=2014,profiles!H162,IF($C$10=2015,profiles!J162,IF($C$10=2016,profiles!L162))))) -> 0.336806579 | D175: 67.3613158 | E175: 0 | F175: 67.3613158 | G175: 3.412684195 | H175: 0 | I175: 0 | J175: 2.925710133 | K175: 0 | L175: 0.4869740619 | M175: 3.412684195 | Q175: 1 | R175: 2 | S175: 3 | T175: 4 | U175: 5 | V175: 6 | W175: 7 | X175: 8 | Y175: 9 | Z175: 10 | AA175: 11 | AB175: 12 | AC175: 13 | AD175: 14 | AE175: 15 | AF175: 16 | AG175: 17 | AH175: 18 | AI175: 19 | AJ175: 20 | AK175: 21 | AL175: 22 | AM175: 23 | AN175: 24 | AO175: 25 | AP175: 26 | AQ175: 27 | AR175: 28 | AS175: 29 | AT175: 30 | AU175: 31 | AV175: 32 | AW175: 33 | AX175: 34 | AY175: 35 | AZ175: 36 | BA175: 37
A176: h159 | B176: =IF($C$10=2012,profiles!C163,IF($C$10=2013,profiles!E163,IF($C$10=2014,profiles!G163,IF($C$10=2015,profiles!I163,IF($C$10=2016,profiles!K163))))) -> 69.483 | C176: =IF($C$10=2012,profiles!D163,IF($C$10=2013,profiles!F163,IF($C$10=2014,profiles!H163,IF($C$10=2015,profiles!J163,IF($C$10=2016,profiles!L163))))) -> 0.2686729942 | D176: 53.73459883 | E176: 0 | F176: 53.73459883 | G176: 15.74840117 | H176: 0 | I176: 0 | J176: 0 | K176: 0 | L176: 15.74840117 | M176: 15.74840117
A177: h160 | B177: =IF($C$10=2012,profiles!C164,IF($C$10=2013,profiles!E164,IF($C$10=2014,profiles!G164,IF($C$10=2015,profiles!I164,IF($C$10=2016,profiles!K164))))) -> 69.05 | C177: =IF($C$10=2012,profiles!D164,IF($C$10=2013,profiles!F164,IF($C$10=2014,profiles!H164,IF($C$10=2015,profiles!J164,IF($C$10=2016,profiles!L164))))) -> 0.2023227024 | D177: 40.46454047 | E177: 0 | F177: 40.46454047 | G177: 28.58545953 | H177: 0 | I177: 0 | J177: 0 | K177: 0 | L177: 28.58545953 | M177: 28.58545953
A178: h161 | B178: =IF($C$10=2012,profiles!C165,IF($C$10=2013,profiles!E165,IF($C$10=2014,profiles!G165,IF($C$10=2015,profiles!I165,IF($C$10=2016,profiles!K165))))) -> 70.11 | C178: =IF($C$10=2012,profiles!D165,IF($C$10=2013,profiles!F165,IF($C$10=2014,profiles!H165,IF($C$10=2015,profiles!J165,IF($C$10=2016,profiles!L165))))) -> 0.1760301833 | D178: 35.20603667 | E178: 0 | F178: 35.20603667 | G178: 34.90396333 | H178: 0 | I178: 0 | J178: 0 | K178: 0 | L178: 34.90396333 | M178: 34.90396333
A179: h162 | B179: =IF($C$10=2012,profiles!C166,IF($C$10=2013,profiles!E166,IF($C$10=2014,profiles!G166,IF($C$10=2015,profiles!I166,IF($C$10=2016,profiles!K166))))) -> 74.3 | C179: =IF($C$10=2012,profiles!D166,IF($C$10=2013,profiles!F166,IF($C$10=2014,profiles!H166,IF($C$10=2015,profiles!J166,IF($C$10=2016,profiles!L166))))) -> 0.1873489359 | D179: 37.46978718 | E179: 0 | F179: 37.46978718 | G179: 36.83021282 | H179: 0 | I179: 0 | J179: 0 | K179: 0 | L179: 36.83021282 | M179: 36.83021282
A180: h163 | B180: =IF($C$10=2012,profiles!C167,IF($C$10=2013,profiles!E167,IF($C$10=2014,profiles!G167,IF($C$10=2015,profiles!I167,IF($C$10=2016,profiles!K167))))) -> 74.355 | C180: =IF($C$10=2012,profiles!D167,IF($C$10=2013,profiles!F167,IF($C$10=2014,profiles!H167,IF($C$10=2015,profiles!J167,IF($C$10=2016,profiles!L167))))) -> 0.216485881 | D180: 43.29717621 | E180: 0 | F180: 43.29717621 | G180: 31.05782379 | H180: 0 | I180: 0 | J180: 0 | K180: 0 | L180: 31.05782379 | M180: 31.05782379
A181: h164 | B181: =IF($C$10=2012,profiles!C168,IF($C$10=2013,profiles!E168,IF($C$10=2014,profiles!G168,IF($C$10=2015,profiles!I168,IF($C$10=2016,profiles!K168))))) -> 72.381 | C181: =IF($C$10=2012,profiles!D168,IF($C$10=2013,profiles!F168,IF($C$10=2014,profiles!H168,IF($C$10=2015,profiles!J168,IF($C$10=2016,profiles!L168))))) -> 0.2345693568 | D181: 46.91387137 | E181: 0 | F181: 46.91387137 | G181: 25.46712863 | H181: 0 | I181: 0 | J181: 0 | K181: 0 | L181: 25.46712863 | M181: 25.46712863
A182: h165 | B182: =IF($C$10=2012,profiles!C169,IF($C$10=2013,profiles!E169,IF($C$10=2014,profiles!G169,IF($C$10=2015,profiles!I169,IF($C$10=2016,profiles!K169))))) -> 68.099 | C182: =IF($C$10=2012,profiles!D169,IF($C$10=2013,profiles!F169,IF($C$10=2014,profiles!H169,IF($C$10=2015,profiles!J169,IF($C$10=2016,profiles!L169))))) -> 0.2365737193 | D182: 47.31474385 | E182: 0 | F182: 47.31474385 | G182: 20.78425615 | H182: 0 | I182: 0 | J182: 0 | K182: 0 | L182: 20.78425615 | M182: 20.78425615
A183: h166 | B183: =IF($C$10=2012,profiles!C170,IF($C$10=2013,profiles!E170,IF($C$10=2014,profiles!G170,IF($C$10=2015,profiles!I170,IF($C$10=2016,profiles!K170))))) -> 64.209 | C183: =IF($C$10=2012,profiles!D170,IF($C$10=2013,profiles!F170,IF($C$10=2014,profiles!H170,IF($C$10=2015,profiles!J170,IF($C$10=2016,profiles!L170))))) -> 0.2307669634 | D183: 46.15339268 | E183: 0 | F183: 46.15339268 | G183: 18.05560732 | H183: 0 | I183: 0 | J183: 0 | K183: 0 | L183: 18.05560732 | M183: 18.05560732
A184: h167 | B184: =IF($C$10=2012,profiles!C171,IF($C$10=2013,profiles!E171,IF($C$10=2014,profiles!G171,IF($C$10=2015,profiles!I171,IF($C$10=2016,profiles!K171))))) -> 60.837 | C184: =IF($C$10=2012,profiles!D171,IF($C$10=2013,profiles!F171,IF($C$10=2014,profiles!H171,IF($C$10=2015,profiles!J171,IF($C$10=2016,profiles!L171))))) -> 0.2107970288 | D184: 42.15940577 | E184: 0 | F184: 42.15940577 | G184: 18.67759423 | H184: 0 | I184: 0 | J184: 0 | K184: 0 | L184: 18.67759423 | M184: 18.67759423
A185: h168 | B185: =IF($C$10=2012,profiles!C172,IF($C$10=2013,profiles!E172,IF($C$10=2014,profiles!G172,IF($C$10=2015,profiles!I172,IF($C$10=2016,profiles!K172))))) -> 55.626 | C185: =IF($C$10=2012,profiles!D172,IF($C$10=2013,profiles!F172,IF($C$10=2014,profiles!H172,IF($C$10=2015,profiles!J172,IF($C$10=2016,profiles!L172))))) -> 0.1998909391 | D185: 39.97818782 | E185: 0 | F185: 39.97818782 | G185: 15.64781218 | H185: 0 | I185: 0 | J185: 0 | K185: 0 | L185: 15.64781218 | M185: 15.64781218
A186: h169 | B186: =IF($C$10=2012,profiles!C173,IF($C$10=2013,profiles!E173,IF($C$10=2014,profiles!G173,IF($C$10=2015,profiles!I173,IF($C$10=2016,profiles!K173))))) -> 51.708 | C186: =IF($C$10=2012,profiles!D173,IF($C$10=2013,profiles!F173,IF($C$10=2014,profiles!H173,IF($C$10=2015,profiles!J173,IF($C$10=2016,profiles!L173))))) -> 0.1928381963 | D186: 38.56763926 | E186: 0 | F186: 38.56763926 | G186: 13.14036074 | H186: 0 | I186: 0 | J186: 0 | K186: 0 | L186: 13.14036074 | M186: 13.14036074
A187: h170 | B187: =IF($C$10=2012,profiles!C174,IF($C$10=2013,profiles!E174,IF($C$10=2014,profiles!G174,IF($C$10=2015,profiles!I174,IF($C$10=2016,profiles!K174))))) -> 49.274 | C187: =IF($C$10=2012,profiles!D174,IF($C$10=2013,profiles!F174,IF($C$10=2014,profiles!H174,IF($C$10=2015,profiles!J174,IF($C$10=2016,profiles!L174))))) -> 0.1781019747 | D187: 35.62039493 | E187: 0 | F187: 35.62039493 | G187: 13.65360507 | H187: 0 | I187: 0 | J187: 0 | K187: 0 | L187: 13.65360507 | M187: 13.65360507
A188: h171 | B188: =IF($C$10=2012,profiles!C175,IF($C$10=2013,profiles!E175,IF($C$10=2014,profiles!G175,IF($C$10=2015,profiles!I175,IF($C$10=2016,profiles!K175))))) -> 48.234 | C188: =IF($C$10=2012,profiles!D175,IF($C$10=2013,profiles!F175,IF($C$10=2014,profiles!H175,IF($C$10=2015,profiles!J175,IF($C$10=2016,profiles!L175))))) -> 0.1618479222 | D188: 32.36958444 | E188: 0 | F188: 32.36958444 | G188: 15.86441556 | H188: 0 | I188: 0 | J188: 0 | K188: 0 | L188: 15.86441556 | M188: 15.86441556
A189: h172 | B189: =IF($C$10=2012,profiles!C176,IF($C$10=2013,profiles!E176,IF($C$10=2014,profiles!G176,IF($C$10=2015,profiles!I176,IF($C$10=2016,profiles!K176))))) -> 48.974 | C189: =IF($C$10=2012,profiles!D176,IF($C$10=2013,profiles!F176,IF($C$10=2014,profiles!H176,IF($C$10=2015,profiles!J176,IF($C$10=2016,profiles!L176))))) -> 0.1555555556 | D189: 31.11111111 | E189: 0 | F189: 31.11111111 | G189: 17.86288889 | H189: 0 | I189: 0 | J189: 0 | K189: 0 | L189: 17.86288889 | M189: 17.86288889
A190: h173 | B190: =IF($C$10=2012,profiles!C177,IF($C$10=2013,profiles!E177,IF($C$10=2014,profiles!G177,IF($C$10=2015,profiles!I177,IF($C$10=2016,profiles!K177))))) -> 50.471 | C190: =IF($C$10=2012,profiles!D177,IF($C$10=2013,profiles!F177,IF($C$10=2014,profiles!H177,IF($C$10=2015,profiles!J177,IF($C$10=2016,profiles!L177))))) -> 0.1619068671 | D190: 32.38137342 | E190: 0 | F190: 32.38137342 | G190: 18.08962658 | H190: 0 | I190: 0 | J190: 0 | K190: 0 | L190: 18.08962658 | M190: 18.08962658
A191: h174 | B191: =IF($C$10=2012,profiles!C178,IF($C$10=2013,profiles!E178,IF($C$10=2014,profiles!G178,IF($C$10=2015,profiles!I178,IF($C$10=2016,profiles!K178))))) -> 54.08 | C191: =IF($C$10=2012,profiles!D178,IF($C$10=2013,profiles!F178,IF($C$10=2014,profiles!H178,IF($C$10=2015,profiles!J178,IF($C$10=2016,profiles!L178))))) -> 0.1758178603 | D191: 35.16357206 | E191: 0 | F191: 35.16357206 | G191: 18.91642794 | H191: 0 | I191: 0 | J191: 0 | K191: 0 | L191: 18.91642794 | M191: 18.91642794
A192: h175 | B192: =IF($C$10=2012,profiles!C179,IF($C$10=2013,profiles!E179,IF($C$10=2014,profiles!G179,IF($C$10=2015,profiles!I179,IF($C$10=2016,profiles!K179))))) -> 62.58 | C192: =IF($C$10=2012,profiles!D179,IF($C$10=2013,profiles!F179,IF($C$10=2014,profiles!H179,IF($C$10=2015,profiles!J179,IF($C$10=2016,profiles!L179))))) -> 0.181447097 | D192: 36.28941939 | E192: 0 | F192: 36.28941939 | G192: 26.29058061 | H192: 0 | I192: 0 | J192: 0 | K192: 0 | L192: 26.29058061 | M192: 26.29058061
A193: h176 | B193: =IF($C$10=2012,profiles!C180,IF($C$10=2013,profiles!E180,IF($C$10=2014,profiles!G180,IF($C$10=2015,profiles!I180,IF($C$10=2016,profiles!K180))))) -> 70.022 | C193: =IF($C$10=2012,profiles!D180,IF($C$10=2013,profiles!F180,IF($C$10=2014,profiles!H180,IF($C$10=2015,profiles!J180,IF($C$10=2016,profiles!L180))))) -> 0.1904361922 | D193: 38.08723843 | E193: 0 | F193: 38.08723843 | G193: 31.93476157 | H193: 0 | I193: 0 | J193: 0 | K193: 0 | L193: 31.93476157 | M193: 31.93476157
A194: h177 | B194: =IF($C$10=2012,profiles!C181,IF($C$10=2013,profiles!E181,IF($C$10=2014,profiles!G181,IF($C$10=2015,profiles!I181,IF($C$10=2016,profiles!K181))))) -> 72.222 | C194: =IF($C$10=2012,profiles!D181,IF($C$10=2013,profiles!F181,IF($C$10=2014,profiles!H181,IF($C$10=2015,profiles!J181,IF($C$10=2016,profiles!L181))))) -> 0.2180223991 | D194: 43.60447981 | E194: 0 | F194: 43.60447981 | G194: 28.61752019 | H194: 0 | I194: 0 | J194: 0 | K194: 0 | L194: 28.61752019 | M194: 28.61752019
A195: h178 | B195: =IF($C$10=2012,profiles!C182,IF($C$10=2013,profiles!E182,IF($C$10=2014,profiles!G182,IF($C$10=2015,profiles!I182,IF($C$10=2016,profiles!K182))))) -> 71.508 | C195: =IF($C$10=2012,profiles!D182,IF($C$10=2013,profiles!F182,IF($C$10=2014,profiles!H182,IF($C$10=2015,profiles!J182,IF($C$10=2016,profiles!L182))))) -> 0.2555260831 | D195: 51.10521662 | E195: 0 | F195: 51.10521662 | G195: 20.40278338 | H195: 0 | I195: 0 | J195: 0 | K195: 0 | L195: 20.40278338 | M195: 20.40278338
A196: h179 | B196: =IF($C$10=2012,profiles!C183,IF($C$10=2013,profiles!E183,IF($C$10=2014,profiles!G183,IF($C$10=2015,profiles!I183,IF($C$10=2016,profiles!K183))))) -> 72.068 | C196: =IF($C$10=2012,profiles!D183,IF($C$10=2013,profiles!F183,IF($C$10=2014,profiles!H183,IF($C$10=2015,profiles!J183,IF($C$10=2016,profiles!L183))))) -> 0.3070439139 | D196: 61.40878279 | E196: 0 | F196: 61.40878279 | G196: 10.65921721 | H196: 0 | I196: 0 | J196: 0 | K196: 0 | L196: 10.65921721 | M196: 10.65921721
A197: h180 | B197: =IF($C$10=2012,profiles!C184,IF($C$10=2013,profiles!E184,IF($C$10=2014,profiles!G184,IF($C$10=2015,profiles!I184,IF($C$10=2016,profiles!K184))))) -> 73.129 | C197: =IF($C$10=2012,profiles!D184,IF($C$10=2013,profiles!F184,IF($C$10=2014,profiles!H184,IF($C$10=2015,profiles!J184,IF($C$10=2016,profiles!L184))))) -> 0.36170056 | D197: 72.340112 | E197: 0 | F197: 72.340112 | G197: 0.7888880047 | H197: 0 | I197: 0 | J197: 0 | K197: 0 | L197: 0.7888880047 | M197: 0.7888880047
A198: h181 | B198: =IF($C$10=2012,profiles!C185,IF($C$10=2013,profiles!E185,IF($C$10=2014,profiles!G185,IF($C$10=2015,profiles!I185,IF($C$10=2016,profiles!K185))))) -> 72.32 | C198: =IF($C$10=2012,profiles!D185,IF($C$10=2013,profiles!F185,IF($C$10=2014,profiles!H185,IF($C$10=2015,profiles!J185,IF($C$10=2016,profiles!L185))))) -> 0.3752578839 | D198: 75.05157678 | E198: 2.731576776 | F198: 72.32 | G198: 0 | H198: 0 | I198: 2.731576776 | J198: 0 | K198: 2.212577188 | L198: 0 | M198: -2.731576776
A199: h182 | B199: =IF($C$10=2012,profiles!C186,IF($C$10=2013,profiles!E186,IF($C$10=2014,profiles!G186,IF($C$10=2015,profiles!I186,IF($C$10=2016,profiles!K186))))) -> 71.738 | C199: =IF($C$10=2012,profiles!D186,IF($C$10=2013,profiles!F186,IF($C$10=2014,profiles!H186,IF($C$10=2015,profiles!J186,IF($C$10=2016,profiles!L186))))) -> 0.352726201 | D199: 70.5452402 | E199: 0 | F199: 70.5452402 | G199: 1.1927598 | H199: 0 | I199: 0 | J199: 1.1927598 | K199: 0.924499651 | L199: 0 | M199: 1.1927598
A200: h183 | B200: =IF($C$10=2012,profiles!C187,IF($C$10=2013,profiles!E187,IF($C$10=2014,profiles!G187,IF($C$10=2015,profiles!I187,IF($C$10=2016,profiles!K187))))) -> 70.481 | C200: =IF($C$10=2012,profiles!D187,IF($C$10=2013,profiles!F187,IF($C$10=2014,profiles!H187,IF($C$10=2015,profiles!J187,IF($C$10=2016,profiles!L187))))) -> 0.2903625111 | D200: 58.07250221 | E200: 0 | F200: 58.07250221 | G200: 12.40849779 | H200: 0 | I200: 0 | J200: 0.8560866768 | K200: 0 | L200: 11.55241111 | M200: 12.40849779
... 4300 more rows

Sheet profiles
B2: year | C2: 2012 | E2: 2013 | G2: 2014 | I2: 2015 | K2: 2016 | N2: Source:
B3: hour | C3: demand | D3: renewable availability factor | E3: demand | F3: renewable availability factor | G3: demand | H3: renewable availability factor | I3: demand | J3: renewable availability factor | K3: demand | L3: renewable availability factor | N3: Own aggregation based on
C4: [GWh] | D4: % | E4: [GWh] | F4: % | G4: [GWh] | H4: % | I4: [GWh] | J4: % | K4: [GWh] | L4: % | N4: Open Power System Data. 2017. Data Package Time series. Version 2017-07-09. https://data.open-power-system-data.org/time_series/2017-07-09/. (Primary data from various sources, for a complete list see URL)."
B5: h1 | C5: 40.318 | D5: 0.08753706361 | E5: 36.504 | F5: 0.2991040213 | G5: 45.486 | H5: 0.1253759509 | I5: 42.097 | J5: 0.1162422306 | K5: 40.952 | L5: 0.1064513349
B6: h2 | C6: 38.406 | D6: 0.09318029651 | E6: 35.142 | F6: 0.29516887 | G6: 43.588 | H6: 0.1192133042 | I6: 40.665 | J6: 0.1185243855 | K6: 39.396 | L6: 0.1056019892
B7: h3 | C7: 36.501 | D7: 0.103472023 | E7: 33.723 | F7: 0.2805502707 | G7: 41.811 | H7: 0.1297841599 | I7: 39.51 | J7: 0.1219341934 | K7: 37.718 | L7: 0.1051465429
B8: h4 | C8: 35.305 | D8: 0.1165758011 | E8: 32.375 | F8: 0.260565556 | G8: 40.757 | H8: 0.13224627 | I8: 38.537 | J8: 0.1220550134 | K8: 36.692 | L8: 0.1039279164 | N8: available base years:
B9: h5 | C9: 34.568 | D9: 0.128818747 | E9: 31.876 | F9: 0.2464998293 | G9: 39.988 | H9: 0.12546441 | I9: 38.153 | J9: 0.1230886953 | K9: 36.556 | L9: 0.1021061313 | N9: 2012
B10: h6 | C10: 33.501 | D10: 0.1409851746 | E10: 31.325 | F10: 0.2312470527 | G10: 39.052 | H10: 0.1232529339 | I10: 37.927 | J10: 0.1240418306 | K10: 35.89 | L10: 0.0900921971 | N10: 2013
B11: h7 | C11: 31.65 | D11: 0.1546819703 | E11: 29.721 | F11: 0.2228726605 | G11: 37.302 | H11: 0.1186383205 | I11: 37.921 | J11: 0.1302036488 | K11: 34.718 | L11: 0.08092172479 | N11: 2014
B12: h8 | C12: 32.109 | D12: 0.1663318986 | E12: 29.644 | F12: 0.2080264078 | G12: 37.586 | H12: 0.1213805508 | I12: 39.143 | J12: 0.1387013196 | K12: 34.753 | L12: 0.06922783392 | N12: 2015
B13: h9 | C13: 32.981 | D13: 0.1864371114 | E13: 30.414 | F13: 0.1986438363 | G13: 38.24 | H13: 0.1260688801 | I13: 39.891 | J13: 0.1378153065 | K13: 35.143 | L13: 0.05885104445 | N13: 2016
B14: h10 | C14: 35.063 | D14: 0.210310856 | E14: 32.596 | F14: 0.2062051807 | G14: 40.649 | H14: 0.1388217255 | I14: 41.618 | J14: 0.1450779289 | K14: 37.429 | L14: 0.05781705831
B15: h11 | C15: 37.709 | D15: 0.2228598757 | E15: 35.215 | F15: 0.2143193977 | G15: 42.894 | H15: 0.1534322109 | I15: 43.858 | J15: 0.1700742372 | K15: 40.167 | L15: 0.06521498295
B16: h12 | C16: 40.771 | D16: 0.2226303204 | E16: 38.327 | F16: 0.2181082004 | G16: 45.335 | H16: 0.1751194197 | I16: 46.208 | J16: 0.1981447423 | K16: 42.909 | L16: 0.06890779059
B17: h13 | C17: 41.374 | D17: 0.2050502152 | E17: 39.713 | F17: 0.2046603899 | G17: 46.286 | H17: 0.1841422421 | I17: 47.556 | J17: 0.2188989274 | K17: 43.678 | L17: 0.06656901242
B18: h14 | C18: 40.913 | D18: 0.1928646581 | E18: 39.76 | F18: 0.1900905735 | G18: 45.686 | H18: 0.1782302294 | I18: 46.674 | J18: 0.214925293 | K18: 42.989 | L18: 0.05547828014
B19: h15 | C19: 40.577 | D19: 0.1727594452 | E19: 39.716 | F19: 0.1668861896 | G19: 45.312 | H19: 0.1501592263 | I19: 45.923 | J19: 0.1907076023 | K19: 42.525 | L19: 0.03616489617
B20: h16 | C20: 40.865 | D20: 0.1547393592 | E20: 40.308 | F20: 0.1356488934 | G20: 45.866 | H20: 0.1178127027 | I20: 46.347 | J20: 0.1692419218 | K20: 42.89 | L20: 0.01533746107
B21: h17 | C21: 43.536 | D21: 0.1398373984 | E21: 42.418 | F21: 0.1234369156 | G21: 48.899 | H21: 0.1216606711 | I21: 48.23 | J21: 0.1831630667 | K21: 45.335 | L21: 0.008813500905
B22: h18 | C22: 47.675 | D22: 0.1483309421 | E22: 45.587 | F22: 0.1190952404 | G22: 53.773 | H22: 0.1448221973 | I22: 51.634 | J22: 0.2073539085 | K22: 48.354 | L22: 0.01597754773
B23: h19 | C23: 48.918 | D23: 0.1642085127 | E23: 46.921 | F23: 0.1232580451 | G23: 54.668 | H23: 0.1627056673 | I23: 51.307 | J23: 0.2265240096 | K23: 48.9 | L23: 0.026415884
B24: h20 | C24: 47.909 | D24: 0.1874127212 | E24: 45.938 | F24: 0.128461551 | G24: 53.75 | H24: 0.1821814 | I24: 50.138 | J24: 0.2419889651 | K24: 47.737 | L24: 0.04149484853
B25: h21 | C25: 45.597 | D25: 0.215035868 | E25: 44.006 | F25: 0.1414052718 | G25: 51.276 | H25: 0.1894202984 | I25: 47.092 | J25: 0.2578835027 | K25: 45.666 | L25: 0.05395191964
B26: h22 | C26: 44.366 | D26: 0.2507508369 | E26: 42.979 | F26: 0.1444948534 | G26: 49.765 | H26: 0.1913663974 | I26: 45.182 | J26: 0.2736572203 | K26: 44.417 | L26: 0.06658132178
B27: h23 | C27: 43.556 | D27: 0.2940602582 | E27: 42.902 | F27: 0.1464136462 | G27: 49.157 | H27: 0.1990033614 | I27: 49.365 | J27: 0.2854975769 | K27: 44.017 | L27: 0.07607183742
B28: h24 | C28: 39.163 | D28: 0.3040841703 | E28: 39.648 | F28: 0.1452753793 | G28: 45.914 | H28: 0.2062717462 | I28: 46.468 | J28: 0.2967606825 | K28: 41.144 | L28: 0.08564851857
B29: h25 | C29: 35.115 | D29: 0.3018629739 | E29: 36.656 | F29: 0.1473448018 | G29: 42.526 | H29: 0.203098741 | I29: 43.254 | J29: 0.3021932297 | K29: 38.484 | L29: 0.09185243541
B30: h26 | C30: 32.57 | D30: 0.3015951953 | E30: 34.795 | F30: 0.1514422295 | G30: 40.282 | H30: 0.2038210927 | I30: 41.608 | J30: 0.3152935492 | K30: 36.559 | L30: 0.1078669112
B31: h27 | C31: 31.784 | D31: 0.2899659539 | E31: 34.127 | F31: 0.1539136939 | G31: 39.623 | H31: 0.2078308813 | I31: 40.839 | J31: 0.3264476121 | K31: 36.115 | L31: 0.131907089
B32: h28 | C32: 32.147 | D32: 0.2782410772 | E32: 34.263 | F32: 0.1589054015 | G32: 39.811 | H32: 0.2179732877 | I32: 40.577 | J32: 0.3374942955 | K32: 36.377 | L32: 0.1470845284
B33: h29 | C33: 33.971 | D33: 0.2516353621 | E33: 35.179 | F33: 0.1533771259 | G33: 41.111 | H33: 0.2210985641 | I33: 41.364 | J33: 0.3464202303 | K33: 37.101 | L33: 0.1655731853
B34: h30 | C34: 38.118 | D34: 0.2183160552 | E34: 37.158 | F34: 0.1547917141 | G34: 43.647 | H34: 0.2230002654 | I34: 43.445 | J34: 0.3521247752 | K34: 37.656 | L34: 0.1802090129
B35: h31 | C35: 44.584 | D35: 0.1814964998 | E35: 41.837 | F35: 0.1677343826 | G35: 48.77 | H35: 0.2315210661 | I35: 46.679 | J35: 0.3546213524 | K35: 38.545 | L35: 0.1905488743
B36: h32 | C36: 51.823 | D36: 0.1451359933 | E36: 47.067 | F36: 0.1669051413 | G36: 54.751 | H36: 0.2338650234 | I36: 51.275 | J36: 0.3527287858 | K36: 40.719 | L36: 0.1977129211
B37: h33 | C37: 56.247 | D37: 0.1099996175 | E37: 50.505 | F37: 0.1649377256 | G37: 58.714 | H37: 0.2269363446 | I37: 55.305 | J37: 0.3594802824 | K37: 44.031 | L37: 0.2054924359
B38: h34 | C38: 58.559 | D38: 0.09699322903 | E38: 51.904 | F38: 0.1762381711 | G38: 61.17 | H38: 0.2251230946 | I38: 57.513 | J38: 0.3532925291 | K38: 47.83 | L38: 0.2205467817
B39: h35 | C39: 61.059 | D39: 0.1049309514 | E39: 53.418 | F39: 0.2108386719 | G39: 62.828 | H39: 0.2326561901 | I39: 59.351 | J39: 0.3542455236 | K39: 50.282 | L39: 0.2366843511
B40: h36 | C40: 62.753 | D40: 0.1118549405 | E40: 54.761 | F40: 0.2402686092 | G40: 64.359 | H40: 0.2271427308 | I40: 60.451 | J40: 0.3640573407 | K40: 52.27 | L40: 0.2477997021
B41: h37 | C41: 63.183 | D41: 0.1236180712 | E41: 55.381 | F41: 0.2465610874 | G41: 64.611 | H41: 0.2251525784 | I41: 60.104 | J41: 0.368983383 | K41: 52.703 | L41: 0.2507662576
B42: h38 | C42: 62.463 | D42: 0.1315940477 | E42: 54.842 | F42: 0.2295209912 | G42: 63.856 | H42: 0.224960934 | I42: 59.568 | J42: 0.3728356286 | K42: 51.991 | L42: 0.2494245375
B43: h39 | C43: 61.511 | D43: 0.1240962473 | E43: 54.345 | F43: 0.1941562876 | G43: 62.748 | H43: 0.2077129463 | I43: 58.561 | J43: 0.3594131701 | K43: 51.364 | L43: 0.2427036276
B44: h40 | C44: 61.14 | D44: 0.1255690295 | E44: 54.16 | F44: 0.1560924848 | G44: 61.949 | H44: 0.1902585724 | I44: 58.012 | J44: 0.3440444552 | K44: 51.375 | L44: 0.2355518901
B45: h41 | C45: 62.337 | D45: 0.1311349987 | E45: 55.364 | F45: 0.1307762349 | G45: 63.371 | H45: 0.1765486334 | I45: 59.287 | J45: 0.3336420499 | K45: 53.058 | L45: 0.2365858762
B46: h42 | C46: 65.016 | D46: 0.1328564324 | E46: 58.446 | F46: 0.1313778414 | G46: 66.788 | H46: 0.1832561842 | I46: 62.208 | J46: 0.3273737618 | K46: 55.961 | L46: 0.2451162619
B47: h43 | C47: 64.553 | D47: 0.1469339352 | E47: 58.536 | F47: 0.1404344574 | G47: 66.641 | H47: 0.1765486334 | I47: 62.007 | J47: 0.3369305522 | K47: 56.224 | L47: 0.2488336883
B48: h44 | C48: 62.916 | D48: 0.1636892238 | E48: 56.678 | F48: 0.149734968 | G48: 64.675 | H48: 0.1718607188 | I48: 59.408 | J48: 0.3333064884 | K48: 54.732 | L48: 0.2475165869
B49: h45 | C49: 58.579 | D49: 0.1752419571 | E49: 52.696 | F49: 0.1452798283 | G49: 60.728 | H49: 0.158357166 | I49: 55.695 | J49: 0.3261120507 | K49: 51.391 | L49: 0.242408203
B50: h46 | C50: 55.833 | D50: 0.1771737883 | E50: 50.01 | F50: 0.1453286072 | G50: 57.857 | H50: 0.1442344547 | I50: 53.446 | J50: 0.3271858474 | K50: 49.345 | L50: 0.2363643078
B51: h47 | C51: 53.896 | D51: 0.1782257756 | E51: 48.738 | F51: 0.1509707001 | G51: 55.726 | H51: 0.1295662942 | I51: 51.544 | J51: 0.3296690022 | K51: 48.653 | L51: 0.2272307635
B52: h48 | C52: 48.883 | D52: 0.1916147049 | E52: 44.655 | F52: 0.1674742285 | G52: 51.517 | H52: 0.1295220686 | I52: 46.4 | J52: 0.3304206598 | K52: 45.877 | L52: 0.2310712835
B53: h49 | C53: 45.656 | D53: 0.1993802838 | E53: 41.309 | F53: 0.1921013267 | G53: 47.568 | H53: 0.1166932013 | I53: 41.444 | J53: 0.3233067569 | K53: 42.925 | L53: 0.232942306
B54: h50 | C54: 43.212 | D54: 0.2051566505 | E54: 39.058 | F54: 0.2145551509 | G54: 45.16 | H54: 0.1162509582 | I54: 39.216 | J54: 0.3127835494 | K54: 40.504 | L54: 0.2289171457
B55: h51 | C55: 42.517 | D55: 0.2160590643 | E55: 37.837 | F55: 0.2346188866 | G55: 44.392 | H55: 0.1202901114 | I55: 37.573 | J55: 0.2971195404 | K55: 39.342 | L55: 0.2289663831
B56: h52 | C56: 42.891 | D56: 0.2241115489 | E56: 37.589 | F56: 0.2535282258 | G56: 44.79 | H56: 0.1351937025 | I56: 36.665 | J56: 0.2808112534 | K56: 38.995 | L56: 0.226972267
B57: h53 | C57: 43.829 | D57: 0.2502773421 | E57: 38.636 | F57: 0.2768437825 | G57: 45.856 | H57: 0.1485347013 | I57: 36.918 | J57: 0.2725027516 | K57: 39.117 | L57: 0.2250273883
B58: h54 | C58: 45.997 | D58: 0.2782219502 | E58: 40.473 | F58: 0.2901925078 | G58: 48.075 | H58: 0.1629813079 | I58: 37.443 | J58: 0.2756838743 | K58: 38.595 | L58: 0.2252858849
B59: h55 | C59: 50.733 | D59: 0.3071420374 | E59: 44.635 | F59: 0.2929077784 | G59: 52.214 | H59: 0.179344301 | I59: 38.926 | J59: 0.2869587394 | K59: 37.811 | L59: 0.2267753173
B60: h56 | C60: 56.436 | D60: 0.3378218125 | E60: 49.724 | F60: 0.2965498179 | G60: 57.632 | H60: 0.1920956424 | I60: 41.79 | J60: 0.2955491128 | K60: 39.293 | L60: 0.2239072367
B61: h57 | C61: 59.676 | D61: 0.3734746184 | E61: 52.642 | F61: 0.2860952133 | G61: 60.834 | H61: 0.2123061501 | I61: 44.871 | J61: 0.3102601272 | K61: 41.552 | L61: 0.2193158458
B62: h58 | C62: 60.966 | D62: 0.4205080142 | E62: 54.387 | F62: 0.2963872268 | G62: 62.5 | H62: 0.2446193761 | I62: 48.258 | J62: 0.3233201793 | K62: 44.699 | L62: 0.2195866517
B63: h59 | C63: 62.591 | D63: 0.4887724265 | E63: 56.327 | F63: 0.3089717742 | G63: 63.736 | H63: 0.2818120172 | I63: 50.221 | J63: 0.3278569703 | K63: 47.533 | L63: 0.225667475
B64: h60 | C64: 63.624 | D64: 0.5297999311 | E64: 58.181 | F64: 0.320548257 | G64: 65.227 | H64: 0.294607583 | I64: 52.668 | J64: 0.3354540818 | K64: 50.654 | L64: 0.2246827263
B65: h61 | C65: 63.294 | D65: 0.5387705138 | E65: 58.301 | F65: 0.3180280957 | G65: 65.331 | H65: 0.282549089 | I65: 53.328 | J65: 0.3294542428 | K65: 50.72 | L65: 0.2168662834
B66: h62 | C66: 62.23 | D66: 0.5241574538 | E66: 57.489 | F66: 0.3096709157 | G66: 63.621 | H66: 0.2777286397 | I66: 52.906 | J66: 0.3010120534 | K66: 49.106 | L66: 0.2125456985
B67: h63 | C67: 61.21 | D67: 0.5016449256 | E67: 56.125 | F67: 0.2943060614 | G67: 62.233 | H67: 0.2644908308 | I67: 51.66 | J67: 0.2695498107 | K67: 47.63 | L67: 0.1993254471
B68: h64 | C68: 61.096 | D68: 0.4719597567 | E68: 55.477 | F68: 0.2769901145 | G68: 61.768 | H68: 0.2435874757 | I68: 51.104 | J68: 0.2379533435 | K68: 47.654 | L68: 0.1912751265
B69: h65 | C69: 62.642 | D69: 0.460655675 | E69: 56.115 | F69: 0.2663891779 | G69: 63.372 | H69: 0.2265316351 | I69: 53.047 | J69: 0.2163700303 | K69: 49.376 | L69: 0.1898718596
B70: h66 | C70: 65.026 | D70: 0.4521058873 | E70: 58.398 | F70: 0.2582758845 | G70: 66.851 | H70: 0.217008668 | I70: 56.014 | J70: 0.2061555394 | K70: 52.896 | L70: 0.2007164047
B71: h67 | C71: 64.498 | D71: 0.4517042194 | E71: 58.18 | F71: 0.2523575702 | G71: 66.745 | H71: 0.2352733062 | I71: 55.926 | J71: 0.19305522 | K71: 54.073 | L71: 0.2128780512
B72: h68 | C72: 62.463 | D72: 0.4350063119 | E72: 56.025 | F72: 0.2497398543 | G72: 64.4 | H72: 0.2337844213 | I72: 53.865 | J72: 0.1735523879 | K72: 52.724 | L72: 0.2172355642
B73: h69 | C73: 57.984 | D73: 0.4237978654 | E73: 52.063 | F73: 0.2349765869 | G73: 60.535 | H73: 0.2373076243 | I73: 49.932 | J73: 0.1850420123 | K73: 50.689 | L73: 0.218429572
B74: h70 | C74: 55.047 | D74: 0.4219616694 | E74: 49.803 | F74: 0.2296923777 | G74: 57.791 | H74: 0.2505012088 | I74: 48.014 | J74: 0.204531422 | K74: 49.487 | L74: 0.216509312
B75: h71 | C75: 53.315 | D75: 0.4180214988 | E75: 48.213 | F75: 0.2131406087 | G75: 56.15 | H75: 0.2634294475 | I75: 47.602 | J75: 0.2133902446 | K75: 48.983 | L75: 0.2087051785
B76: h72 | C76: 48.607 | D76: 0.4034466929 | E76: 43.634 | F76: 0.2112382934 | G76: 52.401 | H76: 0.2744707825 | I76: 45.492 | J76: 0.2330944136 | K76: 45.865 | L76: 0.2061325226
B77: h73 | C77: 44.861 | D77: 0.3933426381 | E77: 40.253 | F77: 0.2070821207 | G77: 48.162 | H77: 0.2733799163 | I77: 42.859 | J77: 0.2399130225 | K77: 43.721 | L77: 0.2020282827
B78: h74 | C78: 42.518 | D78: 0.3822725274 | E78: 37.551 | F78: 0.2009039622 | G78: 45.86 | H78: 0.2626923757 | I78: 38.999 | J78: 0.251375802 | K78: 42.174 | L78: 0.1930560855
B79: h75 | C79: 41.893 | D79: 0.3703802841 | E79: 36.524 | F79: 0.1950021949 | G79: 44.57 | H79: 0.25308096 | I79: 37.13 | J79: 0.2536844648 | K79: 41.258 | L79: 0.1851054141
B80: h76 | C80: 42.386 | D80: 0.3597881575 | E80: 36.925 | F80: 0.1873933048 | G80: 44.45 | H80: 0.2457249838 | I80: 36.367 | J80: 0.2557515234 | K80: 41.376 | L80: 0.1773393558
B81: h77 | C81: 43.735 | D81: 0.3497122536 | E81: 38.127 | F81: 0.1849708163 | G81: 44.816 | H81: 0.237602453 | I81: 36.486 | J81: 0.2574561757 | K81: 42.537 | L81: 0.1676656287
B82: h78 | C82: 46.176 | D82: 0.3475900044 | E82: 40.677 | F82: 0.1866779391 | G82: 44.81 | H82: 0.2196326434 | I82: 35.879 | J82: 0.2519395452 | K82: 45.127 | L82: 0.1621518504
B83: h79 | C83: 51.143 | D83: 0.3478576755 | E83: 45.76 | F83: 0.1967093176 | G83: 45.266 | H83: 0.2108762309 | I83: 35.062 | J83: 0.2506778342 | K83: 50.741 | L83: 0.1634933724
B84: h80 | C84: 57.455 | D84: 0.3605720513 | E84: 51.089 | F84: 0.1910351667 | G84: 48.147 | H84: 0.1896043399 | I84: 37.629 | J84: 0.242154573 | K84: 56.959 | L84: 0.161118017
B85: h81 | C85: 60.299 | D85: 0.3624075101 | E85: 54.604 | F85: 0.1818492204 | G85: 51.522 | H85: 0.1767203255 | I85: 40.608 | J85: 0.242973343 | K85: 60.455 | L85: 0.1593088085
B86: h82 | C86: 61.388 | D86: 0.3877597843 | E86: 56.527 | F86: 0.1816378624 | G86: 55.13 | H86: 0.1833981956 | I86: 43.522 | J86: 0.2451477813 | K86: 61.842 | L86: 0.1567857626
B87: h83 | C87: 62.412 | D87: 0.4252337342 | E87: 58.364 | F87: 0.1937015299 | G87: 57.453 | H87: 0.1907099475 | I87: 46.571 | J87: 0.2630936082 | K87: 63.034 | L87: 0.1576472905
B88: h84 | C88: 63.924 | D88: 0.4633003843 | E88: 60.157 | F88: 0.2104963663 | G88: 59.022 | H88: 0.1801698213 | I88: 50.262 | J88: 0.2826903976 | K88: 64.438 | L88: 0.1548042486
B89: h85 | C89: 63.715 | D89: 0.4764162668 | E89: 59.952 | F89: 0.2312744891 | G89: 58.857 | H89: 0.1589863789 | I89: 50.389 | J89: 0.2878311992 | K89: 64.624 | L89: 0.1526627365
B90: h86 | C90: 62.658 | D90: 0.4600692121 | E90: 57.783 | F90: 0.2492074073 | G90: 57.597 | H90: 0.142932956 | I90: 48.319 | J90: 0.2775630184 | K90: 63.752 | L90: 0.1449459084
B91: h87 | C91: 61.576 | D91: 0.4393247041 | E91: 55.891 | F91: 0.2790414099 | G91: 56.415 | H91: 0.1285600566 | I91: 47.174 | J91: 0.2493758557 | K91: 62.423 | L91: 0.1360106337
B92: h88 | C92: 60.931 | D92: 0.4167829761 | E92: 55.192 | F92: 0.2950558473 | G92: 56.43 | H92: 0.1297983372 | I92: 47.092 | J92: 0.2156049502 | K92: 61.784 | L92: 0.1298445558
B93: h89 | C93: 62.328 | D93: 0.4024625738 | E93: 55.773 | F93: 0.3060952412 | G93: 58.724 | H93: 0.1365646559 | I93: 49.11 | J93: 0.1916324394 | K93: 62.64 | L93: 0.1273830476
B94: h90 | C94: 66.132 | D94: 0.4081601438 | E94: 57.545 | F94: 0.3016729803 | G94: 62.204 | H94: 0.1522348016 | I94: 52.676 | J94: 0.1842500872 | K94: 65.77 | L94: 0.1344106534
B95: h91 | C95: 65.718 | D95: 0.4174903925 | E95: 56.94 | F95: 0.2928772335 | G95: 62.41 | H95: 0.1537236865 | I95: 53.326 | J95: 0.184478269 | K95: 65.9 | L95: 0.1365644731
B96: h92 | C96: 63.711 | D96: 0.4285413839 | E96: 54.685 | F96: 0.2898857041 | G96: 60.109 | H96: 0.1484315113 | I96: 51.743 | J96: 0.1907734021 | K96: 64.063 | L96: 0.133672201
B97: h93 | C97: 59.642 | D97: 0.4414851921 | E97: 50.808 | F97: 0.2803745915 | G97: 56.121 | H97: 0.1365056902 | I97: 49.435 | J97: 0.1890419049 | K97: 59.838 | L97: 0.1315676115
B98: h94 | C98: 56.389 | D98: 0.4485784754 | E98: 48.394 | F98: 0.2698066887 | G98: 53.635 | H98: 0.1256117696 | I98: 48.114 | J98: 0.1749751685 | K98: 56.845 | L98: 0.1265707499
B99: h95 | C99: 54.764 | D99: 0.4570292335 | E99: 46.831 | F99: 0.2569788805 | G99: 52.6 | H99: 0.1123887022 | I99: 48.243 | J99: 0.166706934 | K99: 54.723 | L99: 0.1227554122
B100: h96 | C100: 49.902 | D100: 0.4429191442 | E100: 43.296 | F100: 0.2495163152 | G100: 49.266 | H100: 0.1037502211 | I100: 45.46 | J100: 0.1663579501 | K100: 50.849 | L100: 0.1190754575
B101: h97 | C101: 46.341 | D101: 0.4404909852 | E101: 39.557 | F101: 0.2362820492 | G101: 45.615 | H101: 0.08974585766 | I101: 41.878 | J101: 0.1652240428 | K101: 48.136 | L101: 0.1172742265
B102: h98 | C102: 44.338 | D102: 0.4343727893 | E102: 37.389 | F102: 0.2231290747 | G102: 42.883 | H102: 0.08070935786 | I102: 39.951 | J102: 0.1644591167 | K102: 46.335 | L102: 0.1145174391
B103: h99 | C103: 43.477 | D103: 0.4364567998 | E103: 36.268 | F103: 0.2019607524 | G103: 41.518 | H103: 0.07786426086 | I103: 38.841 | J103: 0.1699746367 | K103: 45.297 | L103: 0.1132867305
B104: h100 | C104: 43.642 | D104: 0.4422308472 | E104: 36.424 | F104: 0.1777683841 | G104: 41.197 | H104: 0.07948581874 | I104: 38.772 | J104: 0.1707798221 | K104: 45.878 | L104: 0.1131144313
B105: h101 | C105: 44.848 | D105: 0.4448310804 | E105: 37.087 | F105: 0.1598192076 | G105: 41.429 | H105: 0.08435049236 | I105: 39.928 | J105: 0.1817974422 | K105: 46.581 | L105: 0.1139513132
B106: h102 | C106: 46.843 | D106: 0.4418866987 | E106: 37.268 | F106: 0.1475604403 | G106: 41.145 | H106: 0.08859602571 | I106: 43.623 | J106: 0.1995249406 | K106: 48.672 | L106: 0.1155266202
B107: h103 | C107: 51.898 | D107: 0.4348507734 | E107: 37.614 | F107: 0.14265043 | G107: 40.357 | H107: 0.09735243823 | I107: 49.624 | J107: 0.2070668438 | K107: 53.675 | L107: 0.1154158565
B108: h104 | C108: 58.41 | D108: 0.4336271342 | E108: 40.48 | F108: 0.1274651666 | G108: 42.035 | H108: 0.0965858836 | I108: 55.406 | J108: 0.2060872016 | K108: 59.388 | L108: 0.1147389667
B109: h105 | C109: 62.15 | D109: 0.4224040686 | E109: 44.214 | F109: 0.1168484888 | G109: 44.757 | H109: 0.1081726517 | I109: 59 | J109: 0.2061408806 | K109: 62.233 | L109: 0.1147635809
B110: h106 | C110: 63.645 | D110: 0.4175095119 | E110: 47.645 | F110: 0.1084266831 | G110: 48.287 | H110: 0.1193761425 | I110: 60.326 | J110: 0.2116832401 | K110: 63.037 | L110: 0.1192433603
B111: h107 | C111: 64.77 | D111: 0.4158843661 | E111: 50.441 | F111: 0.1080202253 | G111: 51.415 | H111: 0.1317442066 | I111: 61.101 | J111: 0.2240696754 | K111: 64.221 | L111: 0.1288182736
B112: h108 | C112: 66.18 | D112: 0.4235894691 | E112: 52.374 | F112: 0.106231811 | G112: 54.277 | H112: 0.143950115 | I112: 62.023 | J112: 0.2297864917 | K112: 65.373 | L112: 0.133728801
B113: h109 | C113: 66.271 | D113: 0.4185037187 | E113: 52.586 | F113: 0.09956590307 | G113: 54.325 | H113: 0.1627454449 | I113: 62.199 | J113: 0.2285116148 | K113: 65.424 | L113: 0.1356610136
B114: h110 | C114: 65.357 | D114: 0.4107030189 | E114: 51.492 | F114: 0.08984343245 | G114: 52.666 | H114: 0.1679049472 | I114: 61.552 | J114: 0.2079257082 | K114: 64.227 | L114: 0.1269475964
B115: h111 | C115: 64.179 | D115: 0.4012198153 | E115: 50.279 | F115: 0.07816996439 | G115: 51.048 | H115: 0.1483430627 | I115: 60.713 | J115: 0.1612383751 | K115: 63.358 | L115: 0.1179265021
B116: h112 | C116: 63.335 | D116: 0.3941265319 | E116: 50.22 | F116: 0.06552099761 | G116: 50.721 | H116: 0.1157202665 | I116: 60.059 | J116: 0.107881423 | K116: 63.125 | L116: 0.1073916361
B117: h113 | C117: 64.064 | D117: 0.3988107757 | E117: 51.775 | F117: 0.05474173671 | G117: 52.782 | H117: 0.09574562179 | I117: 60.715 | J117: 0.07155414201 | K117: 64.071 | L117: 0.1005981244
B118: h114 | C118: 66.745 | D118: 0.4098044089 | E118: 54.897 | F118: 0.04779943746 | G118: 57.484 | H118: 0.1014063329 | I118: 64.298 | J118: 0.06131486775 | K118: 66.527 | L118: 0.1029856992
B119: h115 | C119: 66.359 | D119: 0.4240674531 | E119: 55.323 | F119: 0.04399499244 | G119: 58.97 | H119: 0.1141724158 | I119: 64.003 | J119: 0.0573426198 | K119: 66.345 | L119: 0.1061116991
B120: h116 | C120: 63.456 | D120: 0.4253102117 | E120: 53.54 | F120: 0.04155624563 | G120: 57.64 | H120: 0.1227224483 | I120: 62.4 | J120: 0.05310197673 | K120: 64.936 | L120: 0.1049425259
B121: h117 | C121: 59.75 | D121: 0.4348507734 | E121: 50.285 | F121: 0.0374754093 | G121: 54.888 | H121: 0.1273807418 | I121: 58.231 | J121: 0.04314451736 | K121: 61.109 | L121: 0.1035025968
B122: h118 | C122: 56.33 | D122: 0.4279486836 | E122: 48.233 | F122: 0.0374754093 | G122: 53.247 | H122: 0.1396898402 | I122: 55.508 | J122: 0.03560261417 | K122: 57.703 | L122: 0.1007335024
B123: h119 | C123: 54.44 | D123: 0.4151195916 | E123: 47.851 | F123: 0.04311704359 | G123: 53.082 | H123: 0.1419305384 | I123: 54.178 | J123: 0.02849014319 | K123: 54.935 | L123: 0.09845669136
B124: h120 | C124: 49.934 | D124: 0.4066114754 | E124: 44.498 | F124: 0.04783195409 | G124: 49.625 | H124: 0.1507753995 | I124: 50.028 | J124: 0.0243165989 | K124: 50.917 | L124: 0.0980628646
B125: h121 | C125: 46.237 | D125: 0.3978780348 | E125: 40.088 | F125: 0.05666021754 | G125: 46.638 | H125: 0.1612969786 | I125: 46.822 | J125: 0.02003273937 | K125: 48.15 | L125: 0.09504294962
B126: h122 | C126: 43.505 | D126: 0.382469891 | E126: 37.034 | F126: 0.06036711269 | G126: 44.887 | H126: 0.1737361828 | I126: 44.575 | J126: 0.01567196222 | K126: 46.147 | L126: 0.09311083216
B127: h123 | C127: 42.404 | D127: 0.3714394953 | E127: 35.942 | F127: 0.06721186206 | G127: 44.168 | H127: 0.1859395726 | I127: 43.518 | J127: 0.01207599828 | K127: 45.356 | L127: 0.08938196854
B128: h124 | C128: 42.589 | D128: 0.35209329 | E128: 35.978 | F128: 0.06815484416 | G128: 44.44 | H128: 0.2030066323 | I128: 43.582 | J128: 0.0111233362 | K128: 45.404 | L128: 0.08875433803
B129: h125 | C129: 43.554 | D129: 0.3363028102 | E129: 36.075 | F129: 0.08576259613 | G129: 45.634 | H129: 0.2162711864 | I129: 44.122 | J129: 0.01225042937 | K129: 46.119 | L129: 0.08815132049
B130: h126 | C130: 44.852 | D130: 0.309539285 | E130: 35.299 | F130: 0.0955663583 | G130: 48.087 | H130: 0.2318644068 | I130: 45.607 | J130: 0.01492056677 | K130: 47.53 | L130: 0.09064953605
B131: h127 | C131: 48.186 | D131: 0.3043012808 | E131: 34.344 | F131: 0.10065521 | G131: 53.115 | H131: 0.2549889462 | I131: 49.8 | J131: 0.01906665951 | K131: 50.884 | L131: 0.08869280563
B132: h128 | C132: 52.909 | D132: 0.2799464729 | E132: 35.677 | F132: 0.1026224657 | G132: 58.809 | H132: 0.2633014001 | I132: 54.889 | J132: 0.02427275655 | K132: 55.973 | L132: 0.08940658151
B133: h129 | C133: 56.066 | D133: 0.2650927165 | E133: 38.519 | F133: 0.107743834 | G133: 61.61 | H133: 0.281724392 | I133: 57.149 | J133: 0.0316927866 | K133: 58.776 | L133: 0.0897880824
B134: h130 | C134: 57.802 | D134: 0.2510609826 | E134: 41.711 | F134: 0.1201001512 | G134: 62.994 | H134: 0.3075902727 | I134: 58.348 | J134: 0.06278177329 | K134: 59.74 | L134: 0.09323389697
B135: h131 | C135: 59.22 | D135: 0.2379468553 | E135: 44.464 | F135: 0.137073829 | G135: 64.752 | H135: 0.3370523213 | I135: 59.85 | J135: 0.104229283 | K135: 61.392 | L135: 0.1040389869
B136: h132 | C136: 60.829 | D136: 0.2391703307 | E136: 47.515 | F136: 0.1652820004 | G136: 66.065 | H136: 0.3338098747 | I136: 60.874 | J136: 0.1355061185 | K136: 63.374 | L136: 0.11067218
B137: h133 | C137: 60.848 | D137: 0.2488051998 | E137: 47.847 | F137: 0.1814752792 | G137: 66.158 | H137: 0.3182903464 | I137: 60.612 | J137: 0.1432750107 | K137: 63.18 | L137: 0.1045066332
B138: h134 | C138: 59.366 | D138: 0.2383865418 | E138: 46.07 | F138: 0.1814752792 | G138: 65.108 | H138: 0.2891525424 | I138: 59.724 | J138: 0.1358147274 | K138: 61.725 | L138: 0.09441531911
B139: h135 | C139: 57.867 | D139: 0.2191550373 | E139: 44.831 | F139: 0.1663062741 | G139: 64.078 | H139: 0.2576713338 | I139: 58.414 | J139: 0.1113541219 | K139: 60.54 | L139: 0.08171503114
B140: h136 | C140: 57.065 | D140: 0.1732938253 | E140: 44.923 | F140: 0.1508933942 | G140: 63.531 | H140: 0.2147826087 | I140: 58.117 | J140: 0.09036872048 | K140: 60.001 | L140: 0.07207905683
B141: h137 | C141: 58.631 | D141: 0.1448097878 | E141: 47.239 | F141: 0.1372526704 | G141: 65.057 | H141: 0.1992483419 | I141: 59.393 | J141: 0.09172391584 | K141: 61.018 | L141: 0.06923625981
B142: h138 | C142: 62.623 | D142: 0.1304913019 | E142: 50.769 | F142: 0.1207017087 | G142: 68.861 | H142: 0.2113043478 | I142: 63.384 | J142: 0.1090596823 | K142: 62.917 | L142: 0.07406040021
B143: h139 | C143: 62.644 | D143: 0.1288472567 | E143: 52.054 | F143: 0.1099224479 | G143: 68.984 | H143: 0.2263522476 | I143: 63.643 | J143: 0.1261539287 | K143: 64.084 | L143: 0.07680474538
B144: h140 | C144: 60.339 | D144: 0.1413496463 | E144: 50.946 | F144: 0.09442827646 | G144: 67.189 | H144: 0.225055269 | I144: 62.652 | J144: 0.128891155 | K144: 62.488 | L144: 0.07956139703
B145: h141 | C145: 56.657 | D145: 0.1533358822 | E145: 48.621 | F145: 0.08387663193 | G145: 63.404 | H145: 0.2263080324 | I145: 59.076 | J145: 0.1308769858 | K145: 59.066 | L145: 0.08125969135
B146: h142 | C146: 54.231 | D146: 0.174192315 | E146: 47.545 | F146: 0.07321117922 | G146: 60.439 | H146: 0.2281945468 | I146: 56.322 | J146: 0.1248389867 | K146: 56.412 | L146: 0.07917989613
B147: h143 | C147: 53.034 | D147: 0.1960619384 | E147: 47.646 | F147: 0.07080494903 | G147: 57.997 | H147: 0.226440678 | I147: 54.394 | J147: 0.1300853371 | K147: 54.652 | L147: 0.07921681558
B148: h144 | C148: 49.547 | D148: 0.2116994838 | E148: 43.885 | F148: 0.05823727381 | G148: 53.333 | H148: 0.2217096536 | I148: 50.18 | J148: 0.1287167239 | K148: 50.689 | L148: 0.07841689434
B149: h145 | C149: 46.447 | D149: 0.2342573122 | E149: 40.382 | F149: 0.05084938633 | G149: 49.502 | H149: 0.2201556328 | I149: 46.416 | J149: 0.1240760366 | K149: 47.64 | L149: 0.0790046886
B150: h146 | C150: 43.758 | D150: 0.2453832919 | E150: 38.325 | F150: 0.04316020483 | G150: 47.506 | H150: 0.2321965454 | I150: 44.132 | J150: 0.1161477268 | K150: 45.625 | L150: 0.08009992493
B151: h147 | C151: 42.19 | D151: 0.2536417511 | E151: 37.916 | F151: 0.03436560189 | G151: 46.648 | H151: 0.2459912751 | I151: 43.29 | J151: 0.1111573186 | K151: 44.843 | L151: 0.08261035429
B152: h148 | C152: 41.724 | D152: 0.2552284458 | E152: 38.55 | F152: 0.02870844509 | G152: 47.16 | H152: 0.2598596946 | I152: 43.507 | J152: 0.1174624042 | K152: 45.177 | L152: 0.0854284343
B153: h149 | C153: 41.905 | D153: 0.2563945708 | E153: 40.628 | F153: 0.02503454442 | G153: 48.818 | H153: 0.259358604 | I153: 44.237 | J153: 0.117945347 | K153: 46.586 | L153: 0.08691746348
B154: h150 | C154: 41.448 | D154: 0.2655706366 | E154: 44.797 | F154: 0.0202552223 | G154: 52.602 | H154: 0.2451512115 | I154: 47.373 | J154: 0.1142159559 | K154: 49.635 | L154: 0.08733586837
B155: h151 | C155: 41.218 | D155: 0.2863888358 | E155: 53.045 | F155: 0.0168089084 | G155: 60.868 | H155: 0.2556151624 | I155: 55.61 | J155: 0.1144842574 | K155: 56.837 | L155: 0.09321814893
B156: h152 | C156: 43.859 | D156: 0.303020455 | E156: 60.924 | F156: 0.01298870194 | G156: 68.674 | H156: 0.2533013028 | I156: 62.328 | J156: 0.1092389627 | K156: 63.351 | L156: 0.1033829266
B157: h153 | C157: 47.77 | D157: 0.308564328 | E157: 63.57 | F157: 0.01095667723 | G157: 71.033 | H157: 0.2501768555 | I157: 64.978 | J157: 0.1046644219 | K157: 65.719 | L157: 0.1146552467
B158: h154 | C158: 51.019 | D158: 0.328235519 | E158: 64.136 | F158: 0.01734536292 | G158: 70.601 | H158: 0.2684077109 | I158: 65.572 | J158: 0.1062474008 | K158: 66.195 | L158: 0.1438205289
B159: h155 | C159: 53.482 | D159: 0.3463773657 | E159: 64.88 | F159: 0.03056165163 | G159: 71.044 | H159: 0.3168071685 | I159: 66.81 | J159: 0.1198502878 | K159: 66.388 | L159: 0.1703646276
B160: h156 | C160: 55.056 | D160: 0.3519785892 | E160: 66.033 | F160: 0.04493213037 | G160: 71.925 | H160: 0.3622885103 | I160: 67.493 | J160: 0.1378935648 | K160: 67.693 | L160: 0.1821784128
B161: h157 | C161: 54.528 | D161: 0.3558401835 | E161: 65.701 | F161: 0.05548240267 | G161: 71.439 | H161: 0.3740346637 | I161: 67.195 | J161: 0.1507720376 | K161: 67.858 | L161: 0.1762838262
B162: h158 | C162: 53.607 | D162: 0.3565666221 | E162: 65.418 | F162: 0.05494594814 | G162: 70.774 | H162: 0.336806579 | I162: 66.554 | J162: 0.154192882 | K162: 67.034 | L162: 0.1646546314
B163: h159 | C163: 52.17 | D163: 0.3386159434 | E163: 64.441 | F163: 0.04537104771 | G163: 69.483 | H163: 0.2686729942 | I163: 65.302 | J163: 0.1357739828 | K163: 66.516 | L163: 0.1643100626
B164: h160 | C164: 51.935 | D164: 0.3204740967 | E164: 63.914 | F164: 0.02983012273 | G164: 69.05 | H164: 0.2023227024 | I164: 64.682 | J164: 0.1103792442 | K164: 65.969 | L164: 0.1740072113
B165: h161 | C165: 53.699 | D165: 0.3192315045 | E165: 64.546 | F165: 0.01742664391 | G165: 70.11 | H165: 0.1760301833 | I165: 65.305 | J165: 0.1028131414 | K165: 66.703 | L165: 0.1861655653
B166: h162 | C166: 56.965 | D166: 0.2887210858 | E166: 66.899 | F166: 0.01650004064 | G166: 74.3 | H166: 0.1873489359 | I166: 68.539 | J166: 0.1164831037 | K166: 69.269 | L166: 0.1982993072
B167: h163 | C167: 56.909 | D167: 0.2835977825 | E167: 66.623 | F167: 0.01927985044 | G167: 74.355 | H167: 0.216485881 | I167: 68.348 | J167: 0.136699623 | K167: 68.865 | L167: 0.216512226
B168: h164 | C168: 55.04 | D168: 0.2830433951 | E168: 64.746 | F168: 0.02123059416 | G168: 72.381 | H168: 0.2345693568 | I168: 66.643 | J168: 0.1525562427 | K168: 66.475 | L168: 0.2279322184
B169: h165 | C169: 51.448 | D169: 0.2813802332 | E169: 60.791 | F169: 0.02386409819 | G169: 68.099 | H169: 0.2365737193 | I169: 63.117 | J169: 0.1717532163 | K169: 62.274 | L169: 0.241308869
B170: h166 | C170: 49.164 | D170: 0.275071688 | E170: 57.524 | F170: 0.02870844509 | G170: 64.209 | H170: 0.2307669634 | I170: 60.308 | J170: 0.1880659485 | K170: 58.43 | L170: 0.2551408425
B171: h167 | C171: 49.071 | D171: 0.2715733129 | E171: 54.826 | F171: 0.03192717223 | G171: 60.837 | H171: 0.2107970288 | I171: 58.367 | J171: 0.1956722965 | K171: 56.36 | L171: 0.2630166993
B172: h168 | C172: 45.729 | D172: 0.2748231696 | E172: 49.792 | F172: 0.03576363489 | G172: 55.626 | H172: 0.1998909391 | I172: 54.069 | J172: 0.1986236132 | K172: 52.276 | L172: 0.2653548443
B173: h169 | C173: 41.994 | D173: 0.2694322309 | E173: 46.059 | F173: 0.04093871382 | G173: 51.708 | H173: 0.1928381963 | I173: 50.526 | J173: 0.2020172215 | K173: 49.301 | L173: 0.2763305236
B174: h170 | C174: 39.252 | D174: 0.2622825464 | E174: 43.866 | F174: 0.04363654093 | G174: 49.274 | H174: 0.1781019747 | I174: 48.193 | J174: 0.2125727621 | K174: 47.351 | L174: 0.2806866425
B175: h171 | C175: 38.273 | D175: 0.2571974766 | E175: 43.22 | F175: 0.04402658822 | G175: 48.234 | H175: 0.1618479222 | I175: 47.376 | J175: 0.2209957349 | K175: 46.165 | L175: 0.2814003569
B176: h172 | C176: 37.783 | D176: 0.2479640604 | E176: 43.801 | F176: 0.04615559637 | G176: 48.974 | H176: 0.1555555556 | I176: 47.375 | J176: 0.2248182623 | K176: 46.483 | L176: 0.288660555
B177: h173 | C177: 38.333 | D177: 0.2414452304 | E177: 45.056 | F177: 0.05117745527 | G177: 50.471 | H177: 0.1619068671 | I177: 48.351 | J177: 0.2261058505 | K177: 47.601 | L177: 0.2916384667
B178: h174 | C178: 38.03 | D178: 0.2299560314 | E178: 47.821 | F178: 0.05506167623 | G178: 54.08 | H178: 0.1758178603 | I178: 50.888 | J178: 0.2260119638 | K178: 50.307 | L178: 0.3037100843
B179: h175 | C179: 36.841 | D179: 0.234467597 | E179: 55.276 | F179: 0.06016479498 | G179: 62.58 | H179: 0.181447097 | I179: 58.294 | J179: 0.2361651332 | K179: 57.202 | L179: 0.3184642835
B180: h176 | C180: 38.583 | D180: 0.2360925253 | E180: 62.291 | F180: 0.06209877948 | G180: 70.022 | H180: 0.1904361922 | I180: 65.504 | J180: 0.2434212291 | K180: 63.429 | L180: 0.3208392297
B181: h177 | C181: 41.271 | D181: 0.2318103613 | E181: 63.983 | F181: 0.06427654353 | G181: 72.222 | H181: 0.2180223991 | I181: 68.496 | J181: 0.2431932187 | K181: 65.999 | L181: 0.3291330831
B182: h178 | C182: 44.874 | D182: 0.225023896 | E182: 63.763 | F182: 0.07469405665 | G182: 71.508 | H182: 0.2555260831 | I182: 68.716 | J182: 0.2500335309 | K182: 66.407 | L182: 0.3554420722
B183: h179 | C183: 47.724 | D183: 0.2225578283 | E183: 64.837 | F183: 0.0871430661 | G183: 72.068 | H183: 0.3070439139 | I183: 69.317 | J183: 0.2580809571 | K183: 66.226 | L183: 0.39078324
B184: h180 | C184: 50.686 | D184: 0.2235327853 | E184: 66.64 | F184: 0.09487900408 | G184: 73.129 | H184: 0.36170056 | I184: 70.214 | J184: 0.2643311248 | K184: 67.047 | L184: 0.4164277364
B185: h181 | C185: 50.826 | D185: 0.2264385395 | E185: 66.277 | F185: 0.103183761 | G185: 72.32 | H185: 0.3752578839 | I185: 69.133 | J185: 0.2598782156 | K185: 66.625 | L185: 0.4034578232
B186: h182 | C186: 49.281 | D186: 0.2194226725 | E186: 65.924 | F186: 0.0929937755 | G186: 71.738 | H186: 0.352726201 | I186: 67.936 | J186: 0.2471632823 | K186: 64.851 | L186: 0.3529809881
B187: h183 | C187: 48.07 | D187: 0.1901357293 | E187: 65.037 | F187: 0.08075604167 | G187: 70.481 | H187: 0.2903625111 | I187: 66.639 | J187: 0.2371978862 | K187: 63.2 | L187: 0.2846859041
B188: h184 | C188: 47.773 | D188: 0.1676161346 | E188: 64.629 | F188: 0.06846955193 | G188: 69.646 | H188: 0.2150014736 | I188: 66.64 | J188: 0.2205799512 | K188: 62.226 | L188: 0.2202547222
B189: h185 | C189: 49.266 | D189: 0.1452877079 | E189: 64.806 | F189: 0.05749947181 | G189: 70.736 | H189: 0.1592838196 | I189: 66.966 | J189: 0.2260924381 | K189: 63.517 | L189: 0.191103181
B190: h186 | C190: 53.775 | D190: 0.1301089658 | E190: 67.129 | F190: 0.04937348654 | G190: 74.56 | H190: 0.1450044209 | I190: 69.119 | J190: 0.2291906972 | K190: 67.195 | L190: 0.1812711499
B191: h187 | C191: 54.974 | D191: 0.1234180845 | E191: 66.857 | F191: 0.04462791113 | G191: 74.363 | H191: 0.1424108459 | I191: 68.204 | J191: 0.2467072615 | K191: 66.203 | L191: 0.1670706946
B192: h188 | C192: 53.957 | D192: 0.1191550373 | E192: 64.904 | F192: 0.04098746973 | G192: 72.237 | H192: 0.1331712349 | I192: 66.654 | J192: 0.2684353121 | K192: 64.105 | L192: 0.1572017474
B193: h189 | C193: 51.413 | D193: 0.10837316 | E193: 61.16 | F193: 0.03783458744 | G193: 67.798 | H193: 0.1348511642 | I193: 62.678 | J193: 0.2881246815 | K193: 59.966 | L193: 0.1462868394
B194: h190 | C194: 50.11 | D194: 0.09812655324 | E194: 57.974 | F194: 0.03516926427 | G194: 64.419 | H194: 0.1300029472 | I194: 59.3 | J194: 0.3041524719 | K194: 56.595 | L194: 0.1381898726
B195: h191 | C195: 50.593 | D195: 0.0906327662 | E195: 55.561 | F195: 0.03213014578 | G195: 61.166 | H195: 0.1150014736 | I195: 57.798 | J195: 0.3057887819 | K195: 54.452 | L195: 0.1268811912
B196: h192 | C196: 47.343 | D196: 0.08044350985 | E196: 50.344 | F196: 0.02978986202 | G196: 56.18 | H196: 0.1055408193 | I196: 53.177 | J196: 0.3074116795 | K196: 51.051 | L196: 0.1203716237
B197: h193 | C197: 44.352 | D197: 0.07180947648 | E197: 46.594 | F197: 0.02928509905 | G197: 52.192 | H197: 0.1038578291 | I197: 48.681 | J197: 0.3016790494 | K197: 47.98 | L197: 0.108472282
B198: h194 | C198: 42.278 | D198: 0.06947762763 | E198: 44.815 | F198: 0.02969138511 | G198: 49.962 | H198: 0.09831717309 | I198: 46.477 | J198: 0.2989834509 | K198: 45.924 | L198: 0.09993232019
B199: h195 | C199: 41.509 | D199: 0.06748982205 | E199: 43.98 | F199: 0.03068272309 | G199: 49.093 | H199: 0.09825822994 | I199: 45.143 | J199: 0.3040125526 | K199: 44.459 | L199: 0.09439488095
B200: h196 | C200: 42.012 | D200: 0.06408761635 | E200: 44.424 | F200: 0.0335267255 | G200: 49.642 | H200: 0.1039462438 | I200: 45.578 | J200: 0.319931336 | K200: 44.223 | L200: 0.08857441703
B201: h197 | C201: 43.725 | D201: 0.05837267532 | E201: 46.094 | F201: 0.03747582598 | G201: 51.294 | H201: 0.1217028676 | I201: 46.997 | J201: 0.337660596 | K201: 44.449 | L201: 0.09050636806
... 4299 more rows
